Body Name,Supplier Name,Account Number,Invoice Date,Document File Name,Cost Centre / Project Code,Cost Centre/Project Description,Subjective Account,Subjective description, Invoice Amount (Excluding VAT) ,Period
Cambridge City Council,10:AM,10302900,24/04/2023,137113,1262,Folk Festival,62400,Consultancy Fees,"1,000.00",1
Cambridge City Council,3G Construction Consultants Ltd,10205100,13/04/2023,135876,100200,Redevelopment of Silver Street Toilets,70008,CAPEX - Architects Fees,"3,050.00",1
Cambridge City Council,6bythree Digital Ltd,10969400,14/04/2023,136899,1217,Our Cambridge Transformation Programme,62400,Consultancy Fees,"4,360.00",1
Cambridge City Council,A & R Wright Consulting Ltd,10946200,31/03/2023,136792,1935,Markets,60201,Cyclical/Planned Maintenance - Building,598.82,1
Cambridge City Council,A & R Wright Consulting Ltd,10946200,31/03/2023,136518,100346,Market Square project,70009,CAPEX - Engineers Fees,"3,058.28",1
Cambridge City Council,AA Global Language Services Ltd,10001100,05/04/2023,135881,1203,Corporate Policy,62408,Translation Services,708.71,1
Cambridge City Council,Abbey People CIO,10001300,06/04/2023,135388,1057,Community Development Voluntary Support,64600,Grants And Contributions,"6,250.00",1
Cambridge City Council,Abbeyfield Cambridgeshire Vietnamese Society,11166500,19/04/2023,136405,1057,Community Development Voluntary Support,62900,Events,500.00,1
Cambridge City Council,Access & Automation Ltd,10115300,25/04/2023,137084,300000,Disabled Adaptions,70006,CAPEX - Building Contractor/Works - Minor Adaptations (HRA),595.00,1
Cambridge City Council,Access & Automation Ltd,10115300,20/03/2023,133011,300000,Disabled Adaptions,70007,CAPEX - Building Contractor/Works - Major Adaptations (HRA),"7,240.00",1
Cambridge City Council,Access & Automation Ltd,10115300,12/04/2023,135849,300000,Disabled Adaptions,70007,CAPEX - Building Contractor/Works - Major Adaptations (HRA),"5,665.00",1
Cambridge City Council,Adams Cook & Pearce Ltd,11128500,17/03/2023,137523,1077,Community Resilience,61703,"Purchase - Equipment, Furniture And Materials","5,729.17",1
Cambridge City Council,Adams Cook & Pearce Ltd,11128500,14/04/2023,136793,1077,Community Resilience,61703,"Purchase - Equipment, Furniture And Materials","1,145.83",1
Cambridge City Council,Aeg Presents Ltd,10304000,29/03/2023,135693,9900,General Fund Balance Sheet,20118,Receipts In Advance - Other Entities And Individuals,"13,041.45",1
Cambridge City Council,Ainsworth Area Residents Association,10963400,19/04/2023,136418,1057,Community Development Voluntary Support,64600,Grants And Contributions,500.00,1
Cambridge City Council,Alboro Developments Ltd,10133300,31/03/2023,135548,1031,Fleet Management - Operational,60303,Electricity,"3,209.56",1
Cambridge City Council,Alboro Developments Ltd,10133300,05/04/2023,135727,1031,Fleet Management - Operational,60400,Rents Payable,"15,124.00",1
Cambridge City Council,Alboro Developments Ltd,10133300,31/03/2023,135543,1031,Fleet Management - Operational,60902,Transport Fuel,514.22,1
Cambridge City Council,Allia Limited,11111800,19/04/2023,136347,1057,Community Development Voluntary Support,64600,Grants And Contributions,"10,000.00",1
Cambridge City Council,Alliance Asbestos Services Ltd,10115400,06/04/2023,135603,300007,Asbestos Removal,70003,CAPEX - Building Contractor/Works - Voids & Emergencies,"2,125.00",1
Cambridge City Council,Alliance Asbestos Services Ltd,10115400,13/04/2023,135949,300007,Asbestos Removal,70003,CAPEX - Building Contractor/Works - Voids & Emergencies,"3,495.00",1
Cambridge City Council,Amulet (Churchill Security Solutions) Ltd,10220900,31/03/2023,136945,5024,E_invoicing Suspense Accounts,69100,Expenditure In Holding Account Awaiting Allocation,"12,586.28",1
Cambridge City Council,Amulet (Churchill Security Solutions) Ltd,10220900,21/02/2023,136304,5024,E_invoicing Suspense Accounts,69100,Expenditure In Holding Account Awaiting Allocation,706.65,1
Cambridge City Council,Amulet (Churchill Security Solutions) Ltd,10220900,28/02/2023,136637,5024,E_invoicing Suspense Accounts,69100,Expenditure In Holding Account Awaiting Allocation,"1,746.97",1
Cambridge City Council,Andrew Ashworth - Beach Sessions,10896300,25/03/2023,134858,9900,General Fund Balance Sheet,20118,Receipts In Advance - Other Entities And Individuals,767.00,1
Cambridge City Council,Anglian Water Business (National) Ltd T/A Wave,10006400,11/04/2023,135593,5024,E_invoicing Suspense Accounts,69100,Expenditure In Holding Account Awaiting Allocation,"3,337.80",1
Cambridge City Council,AON UK Limited,10006800,27/03/2023,136891,8009,Insurance Fund,67302,Insurance Claim,"1,120.00",1
Cambridge City Council,AON UK Limited,10006800,27/03/2023,136876,8009,Insurance Fund,67302,Insurance Claim,"5,040.00",1
Cambridge City Council,AON UK Limited,10006800,27/03/2023,136877,8009,Insurance Fund,67302,Insurance Claim,"65,050.83",1
Cambridge City Council,AON UK Limited,10006800,27/03/2023,136880,8009,Insurance Fund,67302,Insurance Claim,"23,816.80",1
Cambridge City Council,AON UK Limited,10006800,27/03/2023,136883,8009,Insurance Fund,67302,Insurance Claim,"2,233.00",1
Cambridge City Council,AON UK Limited,10006800,27/03/2023,136867,8009,Insurance Fund,67302,Insurance Claim,"1,699.22",1
Cambridge City Council,AON UK Limited,10006800,27/03/2023,136831,8009,Insurance Fund,67302,Insurance Claim,"2,000.00",1
Cambridge City Council,AON UK Limited,10006800,27/03/2023,136828,8009,Insurance Fund,67302,Insurance Claim,"219,677.10",1
Cambridge City Council,APT Skidata Ltd,10115700,03/04/2023,135602,1651,Grand Arcade Car Park,61702,"Maintenance - Equipment, Furniture And Materials","9,970.62",1
Cambridge City Council,APT Skidata Ltd,10115700,03/04/2023,135599,1653,Grafton Centre West Car Park,61702,"Maintenance - Equipment, Furniture And Materials","3,420.45",1
Cambridge City Council,APT Skidata Ltd,10115700,03/04/2023,135601,1654,Grafton Centre East Car Park,61702,"Maintenance - Equipment, Furniture And Materials","5,757.02",1
Cambridge City Council,APT Skidata Ltd,10115700,03/04/2023,135597,1655,Queen Anne Terrace Car Park,61702,"Maintenance - Equipment, Furniture And Materials","3,452.74",1
Cambridge City Council,APT Skidata Ltd,10115700,03/04/2023,135223,1661,Parking Administration,64073,ICT Maintenance and Support,"1,590.25",1
Cambridge City Council,APT Skidata Ltd,10115700,03/04/2023,135225,1661,Parking Administration,64073,ICT Maintenance and Support,"1,590.25",1
Cambridge City Council,APT Skidata Ltd,10115700,03/04/2023,135227,1661,Parking Administration,64073,ICT Maintenance and Support,"1,590.25",1
Cambridge City Council,APT Skidata Ltd,10115700,03/04/2023,135542,1661,Parking Administration,64073,ICT Maintenance and Support,"1,590.25",1
Cambridge City Council,Aran Insulation Limited,10392200,23/03/2023,133540,300006,Insulation / Energy Efficiency,70002,CAPEX - Building Contractor/Works,702.15,1
Cambridge City Council,Aran Insulation Limited,10392200,12/04/2023,136713,100364,Sustainable Warmth Grant - Local Authority Delivery Phase 3,70015,CAPEX - Grants Paid,"10,000.11",1
Cambridge City Council,Aran Insulation Limited,10392200,17/04/2023,136714,100364,Sustainable Warmth Grant - Local Authority Delivery Phase 3,70015,CAPEX - Grants Paid,"9,959.14",1
Cambridge City Council,Aran Insulation Limited,10392200,24/04/2023,137050,100364,Sustainable Warmth Grant - Local Authority Delivery Phase 3,70015,CAPEX - Grants Paid,"12,472.13",1
Cambridge City Council,Aran Insulation Limited,10392200,25/04/2023,137085,100364,Sustainable Warmth Grant - Local Authority Delivery Phase 3,70015,CAPEX - Grants Paid,"12,011.93",1
Cambridge City Council,Aran Insulation Limited,10392200,25/04/2023,137104,100364,Sustainable Warmth Grant - Local Authority Delivery Phase 3,70015,CAPEX - Grants Paid,"3,543.55",1
Cambridge City Council,Aran Insulation Limited,10392200,25/04/2023,137075,100364,Sustainable Warmth Grant - Local Authority Delivery Phase 3,70015,CAPEX - Grants Paid,"12,011.93",1
Cambridge City Council,Aran Insulation Limited,10392200,24/02/2023,135951,100364,Sustainable Warmth Grant - Local Authority Delivery Phase 3,70015,CAPEX - Grants Paid,"7,122.53",1
Cambridge City Council,Aran Insulation Limited,10392200,15/03/2023,135908,100364,Sustainable Warmth Grant - Local Authority Delivery Phase 3,70015,CAPEX - Grants Paid,"16,420.28",1
Cambridge City Council,Aran Insulation Limited,10392200,06/03/2023,136271,100364,Sustainable Warmth Grant - Local Authority Delivery Phase 3,70015,CAPEX - Grants Paid,"3,387.27",1
Cambridge City Council,Aran Insulation Limited,10392200,22/03/2023,136317,100364,Sustainable Warmth Grant - Local Authority Delivery Phase 3,70015,CAPEX - Grants Paid,"5,568.39",1
Cambridge City Council,Aran Insulation Limited,10392200,30/03/2023,136226,100364,Sustainable Warmth Grant - Local Authority Delivery Phase 3,70015,CAPEX - Grants Paid,"12,471.42",1
Cambridge City Council,Aran Insulation Limited,10392200,27/03/2023,136220,100364,Sustainable Warmth Grant - Local Authority Delivery Phase 3,70015,CAPEX - Grants Paid,"2,553.08",1
Cambridge City Council,Aran Insulation Limited,10392200,23/01/2023,135482,100364,Sustainable Warmth Grant - Local Authority Delivery Phase 3,70015,CAPEX - Grants Paid,"4,000.65",1
Cambridge City Council,Aran Insulation Limited,10392200,26/04/2023,137495,100364,Sustainable Warmth Grant - Local Authority Delivery Phase 3,70015,CAPEX - Grants Paid,"12,011.93",1
Cambridge City Council,Aran Insulation Limited,10392200,26/04/2023,137497,100364,Sustainable Warmth Grant - Local Authority Delivery Phase 3,70015,CAPEX - Grants Paid,"6,234.19",1
Cambridge City Council,Aran Insulation Limited,10392200,06/04/2023,136708,100365,Sustainable Warmth Grant - Home Upgrade Grant,70015,CAPEX - Grants Paid,"7,480.67",1
Cambridge City Council,Aran Insulation Limited,10392200,06/04/2023,136709,100365,Sustainable Warmth Grant - Home Upgrade Grant,70015,CAPEX - Grants Paid,"10,270.69",1
Cambridge City Council,Aran Insulation Limited,10392200,06/04/2023,136711,100365,Sustainable Warmth Grant - Home Upgrade Grant,70015,CAPEX - Grants Paid,"10,270.69",1
Cambridge City Council,Aran Insulation Limited,10392200,11/04/2023,136712,100365,Sustainable Warmth Grant - Home Upgrade Grant,70015,CAPEX - Grants Paid,"9,902.56",1
Cambridge City Council,Aran Insulation Limited,10392200,06/04/2023,137049,100365,Sustainable Warmth Grant - Home Upgrade Grant,70015,CAPEX - Grants Paid,"15,591.79",1
Cambridge City Council,Aran Insulation Limited,10392200,28/03/2023,136222,100365,Sustainable Warmth Grant - Home Upgrade Grant,70015,CAPEX - Grants Paid,"35,003.14",1
Cambridge City Council,Aran Insulation Limited,10392200,28/03/2023,136225,100365,Sustainable Warmth Grant - Home Upgrade Grant,70015,CAPEX - Grants Paid,"4,191.11",1
Cambridge City Council,Aran Insulation Limited,10392200,19/04/2023,136845,100365,Sustainable Warmth Grant - Home Upgrade Grant,70015,CAPEX - Grants Paid,"36,671.10",1
Cambridge City Council,Aran Insulation Limited,10392200,28/03/2023,136889,100365,Sustainable Warmth Grant - Home Upgrade Grant,70015,CAPEX - Grants Paid,"31,152.64",1
Cambridge City Council,Aran Insulation Limited,10392200,21/03/2023,135199,100365,Sustainable Warmth Grant - Home Upgrade Grant,70015,CAPEX - Grants Paid,"9,763.40",1
Cambridge City Council,Aran Insulation Limited,10392200,27/03/2023,135200,100365,Sustainable Warmth Grant - Home Upgrade Grant,70015,CAPEX - Grants Paid,"3,319.32",1
Cambridge City Council,Aran Insulation Limited,10392200,22/02/2023,135481,100365,Sustainable Warmth Grant - Home Upgrade Grant,70015,CAPEX - Grants Paid,"7,928.83",1
Cambridge City Council,Aran Insulation Limited,10392200,26/04/2023,137500,100365,Sustainable Warmth Grant - Home Upgrade Grant,70015,CAPEX - Grants Paid,"4,002.53",1
Cambridge City Council,Aran Insulation Limited,10392200,26/04/2023,137501,100365,Sustainable Warmth Grant - Home Upgrade Grant,70015,CAPEX - Grants Paid,"6,946.49",1
Cambridge City Council,Arbury Carnival Committee,10007401,19/04/2023,136422,1057,Community Development Voluntary Support,64600,Grants And Contributions,"1,250.00",1
Cambridge City Council,Arbury Road Baptist Church,10487501,19/04/2023,136457,1064,Neighbourhood Community Development,62900,Events,500.00,1
Cambridge City Council,Archangel Ltd,11111000,30/03/2023,136202,100334,Investment programme for public toilet re-purposed property,70002,CAPEX - Building Contractor/Works,"4,003.15",1
Cambridge City Council,Arts & Minds,10171200,06/04/2023,135390,1057,Community Development Voluntary Support,64600,Grants And Contributions,"4,500.00",1
Cambridge City Council,Atalian Servest Food Co Limited,10940300,31/03/2023,136181,6123,Ditchburn Place,61902,Catering Services,"1,909.50",1
Cambridge City Council,Atalian Servest Food Co Limited,10940300,31/03/2023,136181,6123,Ditchburn Place,61902,Catering Services,"12,811.78",1
Cambridge City Council,Avalon Promotions Limited,10305200,13/04/2023,136002,700436,,61910,Artist Fees,"12,433.23",1
Cambridge City Council,Avison Young (UK) Ltd,10450500,31/03/2023,136153,100300,Park Street car park development,70010,CAPEX - Other Professional Fees,"2,600.00",1
Cambridge City Council,Banner Group Ltd,10011000,30/01/2023,134986,1031,Fleet Management - Operational,62002,Stationery,565.35,1
Cambridge City Council,Banner Group Ltd,10011000,30/03/2023,136115,1251,Culture and Community,62900,Events,619.12,1
Cambridge City Council,Beacon Partnership LLP,10611300,05/04/2023,135484,1506,Housing Development Agency,63300,Professional Services - General,"4,786.00",1
Cambridge City Council,Ben Wills,10116100,20/04/2023,136893,6000,Housing Revenue Account - Net Cost of Service,61703,"Purchase - Equipment, Furniture And Materials",557.19,1
Cambridge City Council,Ben Wills,10116100,19/04/2023,136656,6000,Housing Revenue Account - Net Cost of Service,61703,"Purchase - Equipment, Furniture And Materials",552.27,1
Cambridge City Council,Bermuda Community Room,10012500,19/04/2023,136348,1057,Community Development Voluntary Support,64600,Grants And Contributions,500.00,1
Cambridge City Council,Bevan Brittan LLP,10012600,26/01/2023,131294,300085,New Build - Cromwell Road Redevelopment (HRA),70010,CAPEX - Other Professional Fees,500.00,1
Cambridge City Council,BFS Group Ltd t/a Bidfood,10303000,04/04/2023,136003,1260,Corn Exchange and Guildhalls,61905,Purchases - Bar,733.99,1
Cambridge City Council,BFS Group Ltd t/a Bidfood,10303000,11/04/2023,136004,1260,Corn Exchange and Guildhalls,61905,Purchases - Bar,677.38,1
Cambridge City Council,BFS Group Ltd t/a Bidfood,10303000,18/04/2023,136803,1260,Corn Exchange and Guildhalls,61905,Purchases - Bar,"1,189.34",1
Cambridge City Council,Bidwells LLP  No 2 Account,10161000,12/04/2023,136449,1758,Other Commercial Properties,62400,Consultancy Fees,"17,000.00",1
Cambridge City Council,Bidwells LLP  No 2 Account,10161000,31/03/2023,135664,1003,Bereavement Services Central Costs,63200,Legal Fees,"4,686.00",1
Cambridge City Council,Boishakhi Cultural Association,10344900,19/04/2023,136424,1057,Community Development Voluntary Support,64600,Grants And Contributions,840.00,1
Cambridge City Council,Bond Turner Ltd,10907800,11/04/2023,135733,6207,Repairs Day to Day,63200,Legal Fees,"8,000.00",1
Cambridge City Council,Borley Brothers Engineering,10116600,30/03/2023,134984,300088,Estate Investment,70002,CAPEX - Building Contractor/Works,"1,680.00",1
Cambridge City Council,Borley Brothers Engineering,10116600,25/04/2023,137044,300088,Estate Investment,70020,CAPEX - Feasibility/investigatory work,"1,450.00",1
Cambridge City Council,Bouygues E&S Solutions Ltd,10126400,12/04/2023,135796,300088,Estate Investment,70002,CAPEX - Building Contractor/Works,"24,292.03",1
Cambridge City Council,Boyes Turner LLP,11161700,15/04/2023,136114,1403,Housing Standards,66600,Compensation,"154,168.78",1
Cambridge City Council,British Gas Trading Ltd,10015204,31/03/2023,135898,6102,Temporary Accommodation,60303,Electricity,627.54,1
Cambridge City Council,British Gas Trading Ltd,10015204,11/04/2023,136521,6102,Temporary Accommodation,60303,Electricity,788.45,1
Cambridge City Council,British Gas Trading Ltd,10015204,29/03/2023,135709,6102,Temporary Accommodation,60305,Gas,735.92,1
Cambridge City Council,Browne Jacobson LLP,10904000,03/04/2023,135300,1778,"The Global Centre, Swanns Road, Cambridge",63200,Legal Fees,"3,000.00",1
Cambridge City Council,Bulb Energy Ltd,10908400,17/04/2023,136762,6102,Temporary Accommodation,60303,Electricity,646.11,1
Cambridge City Council,Bulb Energy Ltd,10908400,17/03/2023,134197,6102,Temporary Accommodation,60303,Electricity,561.19,1
Cambridge City Council,Businessclean (Cambridge) Ltd,10016800,03/04/2023,135191,6208,Voids,60220,Housing Repairs - Work To Void Properties,"1,354.00",1
Cambridge City Council,Businessclean (Cambridge) Ltd,10016800,25/04/2023,137057,6208,Voids,60233,Housing Repairs - Work Given To External Contractors,"1,987.00",1
Cambridge City Council,Businessclean (Cambridge) Ltd,10016800,31/03/2023,135167,1502,Homelessness Costs,60501,Cleaning Services,628.00,1
Cambridge City Council,Businessclean (Cambridge) Ltd,10016800,31/03/2023,135160,6102,Temporary Accommodation,60501,Cleaning Services,"1,356.00",1
Cambridge City Council,Businessclean (Cambridge) Ltd,10016800,31/03/2023,135161,6102,Temporary Accommodation,60501,Cleaning Services,566.00,1
Cambridge City Council,Businessclean (Cambridge) Ltd,10016800,31/03/2023,135164,6102,Temporary Accommodation,60501,Cleaning Services,595.00,1
Cambridge City Council,Calfordseaden LLP,10339400,27/02/2023,135061,300090,New Build - Meadows and Buchan Street,70010,CAPEX - Other Professional Fees,"6,817.18",1
Cambridge City Council,Calfordseaden LLP,10339400,29/03/2023,134988,300090,New Build - Meadows and Buchan Street,70010,CAPEX - Other Professional Fees,"6,817.19",1
Cambridge City Council,Calfordseaden LLP,10339400,27/02/2023,135682,300090,New Build - Meadows and Buchan Street,70010,CAPEX - Other Professional Fees,"1,999.19",1
Cambridge City Council,Calfordseaden LLP,10339400,31/03/2023,135762,300098,New Build - Histon Road,70010,CAPEX - Other Professional Fees,"1,632.00",1
Cambridge City Council,Cambridge & District Citizen's Advice Bureau,10017500,28/03/2023,135046,1802,Housing Benefits,63900,Miscellaneous Expenses,"9,812.75",1
Cambridge City Council,Cambridge Council For Voluntary Service CVS,10018500,19/04/2023,136409,1057,Community Development Voluntary Support,62900,Events,500.00,1
Cambridge City Council,Cambridge Econometrics Ltd,11151900,19/04/2023,136878,1203,Corporate Policy,62400,Consultancy Fees,"45,225.00",1
Cambridge City Council,Cambridge Ethnic Community Forum,10019300,06/04/2023,135567,1517,Syrian Resettlement,63900,Miscellaneous Expenses,"6,250.00",1
Cambridge City Council,Cambridge Film Trust,10345800,19/04/2023,136414,1057,Community Development Voluntary Support,64600,Grants And Contributions,"2,000.00",1
Cambridge City Council,Cambridge Garage Doors,10117100,05/04/2023,135244,6207,Repairs Day to Day,60233,Housing Repairs - Work Given To External Contractors,"1,070.00",1
Cambridge City Council,Cambridge Gateway Club,10019500,19/04/2023,136345,1057,Community Development Voluntary Support,64600,Grants And Contributions,"1,346.00",1
Cambridge City Council,Cambridge Investment Partnership LLP,10145700,15/03/2023,132751,300105,New Build - Aylesborough Close,70002,CAPEX - Building Contractor/Works,"7,907.95",1
Cambridge City Council,Cambridge Investment Partnership LLP,10145700,05/04/2023,135249,300105,New Build - Aylesborough Close,70002,CAPEX - Building Contractor/Works,"52,122.76",1
Cambridge City Council,Cambridge Money Advice Centre,10510000,06/04/2023,135392,1057,Community Development Voluntary Support,64600,Grants And Contributions,"5,000.00",1
Cambridge City Council,Cambridge Online,10154400,24/04/2023,136702,1057,Community Development Voluntary Support,64600,Grants And Contributions,"10,000.00",1
Cambridge City Council,Cambridge Re-Use,10021200,06/04/2023,135393,1057,Community Development Voluntary Support,64600,Grants And Contributions,"7,000.00",1
Cambridge City Council,Cambridge Russian School,11082400,21/04/2023,136690,1050,Community Safety,64600,Grants And Contributions,"1,952.00",1
Cambridge City Council,Cambridge Science Centre,10691401,06/04/2023,135394,1057,Community Development Voluntary Support,64600,Grants And Contributions,"1,000.00",1
Cambridge City Council,Cambridge United Youth & Community Trust,10170800,06/04/2023,135395,1057,Community Development Voluntary Support,64600,Grants And Contributions,"5,500.00",1
Cambridge City Council,Cambridge Womens Aid,10022300,06/04/2023,135396,1526,Homelessness Prevention Grant,64600,Grants And Contributions,"8,750.00",1
Cambridge City Council,Cambridge Womens Resource Centre,10022400,19/04/2023,136343,1057,Community Development Voluntary Support,64600,Grants And Contributions,"8,250.00",1
Cambridge City Council,Cambridge Womens Resource Centre,10022400,19/04/2023,136344,1208,Sustainable City,64600,Grants And Contributions,"1,050.00",1
Cambridge City Council,Cambridgeshire Community Foundation,10263800,06/04/2023,135397,1526,Homelessness Prevention Grant,64600,Grants And Contributions,"7,500.00",1
Cambridge City Council,Cambridgeshire County Council,10022802,24/03/2023,133693,1883,Drainage Team,60501,Cleaning Services,"25,191.65",1
Cambridge City Council,Cambridgeshire County Council,10022802,31/03/2023,134857,1050,Community Safety,64600,Grants And Contributions,"7,053.05",1
Cambridge City Council,Carter Jonas LLP,10141403,14/04/2023,136127,1750,Property Services,62400,Consultancy Fees,750.00,1
Cambridge City Council,Centre 33,10025400,19/04/2023,136355,1057,Community Development Voluntary Support,64600,Grants And Contributions,"11,500.00",1
Cambridge City Council,Centre 33,10025400,19/04/2023,136356,1208,Sustainable City,64600,Grants And Contributions,"10,000.00",1
Cambridge City Council,CFH Docmail Ltd,10025900,12/04/2023,135863,1352,Electoral Registration,62001,Printing,"1,293.02",1
Cambridge City Council,Champion Plumbing & Heating Services Ltd,10869000,31/03/2023,135822,200002,Mandatory Disabled Facilities Grants (Owner Occupiers),70015,CAPEX - Grants Paid,626.40,1
Cambridge City Council,"Change, Grow, Live",10026000,31/03/2023,134842,1516,CLG Supplementary Homelessness Grants,64600,Grants And Contributions,"24,759.00",1
Cambridge City Council,Chassis Cab Ltd,10027000,03/04/2023,135706,1031,Fleet Management - Operational,61703,"Purchase - Equipment, Furniture And Materials",625.00,1
Cambridge City Council,Cherry Hinton Residents Association,10232600,06/04/2023,135399,1057,Community Development Voluntary Support,64600,Grants And Contributions,"1,850.00",1
Cambridge City Council,Cherry Hinton Residents Association,10232600,06/04/2023,135398,1208,Sustainable City,64600,Grants And Contributions,726.00,1
Cambridge City Council,Cherryl Henry-Leach,11101000,29/03/2023,135305,1050,Community Safety,62900,Events,"1,583.33",1
Cambridge City Council,Childcare Vouchers Limited,10028300,14/04/2023,136155,5000,Salary Sacrifice Schemes Holding Account,60106,Childcare Admin Vouchers,"3,285.00",1
Cambridge City Council,Chubb Fire & Security Limited,10029100,03/04/2023,135224,1260,Corn Exchange and Guildhalls,61702,"Maintenance - Equipment, Furniture And Materials",997.60,1
Cambridge City Council,CIP (Cromwell Road) LLP,10366900,04/04/2023,135611,100225,Cromwell Road Redevelopment (GF),70001,CAPEX - Acquisition of Land & Existing Building,"135,196.00",1
Cambridge City Council,CIP (Cromwell Road) LLP,10366900,04/04/2023,135611,300085,New Build - Cromwell Road Redevelopment (HRA),70002,CAPEX - Building Contractor/Works,"161,175.00",1
Cambridge City Council,CIP Orchard Park L2 LLP,10936000,04/04/2023,135226,300096,New Build - L2,70002,CAPEX - Building Contractor/Works,"257,579.55",1
Cambridge City Council,CIP Orchard Park L2 LLP,10936000,04/04/2023,135173,300096,New Build - L2,70010,CAPEX - Other Professional Fees,"4,935.91",1
Cambridge City Council,CIPFA Business Limited,10029700,06/03/2023,136320,8006,Accountancy and Support Services,62003,"Books, Publications And Resources","4,055.00",1
Cambridge City Council,CIPFA Business Limited,10029700,14/03/2023,135959,1801,Local Taxation,64800,Membership And Subscriptions,"1,707.50",1
Cambridge City Council,CIPFA Business Limited,10029700,14/03/2023,135959,1802,Housing Benefits,64800,Membership And Subscriptions,"1,707.50",1
Cambridge City Council,City Signs Cambridge,10030100,30/03/2023,135049,300088,Estate Investment,70002,CAPEX - Building Contractor/Works,"1,722.00",1
Cambridge City Council,Civica UK Ltd,10191300,29/03/2023,135572,1758,Other Commercial Properties,64073,ICT Maintenance and Support,"12,600.00",1
Cambridge City Council,Clanpress (Kings Lynn) Ltd,10030500,28/02/2023,135750,6002,Resident Involvement,62001,Printing,"1,428.00",1
Cambridge City Council,Clare Hopkins,10169100,05/04/2023,135575,6203,Asset Management and Compliance,62400,Consultancy Fees,"8,740.42",1
Cambridge City Council,CMS Training Ltd,10031300,25/04/2023,136942,8003,Human Resources - Organisational Development,64300,Conference Expenses,655.00,1
Cambridge City Council,CN Security Ltd,,05/04/2023,135329,750312,,63800,Security Services (Excluding Premises),840.00,1
Cambridge City Council,COFARM Cambridge,10546300,06/04/2023,135401,1057,Community Development Voluntary Support,64600,Grants And Contributions,"3,750.00",1
Cambridge City Council,COFARM Cambridge,10546300,06/04/2023,135400,1208,Sustainable City,64600,Grants And Contributions,"2,500.00",1
Cambridge City Council,Coleridge Community Forum,11038800,19/04/2023,136350,1057,Community Development Voluntary Support,64600,Grants And Contributions,846.00,1
Cambridge City Council,Comensura Ltd,10031900,05/04/2023,135377,5024,E_invoicing Suspense Accounts,69100,Expenditure In Holding Account Awaiting Allocation,"48,232.70",1
Cambridge City Council,Complete Cleaning Management Ltd,10032300,01/04/2023,134979,1031,Fleet Management - Operational,60502,Cleaning Contract,590.00,1
Cambridge City Council,Compton & Casburn Ltd,10117600,24/04/2023,136847,6207,Repairs Day to Day,60233,Housing Repairs - Work Given To External Contractors,625.00,1
Cambridge City Council,Compton & Casburn Ltd,10117600,24/04/2023,136859,6207,Repairs Day to Day,60233,Housing Repairs - Work Given To External Contractors,650.00,1
Cambridge City Council,Compton & Parkinson Ltd,10117700,31/03/2023,134843,300008,Central Heating / Boilers,70002,CAPEX - Building Contractor/Works,"2,480.00",1
Cambridge City Council,Conscious Communications Ltd,10619200,12/04/2023,136815,1253,Cambridgeshire and Peterborough Region of Learning,62005,"Advertising, Publicity And Marketing","2,485.67",1
Cambridge City Council,Cooleraid Ltd,10033001,12/04/2023,135753,8017,Mandela House,64200,Subsistence,758.46,1
Cambridge City Council,COPE,10033301,24/04/2023,136699,1057,Community Development Voluntary Support,64600,Grants And Contributions,"5,050.00",1
Cambridge City Council,Countryside Properties (UK) Ltd,10033800,11/04/2023,136949,100020,Development Of land at Clay Farm,70002,CAPEX - Building Contractor/Works,963.27,1
Cambridge City Council,Countryside Properties (UK) Ltd,10033800,11/04/2023,136949,100020,Development Of land at Clay Farm,70017,CAPEX - Purchase of Plant Machinery & Equipment,647.29,1
Cambridge City Council,Create Signs Ltd,10958800,01/04/2023,136248,1870,Public Toilets,60201,Cyclical/Planned Maintenance - Building,570.00,1
Cambridge City Council,Cromwell Fire Ltd,10034200,24/03/2023,136251,6215,Risk and Compliance,60205,Fire Assessment And Safety,"2,350.00",1
Cambridge City Council,Crowdsafe UK,10939500,31/03/2023,135826,700419,,63800,Security Services (Excluding Premises),"1,269.61",1
Cambridge City Council,Crowdsafe UK,10939500,11/04/2023,136008,700460,,63800,Security Services (Excluding Premises),717.86,1
Cambridge City Council,Crowdsafe UK,10939500,11/04/2023,136006,700463,,63800,Security Services (Excluding Premises),"1,253.64",1
Cambridge City Council,Crowdsafe UK,10939500,11/04/2023,136007,700476,,63800,Security Services (Excluding Premises),"1,253.64",1
Cambridge City Council,Currie & Brown (UK) Ltd,10034800,31/03/2023,135001,300006,Insulation / Energy Efficiency,70010,CAPEX - Other Professional Fees,500.00,1
Cambridge City Council,Cyclescheme Ltd,10376200,18/04/2023,136232,5000,Salary Sacrifice Schemes Holding Account,60106,Childcare Admin Vouchers,"1,208.33",1
Cambridge City Council,D Carman BSSR Ltd,10118100,05/04/2023,135665,8015,Guildhall,60201,Cyclical/Planned Maintenance - Building,"4,895.00",1
Cambridge City Council,D Carman BSSR Ltd,10118100,05/04/2023,135666,8015,Guildhall,60201,Cyclical/Planned Maintenance - Building,"3,765.00",1
Cambridge City Council,D Carman BSSR Ltd,10118100,05/04/2023,135667,8015,Guildhall,60201,Cyclical/Planned Maintenance - Building,"4,775.00",1
Cambridge City Council,D Carman BSSR Ltd,10118100,05/04/2023,135670,8015,Guildhall,60201,Cyclical/Planned Maintenance - Building,"3,685.00",1
Cambridge City Council,D Carman BSSR Ltd,10118100,12/04/2023,135797,8025,Cowley Road Compound,60201,Cyclical/Planned Maintenance - Building,746.00,1
Cambridge City Council,D2D Distribution Ltd,10035400,08/03/2023,136818,1202,Corporate Marketing,62005,"Advertising, Publicity And Marketing","4,173.00",1
Cambridge City Council,David Powell t/a D J Kitchens,10137900,16/04/2023,136133,6207,Repairs Day to Day,60233,Housing Repairs - Work Given To External Contractors,"1,700.00",1
Cambridge City Council,David Powell t/a D J Kitchens,10137900,16/04/2023,136138,6207,Repairs Day to Day,60233,Housing Repairs - Work Given To External Contractors,885.00,1
Cambridge City Council,David Powell t/a D J Kitchens,10137900,23/04/2023,136821,6208,Voids,60233,Housing Repairs - Work Given To External Contractors,650.00,1
Cambridge City Council,David Powell t/a D J Kitchens,10137900,23/04/2023,136823,6208,Voids,60233,Housing Repairs - Work Given To External Contractors,525.00,1
Cambridge City Council,David Powell t/a D J Kitchens,10137900,16/04/2023,136525,6208,Voids,60233,Housing Repairs - Work Given To External Contractors,562.00,1
Cambridge City Council,David Powell t/a D J Kitchens,10137900,16/04/2023,136158,6208,Voids,60233,Housing Repairs - Work Given To External Contractors,925.00,1
Cambridge City Council,David Powell t/a D J Kitchens,10137900,16/04/2023,136159,6208,Voids,60233,Housing Repairs - Work Given To External Contractors,750.00,1
Cambridge City Council,David Powell t/a D J Kitchens,10137900,16/04/2023,136144,6208,Voids,60233,Housing Repairs - Work Given To External Contractors,"5,830.00",1
Cambridge City Council,Dawling Ltd T/A J & J Drake,10118000,31/03/2023,135037,6207,Repairs Day to Day,60233,Housing Repairs - Work Given To External Contractors,"3,627.23",1
Cambridge City Council,Defib Store Ltd,11122100,31/03/2023,134980,300088,Estate Investment,70017,CAPEX - Purchase of Plant Machinery & Equipment,"11,685.00",1
Cambridge City Council,Denis Wilson Court Social Club,10171700,06/04/2023,135402,1057,Community Development Voluntary Support,64600,Grants And Contributions,625.00,1
Cambridge City Council,Dennis Eagle Ltd,10036900,28/02/2023,136600,1031,Fleet Management - Operational,61703,"Purchase - Equipment, Furniture And Materials",610.32,1
Cambridge City Council,Dennis Eagle Ltd,10036900,28/02/2023,136600,1031,Fleet Management - Operational,61703,"Purchase - Equipment, Furniture And Materials",932.80,1
Cambridge City Council,Dennis Eagle Ltd,10036900,19/04/2023,137157,1031,Fleet Management - Operational,61703,"Purchase - Equipment, Furniture And Materials",612.42,1
Cambridge City Council,Dennis Eagle Ltd,10036900,05/04/2023,135706,1031,Fleet Management - Operational,61703,"Purchase - Equipment, Furniture And Materials",606.68,1
Cambridge City Council,Dennis Eagle Ltd,10036900,06/03/2023,136600,1032,Garage- External Work,61703,"Purchase - Equipment, Furniture And Materials",610.32,1
Cambridge City Council,Dennis Eagle Ltd,10036900,11/04/2023,136327,1032,Garage- External Work,61703,"Purchase - Equipment, Furniture And Materials",616.42,1
Cambridge City Council,Dennis Eagle Ltd,10036900,11/04/2023,136327,1032,Garage- External Work,61703,"Purchase - Equipment, Furniture And Materials",616.43,1
Cambridge City Council,Dennis Eagle Ltd,10036900,28/03/2023,135170,1032,Garage- External Work,61703,"Purchase - Equipment, Furniture And Materials",570.15,1
Cambridge City Council,"Department for Business, Energy & Industrial Strategy",,14/04/2023,136066,650043,,75000,CAPINC - Receipt of Capital Grants,"1,919,826.88",1
Cambridge City Council,"Department for Business, Energy & Industrial Strategy",,14/04/2023,136069,650044,,75000,CAPINC - Receipt of Capital Grants,"679,577.53",1
Cambridge City Council,Department For Communities & Local Government,10037200,19/04/2023,136658,9901,Housing Revenue Account Balance Sheet,30004,Capital Receipts Reserve,"177,892.91",1
Cambridge City Council,Disability Huntingdonshire,11167700,24/04/2023,136705,1057,Community Development Voluntary Support,64600,Grants And Contributions,"8,000.00",1
Cambridge City Council,District Councils Network,10038000,26/04/2023,137474,1200,Corporate Management,64800,Membership And Subscriptions,"4,023.00",1
Cambridge City Council,Dr Karen Skinner,10187700,10/04/2023,135757,1504,Housing Advice Service,63300,Professional Services - General,"2,065.00",1
Cambridge City Council,Driscoll Kingston Solicitors,10983300,25/04/2023,137053,6207,Repairs Day to Day,63200,Legal Fees,"11,000.00",1
Cambridge City Council,Driscoll Kingston Solicitors,10983300,05/04/2023,135239,6207,Repairs Day to Day,66600,Compensation,800.00,1
Cambridge City Council,DSB Engineering Supplies,10039000,23/03/2023,135002,1031,Fleet Management - Operational,61500,Consumables,520.83,1
Cambridge City Council,Duncan Cameron & Hutchinson Ltd,11119800,24/03/2023,135717,100256,CHUB - community extension to Cherry Hinton library,70002,CAPEX - Building Contractor/Works,"10,833.73",1
Cambridge City Council,Eastfield Guest House Ltd,10262600,27/03/2023,134476,1532,Bed & Breakfast (B&B) Costs,64401,B&B Accommodation,"1,610.00",1
Cambridge City Council,Eastfield Guest House Ltd,10262600,10/04/2023,135673,1532,Bed & Breakfast (B&B) Costs,64401,B&B Accommodation,"4,950.83",1
Cambridge City Council,Eastfield Guest House Ltd,10262600,17/04/2023,136186,1532,Bed & Breakfast (B&B) Costs,64401,B&B Accommodation,"4,356.67",1
Cambridge City Council,Eastfield Guest House Ltd,10262600,03/04/2023,135756,1532,Bed & Breakfast (B&B) Costs,64401,B&B Accommodation,"2,590.00",1
Cambridge City Council,ECD Architects Ltd,11110200,31/03/2023,135550,300006,Insulation / Energy Efficiency,70008,CAPEX - Architects Fees,"22,840.00",1
Cambridge City Council,Echelon Consultancy Ltd,11056900,31/03/2023,135613,1217,Our Cambridge Transformation Programme,62400,Consultancy Fees,"15,352.00",1
Cambridge City Council,Eddisons Commercial Ltd,10420000,31/03/2023,134953,1758,Other Commercial Properties,62400,Consultancy Fees,"5,655.00",1
Cambridge City Council,Eddisons Commercial Ltd,10420000,31/03/2023,134953,1758,Other Commercial Properties,62400,Consultancy Fees,975.00,1
Cambridge City Council,EDF Energy,10040501,11/04/2023,136188,6102,Temporary Accommodation,60305,Gas,544.16,1
Cambridge City Council,EDF Energy,10040501,05/04/2023,136189,6102,Temporary Accommodation,60305,Gas,703.93,1
Cambridge City Council,Edmundson Electrical Ltd,10040600,03/04/2023,135704,9900,General Fund Balance Sheet,11600,Consumable Stores,819.00,1
Cambridge City Council,Edmundson Electrical Ltd,10040600,11/04/2023,136323,9900,General Fund Balance Sheet,11600,Consumable Stores,840.00,1
Cambridge City Council,EMS Lifts Ltd,10041800,31/03/2023,135334,6205,Citywide Schemes,60227,Housing Repairs - Lift Maintenance (Disabled),762.35,1
Cambridge City Council,EMS Lifts Ltd,10041800,31/03/2023,135336,6205,Citywide Schemes,60227,Housing Repairs - Lift Maintenance (Disabled),781.97,1
Cambridge City Council,EMS Lifts Ltd,10041800,24/04/2023,136922,6205,Citywide Schemes,60227,Housing Repairs - Lift Maintenance (Disabled),503.80,1
Cambridge City Council,EMS Lifts Ltd,10041800,19/04/2023,136533,300000,Disabled Adaptions,70002,CAPEX - Building Contractor/Works,"2,694.00",1
Cambridge City Council,EMS Lifts Ltd,10041800,19/04/2023,137061,200001,Mandatory Disabled Facilities Grants (Tenants),70015,CAPEX - Grants Paid,"1,729.51",1
Cambridge City Council,Ensors Accountants LLP,10463500,31/03/2023,134864,6007,Departmental Overheads-Client,62100,Audit Fees,"3,700.00",1
Cambridge City Council,Entertee Hire Services Ltd,10311400,03/06/2022,136190,1261,City Events,61700,Hire - Equipment Furniture And Materials,"4,230.00",1
Cambridge City Council,Entertee Hire Services Ltd,10311400,24/06/2022,136191,1261,City Events,61700,Hire - Equipment Furniture And Materials,"3,172.50",1
Cambridge City Council,Entertee Hire Services Ltd,10311400,19/04/2023,136192,1261,City Events,61710,Hire of Marquees/Staging,"2,400.00",1
Cambridge City Council,Entertee Hire Services Ltd,10311400,03/06/2022,136193,1261,City Events,61710,Hire of Marquees/Staging,"1,800.00",1
Cambridge City Council,ESPO,10043700,01/03/2023,134819,1260,Corn Exchange and Guildhalls,61703,"Purchase - Equipment, Furniture And Materials",709.00,1
Cambridge City Council,Essex County Council,10044100,18/04/2023,136902,8014,3C Legal Practice,64800,Membership And Subscriptions,"1,050.00",1
Cambridge City Council,Euclid Limited,10044300,31/03/2023,135307,1712,Taxicard Service,62001,Printing,928.55,1
Cambridge City Council,Faithfull Floor Coverings,10266500,17/04/2023,137127,9900,General Fund Balance Sheet,11600,Consumable Stores,"3,977.88",1
Cambridge City Council,Foster Building Services Ltd,10856700,13/04/2023,137477,200002,Mandatory Disabled Facilities Grants (Owner Occupiers),70015,CAPEX - Grants Paid,569.52,1
Cambridge City Council,Foster Property Maintenance Ltd,10046700,04/04/2023,135048,6208,Voids,60233,Housing Repairs - Work Given To External Contractors,"28,788.05",1
Cambridge City Council,Foster Property Maintenance Ltd,10046700,20/04/2023,137001,6208,Voids,60233,Housing Repairs - Work Given To External Contractors,"46,234.65",1
Cambridge City Council,Foster Property Maintenance Ltd,10046700,06/04/2023,135612,5024,E_invoicing Suspense Accounts,69100,Expenditure In Holding Account Awaiting Allocation,"1,224,228.38",1
Cambridge City Council,Foster Property Maintenance Ltd,10046700,04/04/2023,135048,300013,Kitchens,70003,CAPEX - Building Contractor/Works - Voids & Emergencies,"7,172.22",1
Cambridge City Council,Foster Property Maintenance Ltd,10046700,20/04/2023,137001,300013,Kitchens,70003,CAPEX - Building Contractor/Works - Voids & Emergencies,"3,330.91",1
Cambridge City Council,Freeths LLP,10128502,26/04/2023,137526,1506,Housing Development Agency,63200,Legal Fees,637.00,1
Cambridge City Council,Freeths LLP,10128502,29/03/2023,135036,100391,Loan to CIP to purchase land south of Cambridge,70010,CAPEX - Other Professional Fees,755.40,1
Cambridge City Council,Freeths LLP,10128502,30/12/2022,127221,300113,Hills Avenue POD Homes,70010,CAPEX - Other Professional Fees,"2,230.41",1
Cambridge City Council,Friends of Histon Road Cemetery,10047100,06/04/2023,135404,1057,Community Development Voluntary Support,64600,Grants And Contributions,700.00,1
Cambridge City Council,Friends of Jesus Green Swimming Pool,11169800,26/04/2023,137490,1102,Leisure Contract Client Costs,64600,Grants And Contributions,"1,140.00",1
Cambridge City Council,Furnitubes International Limited,10047900,12/04/2023,136156,1864,Closed Churchyards,60503,Grounds Maintenance,"3,632.00",1
Cambridge City Council,Furnitubes International Limited,10047900,31/03/2023,135005,1864,Closed Churchyards,60503,Grounds Maintenance,"3,907.00",1
Cambridge City Council,Futurebright Solutions Ltd,10761500,12/04/2023,135828,1217,Our Cambridge Transformation Programme,62400,Consultancy Fees,"7,500.00",1
Cambridge City Council,Gaskin Brothers Ltd,10118700,04/04/2023,135180,1883,Drainage Team,60501,Cleaning Services,"5,223.75",1
Cambridge City Council,Gaskin Brothers Ltd,10118700,04/04/2023,135228,1100,Sport & Recreation Administration,60503,Grounds Maintenance,"1,060.00",1
Cambridge City Council,GCUK Propco Limited t/a Graduate Cambridge Hotel,10952800,31/03/2023,134987,1263,Cultural Services and Events - Central,60402,Premises Hire - Facilities,500.00,1
Cambridge City Council,Glo-Bell London Ltd,10119000,18/04/2023,136330,8017,Mandela House,60201,Cyclical/Planned Maintenance - Building,"1,185.00",1
Cambridge City Council,Glo-Bell London Ltd,10119000,20/04/2023,136725,8018,Admin Building Allocation,61703,"Purchase - Equipment, Furniture And Materials",780.00,1
Cambridge City Council,Gort Scott Ltd,10165900,31/03/2023,134888,100200,Redevelopment of Silver Street Toilets,70008,CAPEX - Architects Fees,"3,175.00",1
Cambridge City Council,Goshen Multi-Services Ltd,10793300,01/04/2023,135059,1870,Public Toilets,60502,Cleaning Contract,"20,572.11",1
Cambridge City Council,Goshen Multi-Services Ltd,10793300,01/04/2023,135466,5024,E_invoicing Suspense Accounts,69100,Expenditure In Holding Account Awaiting Allocation,"28,552.37",1
Cambridge City Council,Goshen Multi-Services Ltd,10793300,01/04/2023,135466,5024,E_invoicing Suspense Accounts,69100,Expenditure In Holding Account Awaiting Allocation,"7,925.63",1
Cambridge City Council,Goshen Multi-Services Ltd,10793300,31/03/2023,135463,5024,E_invoicing Suspense Accounts,69100,Expenditure In Holding Account Awaiting Allocation,"19,874.64",1
Cambridge City Council,Goshen Multi-Services Ltd,10793300,31/03/2023,135463,5024,E_invoicing Suspense Accounts,69100,Expenditure In Holding Account Awaiting Allocation,"3,974.74",1
Cambridge City Council,Grant Caveney t/a JTC Electrical Services,10637200,24/04/2023,136872,1870,Public Toilets,60201,Cyclical/Planned Maintenance - Building,750.00,1
Cambridge City Council,Green Goblet Limited,10397800,12/04/2023,135767,1260,Corn Exchange and Guildhalls,61900,Catering And Vending Supplies,"2,175.00",1
Cambridge City Council,Ground Control Ltd,10264600,30/03/2023,135309,1774,"Cambridge Road Retail Park, Haverhill",60503,Grounds Maintenance,596.84,1
Cambridge City Council,Ground Control Ltd,10264600,30/03/2023,135552,1774,"Cambridge Road Retail Park, Haverhill",60503,Grounds Maintenance,596.84,1
Cambridge City Council,Groundwork East,10052100,29/03/2023,135050,1107,Healthy Weights,61703,"Purchase - Equipment, Furniture And Materials",750.00,1
Cambridge City Council,Guest Road Residents Associaton,11166600,19/04/2023,136406,1057,Community Development Voluntary Support,62900,Events,500.00,1
Cambridge City Council,Hako Machines Ltd,10052800,27/04/2023,137803,1858,Public Realm Enforcement,61703,"Purchase - Equipment, Furniture And Materials","2,052.11",1
Cambridge City Council,Hill Partnerships Limited,10214300,12/04/2023,137559,100258,Meadows Community Hub and Buchan St retail outlet,70001,CAPEX - Acquisition of Land & Existing Building,"11,352.93",1
Cambridge City Council,Hill Partnerships Limited,10214300,03/04/2023,135729,300089,New Build - Clerk Maxwell Road,70001,CAPEX - Acquisition of Land & Existing Building,"141,201.00",1
Cambridge City Council,Hill Partnerships Limited,10214300,14/03/2023,134841,100347,Colville Rd Phase 3 - replacement of commercial units,70002,CAPEX - Building Contractor/Works,"23,911.42",1
Cambridge City Council,Hill Partnerships Limited,10214300,14/03/2023,134841,100347,Colville Rd Phase 3 - replacement of commercial units,70002,CAPEX - Building Contractor/Works,993.90,1
Cambridge City Council,Hill Partnerships Limited,10214300,21/03/2023,134954,300090,New Build - Meadows and Buchan Street,70002,CAPEX - Building Contractor/Works,"406,674.99",1
Cambridge City Council,Hill Partnerships Limited,10214300,12/04/2023,137081,300090,New Build - Meadows and Buchan Street,70002,CAPEX - Building Contractor/Works,"823,454.68",1
Cambridge City Council,Hill Partnerships Limited,10214300,30/03/2023,137494,300091,New Build - Campkin Road Phase 2,70002,CAPEX - Building Contractor/Works,"513,608.74",1
Cambridge City Council,Hill Partnerships Limited,10214300,30/03/2023,137494,300091,New Build - Campkin Road Phase 2,70002,CAPEX - Building Contractor/Works,"6,723.58",1
Cambridge City Council,Hill Partnerships Limited,10214300,30/03/2023,137494,300091,New Build - Campkin Road Phase 2,70002,CAPEX - Building Contractor/Works,"9,537.66",1
Cambridge City Council,Hill Partnerships Limited,10214300,14/03/2023,134840,300097,New Build - Colville Road III,70002,CAPEX - Building Contractor/Works,"299,834.80",1
Cambridge City Council,Histon Early Years Centre,11123400,26/04/2023,137811,1517,Syrian Resettlement,64600,Grants And Contributions,600.00,1
Cambridge City Council,Hobsons Conduit Trust,11146200,29/03/2023,135219,1883,Drainage Team,60501,Cleaning Services,"4,750.00",1
Cambridge City Council,Hollis Global Ltd,10216900,20/04/2023,136967,1778,"The Global Centre, Swanns Road, Cambridge",62400,Consultancy Fees,"1,725.00",1
Cambridge City Council,Hollis Global Ltd,10216900,20/04/2023,136967,1778,"The Global Centre, Swanns Road, Cambridge",62400,Consultancy Fees,750.00,1
Cambridge City Council,Home Group Ltd,10055400,01/04/2023,135993,1533,Emergency / Temporary Accommodation (GF),60400,Rents Payable,"38,870.04",1
Cambridge City Council,Home-Start Cambridgeshire,10055700,06/04/2023,135405,1057,Community Development Voluntary Support,64600,Grants And Contributions,"5,000.00",1
Cambridge City Council,Hope Into Action UK,10378500,24/04/2023,136704,1526,Homelessness Prevention Grant,64600,Grants And Contributions,"10,000.00",1
Cambridge City Council,Houghton & Son Ltd,10908100,06/04/2023,135486,9900,General Fund Balance Sheet,21003,Construction Industry Tax (Cis),678.00,1
Cambridge City Council,Houghton & Son Ltd,10908100,11/02/2023,136664,200001,Mandatory Disabled Facilities Grants (Tenants),70015,CAPEX - Grants Paid,"14,366.00",1
Cambridge City Council,HQN Ltd,10056500,16/02/2023,135074,6012,City Homes Expenditure,60115,Staff Development And Training,540.00,1
Cambridge City Council,Hundred Houses Society,10223400,25/04/2023,137083,1526,Homelessness Prevention Grant,64600,Grants And Contributions,706.07,1
Cambridge City Council,Huntingdonshire District Council,10056901,31/03/2023,134740,1031,Fleet Management - Operational,60115,Staff Development And Training,"12,805.00",1
Cambridge City Council,Huntingdonshire District Council,10056901,31/03/2023,134744,1031,Fleet Management - Operational,60115,Staff Development And Training,"5,910.83",1
Cambridge City Council,Huntingdonshire District Council,10056901,31/03/2023,134802,1701,3C Building Control,61703,"Purchase - Equipment, Furniture And Materials",760.90,1
Cambridge City Council,Huntingdonshire District Council,10056901,31/03/2023,134808,1850,Grounds Maintenance & Street Cleaning,61703,"Purchase - Equipment, Furniture And Materials",927.00,1
Cambridge City Council,Huntingdonshire District Council,10056901,28/03/2023,134408,6200,Building Maintenance Response - Direct,61703,"Purchase - Equipment, Furniture And Materials","4,368.00",1
Cambridge City Council,Huntingdonshire District Council,10056901,17/04/2023,136198,5118,Integrated Lifestyles Service,61800,Contract Charges,"20,142.54",1
Cambridge City Council,Huntingdonshire District Council,10056901,29/04/2022,137047,1425,Tascomi - Env Health Software,62400,Consultancy Fees,"1,600.00",1
Cambridge City Council,Huntingdonshire District Council,10056901,29/04/2022,137048,1425,Tascomi - Env Health Software,62400,Consultancy Fees,"1,050.00",1
Cambridge City Council,Huntingdonshire District Council,10056901,29/04/2022,137046,1425,Tascomi - Env Health Software,62400,Consultancy Fees,900.00,1
Cambridge City Council,Huntingdonshire District Council,10056901,13/04/2023,135969,8021,IT Contract Costs,63900,Miscellaneous Expenses,"17,178.86",1
Cambridge City Council,Huntingdonshire District Council,10056901,31/03/2023,134797,1073,Community Development - Admin,64070,ICT Hardware,722.95,1
Cambridge City Council,Huntingdonshire District Council,10056901,27/03/2023,133654,1263,Cultural Services and Events - Central,64071,ICT Software,556.50,1
Cambridge City Council,Huntingdonshire District Council,10056901,27/03/2023,133010,1862,Open Space Development,64071,ICT Software,"1,545.00",1
Cambridge City Council,Huntingdonshire District Council,10056901,31/03/2023,134805,1262,Folk Festival,64072,ICT Licences,676.80,1
Cambridge City Council,Huntingdonshire District Council,10056901,29/03/2023,134529,1263,Cultural Services and Events - Central,64072,ICT Licences,"2,142.66",1
Cambridge City Council,Huntingdonshire District Council,10056901,29/03/2023,134530,1263,Cultural Services and Events - Central,64072,ICT Licences,"2,142.58",1
Cambridge City Council,Huntingdonshire District Council,10056901,31/03/2023,135134,1059,Community Facilities (formerly St Lukes Community School),64073,ICT Maintenance and Support,850.00,1
Cambridge City Council,Huntingdonshire District Council,10056901,31/03/2023,135120,1073,Community Development - Admin,64073,ICT Maintenance and Support,"1,998.95",1
Cambridge City Council,Huntingdonshire District Council,10056901,31/03/2023,135122,1073,Community Development - Admin,64073,ICT Maintenance and Support,"1,588.67",1
Cambridge City Council,Huntingdonshire District Council,10056901,17/04/2023,133701,1352,Electoral Registration,64073,ICT Maintenance and Support,"4,767.04",1
Cambridge City Council,Huntingdonshire District Council,10056901,17/04/2023,133701,1353,Elections,64073,ICT Maintenance and Support,"3,178.06",1
Cambridge City Council,Huntingdonshire District Council,10056901,13/04/2023,135971,1519,Shared Home Improvement Agency,64073,ICT Maintenance and Support,"1,803.75",1
Cambridge City Council,Huntingdonshire District Council,10056901,29/05/2022,136727,1862,Open Space Development,64073,ICT Maintenance and Support,"23,228.00",1
Cambridge City Council,Huntingdonshire District Council,10056901,31/03/2023,134735,6102,Temporary Accommodation,64073,ICT Maintenance and Support,"1,580.75",1
Cambridge City Council,Huntingdonshire District Council,10056901,31/03/2023,134729,8021,IT Contract Costs,64073,ICT Maintenance and Support,"25,928.86",1
Cambridge City Council,Huntingdonshire District Council,10056901,17/04/2023,133737,1701,3C Building Control,64077,Telephone And Mobile Phone Costs,749.00,1
Cambridge City Council,Huntingdonshire District Council,10056901,17/04/2023,133738,1701,3C Building Control,64077,Telephone And Mobile Phone Costs,749.00,1
Cambridge City Council,Huntingdonshire District Council,10056901,27/03/2023,134362,100350,S106 Darwin Green community centre equipment and furnishings,70002,CAPEX - Building Contractor/Works,"1,570.44",1
Cambridge City Council,Huntingdonshire District Council,10056901,13/04/2023,135968,100341,Mobile phone replacement,70010,CAPEX - Other Professional Fees,"11,000.00",1
Cambridge City Council,Huntingdonshire District Council,10056901,13/04/2023,135970,100410,Laptop and desktop replacement,70010,CAPEX - Other Professional Fees,"4,697.96",1
Cambridge City Council,Huntingdonshire District Council,10056901,27/03/2023,132997,300077,New Build - Mill Road,70010,CAPEX - Other Professional Fees,"1,574.00",1
Cambridge City Council,Huntingdonshire District Council,10056901,27/03/2023,133649,300077,New Build - Mill Road,70010,CAPEX - Other Professional Fees,860.36,1
Cambridge City Council,Huntingdonshire District Council,10056901,28/03/2023,134315,300077,New Build - Mill Road,70010,CAPEX - Other Professional Fees,965.00,1
Cambridge City Council,Huntingdonshire District Council,10056901,31/03/2023,135121,300090,New Build - Meadows and Buchan Street,70010,CAPEX - Other Professional Fees,602.25,1
Cambridge City Council,Huntingdonshire District Council,10056901,31/03/2023,135122,300090,New Build - Meadows and Buchan Street,70010,CAPEX - Other Professional Fees,728.70,1
Cambridge City Council,Huntingdonshire District Council,10056901,31/03/2023,134756,100220,Shared ICT waste management software - Alloy/Yotta,70022,CAPEX - ICT Hardware,"1,484.00",1
Cambridge City Council,HVP Security Shutters Ltd,10302000,24/04/2023,137126,1073,Community Development - Admin,61702,"Maintenance - Equipment, Furniture And Materials","2,940.70",1
Cambridge City Council,Hygiene Supplies Direct Ltd,11146100,29/03/2023,134957,1077,Community Resilience,61703,"Purchase - Equipment, Furniture And Materials","9,487.50",1
Cambridge City Council,Iliffe Media Ltd,10240600,02/04/2023,134955,1063,The Meadows Community Centre,62005,"Advertising, Publicity And Marketing",640.00,1
Cambridge City Council,Industrial Site Maintenance Ltd,10793100,28/02/2023,135358,5024,E_invoicing Suspense Accounts,69100,Expenditure In Holding Account Awaiting Allocation,"18,675.33",1
Cambridge City Council,Industrial Site Maintenance Ltd,10793100,28/02/2023,135358,5024,E_invoicing Suspense Accounts,69100,Expenditure In Holding Account Awaiting Allocation,"3,735.06",1
Cambridge City Council,Industrial Site Maintenance Ltd,10793100,28/02/2023,135360,5024,E_invoicing Suspense Accounts,69100,Expenditure In Holding Account Awaiting Allocation,882.00,1
Cambridge City Council,Inform CPI Ltd,10164200,05/04/2023,135675,1801,Local Taxation,64073,ICT Maintenance and Support,"3,500.00",1
Cambridge City Council,Inform CPI Ltd,10164200,05/04/2023,135675,8006,Accountancy and Support Services,64073,ICT Maintenance and Support,"3,500.00",1
Cambridge City Council,Institute of Licensing (Events) Ltd,10058901,17/04/2023,136455,1419,Environmental Health Operational Support,60115,Staff Development And Training,577.00,1
Cambridge City Council,Institute of Licensing (Events) Ltd,10058901,17/04/2023,136456,1419,Environmental Health Operational Support,60115,Staff Development And Training,578.00,1
Cambridge City Council,InterQuest Group (UK) Ltd,10930800,31/03/2023,135490,1050,Community Safety,60011,Agency Staff,"8,648.00",1
Cambridge City Council,InterQuest Group (UK) Ltd,10930800,31/03/2023,135553,1217,Our Cambridge Transformation Programme,60011,Agency Staff,"9,750.00",1
Cambridge City Council,IRT Surveys Ltd,10933500,21/03/2023,135076,6203,Asset Management and Compliance,64072,ICT Licences,"5,880.00",1
Cambridge City Council,It Takes a City (Cambridge),10452200,06/04/2023,135406,1526,Homelessness Prevention Grant,64600,Grants And Contributions,"7,500.00",1
Cambridge City Council,Jade Security Services Ltd,10060400,31/03/2023,135768,1661,Parking Administration,63800,Security Services (Excluding Premises),"1,314.00",1
Cambridge City Council,James Button & Co Solicitors,10060600,18/04/2023,136679,1419,Environmental Health Operational Support,64800,Membership And Subscriptions,800.00,1
Cambridge City Council,JLA Ltd,10061700,07/03/2023,135830,6000,Housing Revenue Account - Net Cost of Service,61703,"Purchase - Equipment, Furniture And Materials","3,260.60",1
Cambridge City Council,Johnsons Workwear,10062300,01/04/2023,135311,1031,Fleet Management - Operational,62000,"Clothes, Uniform And Laundry","1,291.75",1
Cambridge City Council,Jones Lang LaSalle Ltd,10364801,28/03/2023,135080,6007,Departmental Overheads-Client,63300,Professional Services - General,"25,000.00",1
Cambridge City Council,Junction CDC Ltd,10062700,19/04/2023,136354,1057,Community Development Voluntary Support,64600,Grants And Contributions,"10,000.00",1
Cambridge City Council,Kestrel Fencing,10119900,31/03/2023,134820,6012,City Homes Expenditure,60271,Security Of Premises,"2,910.50",1
Cambridge City Council,Kestrel Fencing,10119900,31/03/2023,134821,6012,City Homes Expenditure,60271,Security Of Premises,"3,902.54",1
Cambridge City Council,Kestrel Fencing,10119900,31/03/2023,134816,5094,S106 Clay Farm (Alltms & Cmmty Grdn) 11/0319/REM17/0421/REM,60503,Grounds Maintenance,"3,941.06",1
Cambridge City Council,Kestrel Fencing,10119900,14/04/2023,136264,5095,S106 Clay Farm (Green Corridor & NEAP)11/0319/REM Rev Contr,60503,Grounds Maintenance,"1,751.33",1
Cambridge City Council,Kestrel Fencing,10119900,14/04/2023,136312,1866,Open Space Asset Maintenance,61702,"Maintenance - Equipment, Furniture And Materials","1,392.60",1
Cambridge City Council,Kilimanjaro Live Limited,10316000,27/02/2023,135877,9900,General Fund Balance Sheet,20118,Receipts In Advance - Other Entities And Individuals,"17,016.01",1
Cambridge City Council,Lattenbury Services Ltd,10259100,04/04/2023,136010,100295,Logan's Meadow vehicular access,70009,CAPEX - Engineers Fees,"10,140.00",1
Cambridge City Council,Laura Ellen Bacon Ltd,11095300,21/04/2023,137067,5087,S106 Nine Wells (General)06/0795/OUT13/1786/REM Rev Contr.,61800,Contract Charges,"1,373.00",1
Cambridge City Council,LAVAT Consulting Limited,10065800,31/03/2023,135183,8006,Accountancy and Support Services,62400,Consultancy Fees,"1,300.00",1
Cambridge City Council,LAVAT Consulting Limited,10065800,05/04/2023,135460,8006,Accountancy and Support Services,62403,Client Contracts,"2,700.00",1
Cambridge City Council,Leafield Environmental Ltd,11068900,23/03/2023,135052,1858,Public Realm Enforcement,61703,"Purchase - Equipment, Furniture And Materials","1,460.30",1
Cambridge City Council,Live Nation (Music) Uk Ltd,10332300,06/04/2023,135746,9900,General Fund Balance Sheet,20118,Receipts In Advance - Other Entities And Individuals,"19,309.40",1
Cambridge City Council,Living Sport Cambs and Peterborough Sports Partnership Ltd,10266300,19/04/2023,136351,1057,Community Development Voluntary Support,64600,Grants And Contributions,"2,860.00",1
Cambridge City Council,Liz Warwick,10316300,31/03/2023,135231,100358,Depot Relocation programme to create Operational Hub,70010,CAPEX - Other Professional Fees,"15,000.00",1
Cambridge City Council,Local Government Association,10067300,12/04/2023,135770,1351,Members Support,64300,Conference Expenses,555.90,1
Cambridge City Council,LocalGov Improve Ltd,10986600,05/04/2023,135313,8006,Accountancy and Support Services,64800,Membership And Subscriptions,"3,995.00",1
Cambridge City Council,Lodge Roofing Ltd,10120500,24/04/2023,136887,300001,Shared Ownership Repurchase,70002,CAPEX - Building Contractor/Works,"2,960.00",1
Cambridge City Council,Lodge Roofing Ltd,10120500,24/04/2023,136888,300001,Shared Ownership Repurchase,70002,CAPEX - Building Contractor/Works,"3,980.00",1
Cambridge City Council,Logistics UK,10046900,16/11/2022,137543,1031,Fleet Management - Operational,60115,Staff Development And Training,"1,992.00",1
Cambridge City Council,Lubbe & Sons (Bulbs) Ltd,10067700,01/12/2022,134890,6110,City Homes Estate Management,60503,Grounds Maintenance,"6,660.00",1
Cambridge City Council,M G Monk & Son Ltd,10464400,03/04/2023,135316,100324,City centre recovery - Combined Authority grant funding,70002,CAPEX - Building Contractor/Works,"14,220.20",1
Cambridge City Council,M K A Ecology Ltd,10364300,31/03/2023,134824,100358,Depot Relocation programme to create Operational Hub,70020,CAPEX - Feasibility/investigatory work,"1,460.00",1
Cambridge City Council,M Watson Construction Ltd,10122200,31/03/2023,134945,300000,Disabled Adaptions,70002,CAPEX - Building Contractor/Works,"2,340.25",1
Cambridge City Council,M Watson Construction Ltd,10122200,31/03/2023,134946,300000,Disabled Adaptions,70002,CAPEX - Building Contractor/Works,"6,437.22",1
Cambridge City Council,M3 Housing Ltd,10250700,04/04/2023,135232,6201,Building Services - Indirect,60115,Staff Development And Training,750.00,1
Cambridge City Council,Mace Ltd,10290900,28/04/2023,137556,300038,Wall Structure,70010,CAPEX - Other Professional Fees,"8,420.00",1
Cambridge City Council,Making Space,11163200,19/04/2023,136352,1057,Community Development Voluntary Support,64600,Grants And Contributions,600.00,1
Cambridge City Council,Malary Ltd,10068600,06/04/2023,135724,8025,Cowley Road Compound,64050,Waste Disposal Costs,"1,867.50",1
Cambridge City Council,Mallu Cafe,11167600,24/04/2023,136701,1057,Community Development Voluntary Support,62900,Events,800.00,1
Cambridge City Council,Marick Management Ltd,10885500,08/03/2023,136110,100300,Park Street car park development,70002,CAPEX - Building Contractor/Works,"547,341.63",1
Cambridge City Council,Marshall Motor Group Ltd,10069502,04/04/2023,135706,1032,Garage- External Work,61703,"Purchase - Equipment, Furniture And Materials","1,184.81",1
Cambridge City Council,Matts Monitors Ltd,10244300,01/04/2023,135053,1404,Environmental Quality and Growth,61702,"Maintenance - Equipment, Furniture And Materials","3,762.50",1
Cambridge City Council,Maximum Performance,11050500,21/04/2023,136843,8003,Human Resources - Organisational Development,64300,Conference Expenses,645.00,1
Cambridge City Council,Mercer Tree Services Ltd,10071200,31/03/2023,134822,1876,Arboriculture,64040,Tree Works,910.20,1
Cambridge City Council,Mercer Tree Services Ltd,10071200,12/04/2023,135891,6110,City Homes Estate Management,64040,Tree Works,800.00,1
Cambridge City Council,Metric Media Ltd,10401200,17/03/2023,135461,1661,Parking Administration,60300,Signs Erecting & Removal,"4,300.00",1
Cambridge City Council,Metric Media Ltd,10401200,17/03/2023,135461,1661,Parking Administration,62005,"Advertising, Publicity And Marketing","6,362.00",1
Cambridge City Council,Metro Mechanical Services Ltd,10071500,17/04/2023,136218,1774,"Cambridge Road Retail Park, Haverhill",60503,Grounds Maintenance,954.07,1
Cambridge City Council,Metro Mechanical Services Ltd,10071500,17/04/2023,136218,1774,"Cambridge Road Retail Park, Haverhill",60503,Grounds Maintenance,"1,094.51",1
Cambridge City Council,Metro Mechanical Services Ltd,10071500,17/04/2023,136218,1774,"Cambridge Road Retail Park, Haverhill",60503,Grounds Maintenance,972.27,1
Cambridge City Council,MHR International UK Ltd,10875900,28/03/2023,134944,8003,Human Resources - Organisational Development,62400,Consultancy Fees,"1,140.00",1
Cambridge City Council,Mick Perrin Worldwide Ltd,10317700,24/03/2023,135831,700450,,61910,Artist Fees,"6,597.31",1
Cambridge City Council,Morgan Lambert Ltd,10620300,31/03/2023,135590,6211,Heat and Hot Water Servicing,60225,Housing Repairs - Gas Maintenance Contract,"3,022.20",1
Cambridge City Council,Mott Macdonald Ltd,10073101,28/02/2023,134891,100358,Depot Relocation programme to create Operational Hub,70009,CAPEX - Engineers Fees,"31,815.00",1
Cambridge City Council,Motus Truck and Van,10078700,24/04/2023,137157,1032,Garage- External Work,61703,"Purchase - Equipment, Furniture And Materials",600.00,1
Cambridge City Council,Motus Truck and Van,10078700,27/04/2023,137800,1032,Garage- External Work,61703,"Purchase - Equipment, Furniture And Materials","1,404.00",1
Cambridge City Council,Mrs Elizabeth Nicholls,11119900,14/12/2022,136090,6207,Repairs Day to Day,63200,Legal Fees,845.00,1
Cambridge City Council,Mrs Elizabeth Nicholls 2,,13/02/2023,134825,6207,Repairs Day to Day,63200,Legal Fees,600.00,1
Cambridge City Council,Ms Victoria Osler - Five Paper,10294500,08/03/2023,132204,1502,Homelessness Costs,63200,Legal Fees,"1,500.00",1
Cambridge City Council,Ms Victoria Osler - Five Paper,10294500,20/03/2023,136534,1502,Homelessness Costs,63200,Legal Fees,"1,200.00",1
Cambridge City Council,Ms Victoria Osler - Five Paper,10294500,13/02/2023,134877,1502,Homelessness Costs,63200,Legal Fees,"1,800.00",1
Cambridge City Council,Ms Victoria Osler - Five Paper,10294500,28/02/2023,134878,1502,Homelessness Costs,63200,Legal Fees,875.00,1
Cambridge City Council,Museum of Cambridge,10074200,19/04/2023,136336,1057,Community Development Voluntary Support,64600,Grants And Contributions,"7,500.00",1
Cambridge City Council,Navigatr Limited,10851000,19/04/2023,136392,1253,Cambridgeshire and Peterborough Region of Learning,64071,ICT Software,"2,000.00",1
Cambridge City Council,NEC Software Solutions UK Ltd,10076700,20/04/2023,136736,1504,Housing Advice Service,61703,"Purchase - Equipment, Furniture And Materials",588.62,1
Cambridge City Council,NEC Software Solutions UK Ltd,10076700,19/04/2023,136882,1801,Local Taxation,62400,Consultancy Fees,"4,400.00",1
Cambridge City Council,Nemco Utilities Ltd,10075300,17/04/2023,136221,1260,Corn Exchange and Guildhalls,60209,R & M Minor Works,"2,378.77",1
Cambridge City Council,Neopost Ltd,10137601,04/04/2023,135190,5063,Postal Franking,64100,Postage And Courier Services,"10,000.00",1
Cambridge City Council,New Meaning Foundation,11162900,19/04/2023,136342,1057,Community Development Voluntary Support,64600,Grants And Contributions,"4,500.00",1
Cambridge City Council,Nicholas Sabey Developments Ltd,11081700,27/04/2023,137802,1404,Environmental Quality and Growth,60503,Grounds Maintenance,"12,560.00",1
Cambridge City Council,North Newnham Residents Association,11163600,19/04/2023,136397,1057,Community Development Voluntary Support,62900,Events,500.00,1
Cambridge City Council,Northdown Property Services (NPS) Ltd,10926000,12/04/2023,135813,6208,Voids,60220,Housing Repairs - Work To Void Properties,"9,141.22",1
Cambridge City Council,Northdown Property Services (NPS) Ltd,10926000,31/03/2023,134849,6207,Repairs Day to Day,60233,Housing Repairs - Work Given To External Contractors,"1,320.06",1
Cambridge City Council,Northdown Property Services (NPS) Ltd,10926000,30/03/2023,134850,6207,Repairs Day to Day,60233,Housing Repairs - Work Given To External Contractors,"1,256.32",1
Cambridge City Council,Northdown Property Services (NPS) Ltd,10926000,17/04/2023,136842,6207,Repairs Day to Day,60233,Housing Repairs - Work Given To External Contractors,"1,086.93",1
Cambridge City Council,Northdown Property Services (NPS) Ltd,10926000,12/04/2023,135808,6207,Repairs Day to Day,60233,Housing Repairs - Work Given To External Contractors,"4,415.53",1
Cambridge City Council,Northdown Property Services (NPS) Ltd,10926000,12/04/2023,135813,300014,Bathrooms,70003,CAPEX - Building Contractor/Works - Voids & Emergencies,"3,772.37",1
Cambridge City Council,Northdown Property Services (NPS) Ltd,10926000,31/03/2023,135554,200001,Mandatory Disabled Facilities Grants (Tenants),70015,CAPEX - Grants Paid,"6,512.35",1
Cambridge City Council,Nurture Landscapes Ltd,10132000,01/04/2023,135998,1758,Other Commercial Properties,60503,Grounds Maintenance,856.65,1
Cambridge City Council,Nurture Landscapes Ltd,10132000,31/03/2023,134682,1774,"Cambridge Road Retail Park, Haverhill",60503,Grounds Maintenance,851.89,1
Cambridge City Council,OASIS - Offsite Storage & Integrated Services UK Ltd,10155800,31/03/2023,135678,8023,Business Support - Centralised Overheads,63700,Removal Services,713.97,1
Cambridge City Council,Oasis Hotel Harlow Ltd,10195300,24/03/2023,134879,1532,Bed & Breakfast (B&B) Costs,64401,B&B Accommodation,"1,237.50",1
Cambridge City Council,Oasis Hotel Harlow Ltd,10195300,24/03/2023,134880,1532,Bed & Breakfast (B&B) Costs,64401,B&B Accommodation,"1,237.50",1
Cambridge City Council,Ocean 9 Contracting Ltd,11037900,06/04/2023,135595,6208,Voids,60220,Housing Repairs - Work To Void Properties,"2,300.00",1
Cambridge City Council,Ocean 9 Contracting Ltd,11037900,13/04/2023,135978,6208,Voids,60220,Housing Repairs - Work To Void Properties,"3,413.29",1
Cambridge City Council,Ocean 9 Contracting Ltd,11037900,27/03/2023,134948,6208,Voids,60233,Housing Repairs - Work Given To External Contractors,"1,655.08",1
Cambridge City Council,Octagon Design & Marketing Ltd,10333300,01/02/2023,134881,1519,Shared Home Improvement Agency,62005,"Advertising, Publicity And Marketing",500.00,1
Cambridge City Council,Off the Kerb Productions Ltd,10320100,12/04/2023,136014,700241,,61910,Artist Fees,"26,282.76",1
Cambridge City Council,Off the Kerb Productions Ltd,10320100,12/04/2023,135832,700389,,61910,Artist Fees,"13,318.06",1
Cambridge City Council,Optimum Property Consultancy ltd,10126600,24/03/2023,136661,1454,Cambridge Northern Fringe East (CNFE),62400,Consultancy Fees,"63,822.36",1
Cambridge City Council,Orchard Information Systems Ltd,10078400,31/03/2023,135343,300030,Orchard Upgrade,70024,CAPEX - Other Capital Expenditure,900.00,1
Cambridge City Council,Outspoken Logistics Ltd T/A Zedify,11038000,31/03/2023,135649,1077,Community Resilience,64100,Postage And Courier Services,"1,687.50",1
Cambridge City Council,Outspoken Logistics Ltd T/A Zedify,11038000,31/03/2023,134981,8023,Business Support - Centralised Overheads,64100,Postage And Courier Services,"1,656.00",1
Cambridge City Council,OVO Energy Ltd,10607800,14/04/2023,136531,6102,Temporary Accommodation,60305,Gas,572.97,1
Cambridge City Council,PACE Rights Management LLP,11159900,03/04/2023,135685,700462,,60410,Licences,"1,596.41",1
Cambridge City Council,Panther Cambridge Ltd,10079600,31/03/2023,136863,1712,Taxicard Service,63900,Miscellaneous Expenses,"2,073.00",1
Cambridge City Council,Park Retail Limited,10616300,25/04/2023,137092,1506,Housing Development Agency,61703,"Purchase - Equipment, Furniture And Materials",560.80,1
Cambridge City Council,Partners&,10849700,19/04/2023,136469,8009,Insurance Fund,67302,Insurance Claim,"2,738.00",1
Cambridge City Council,Parts Plus Accounts Payable,10412400,25/04/2023,137157,1031,Fleet Management - Operational,61703,"Purchase - Equipment, Furniture And Materials",606.05,1
Cambridge City Council,Passport365 Ltd,11117000,31/03/2023,135234,1868,Play Maintenance,60503,Grounds Maintenance,"1,920.00",1
Cambridge City Council,Paul Barnes Surveying Ltd,11062600,26/02/2023,135185,6207,Repairs Day to Day,63200,Legal Fees,640.00,1
Cambridge City Council,Pearce Sound & Lighting Ltd,10321200,24/03/2023,136447,1260,Corn Exchange and Guildhalls,60209,R & M Minor Works,"4,301.50",1
Cambridge City Council,Pearce Sound & Lighting Ltd,10321200,11/04/2023,135686,1260,Corn Exchange and Guildhalls,61700,Hire - Equipment Furniture And Materials,862.78,1
Cambridge City Council,Pell Frischmann Consultants Ltd,10990400,06/04/2023,135596,100358,Depot Relocation programme to create Operational Hub,70010,CAPEX - Other Professional Fees,"6,995.00",1
Cambridge City Council,Pennon Water Services Ltd t/a Source for Business,10080500,03/04/2023,135034,5024,E_invoicing Suspense Accounts,69100,Expenditure In Holding Account Awaiting Allocation,"2,769.87",1
Cambridge City Council,People Asset Management Ltd,10145100,31/03/2023,134949,8000,Human Resources - Business Support,64300,Conference Expenses,642.36,1
Cambridge City Council,People Asset Management Ltd,10145100,31/03/2023,134949,8000,Human Resources - Business Support,64300,Conference Expenses,"1,167.05",1
Cambridge City Council,Peterborough City Council,10081500,07/03/2023,135040,1776,"4 Cyrus Way, Cygnet Park, Peterborough",60403,Business Rates Payable,"57,856.00",1
Cambridge City Council,Petersfield Area Community Trust PACT,10197000,24/04/2023,136700,1057,Community Development Voluntary Support,64600,Grants And Contributions,"1,000.00",1
Cambridge City Council,Phoenix HSC (UK) Ltd,10372600,22/02/2023,135620,1031,Fleet Management - Operational,60115,Staff Development And Training,995.00,1
Cambridge City Council,Pivot Furniture Ltd,10160900,16/03/2023,132780,1535,Asylum Seekers and Refugees,61703,"Purchase - Equipment, Furniture And Materials","3,714.20",1
Cambridge City Council,Pivot Furniture Ltd,10160900,12/04/2023,135874,1535,Asylum Seekers and Refugees,61703,"Purchase - Equipment, Furniture And Materials","2,808.80",1
Cambridge City Council,Pivot Furniture Ltd,10160900,12/04/2023,135872,1535,Asylum Seekers and Refugees,63700,Removal Services,"2,784.00",1
Cambridge City Council,Plan B Management Solutions Ltd,10905500,21/04/2023,137015,100358,Depot Relocation programme to create Operational Hub,70020,CAPEX - Feasibility/investigatory work,"3,250.00",1
Cambridge City Council,Planday Ltd,11130100,04/04/2023,135544,1260,Corn Exchange and Guildhalls,64800,Membership And Subscriptions,"2,194.50",1
Cambridge City Council,Potter Raper Partnership,10294300,31/03/2023,134892,1506,Housing Development Agency,62400,Consultancy Fees,750.00,1
Cambridge City Council,Potter Raper Partnership,10294300,28/02/2023,134826,1506,Housing Development Agency,62400,Consultancy Fees,500.00,1
Cambridge City Council,Potter Raper Partnership,10294300,31/03/2023,135087,300099,New Build - Fen Road,70002,CAPEX - Building Contractor/Works,"1,741.12",1
Cambridge City Council,Potter Raper Partnership,10294300,28/02/2023,135088,300099,New Build - Fen Road,70002,CAPEX - Building Contractor/Works,"1,741.11",1
Cambridge City Council,Potter Raper Partnership,10294300,31/03/2023,135087,300100,New Build - Ditton Fields,70002,CAPEX - Building Contractor/Works,897.87,1
Cambridge City Council,Potter Raper Partnership,10294300,28/02/2023,135088,300100,New Build - Ditton Fields,70002,CAPEX - Building Contractor/Works,897.86,1
Cambridge City Council,Potter Raper Partnership,10294300,31/03/2023,135087,300103,New Build - Borrowdale,70002,CAPEX - Building Contractor/Works,515.29,1
Cambridge City Council,Potter Raper Partnership,10294300,28/02/2023,135088,300103,New Build - Borrowdale,70002,CAPEX - Building Contractor/Works,515.29,1
Cambridge City Council,Potter Raper Partnership,10294300,31/03/2023,135732,300089,New Build - Clerk Maxwell Road,70010,CAPEX - Other Professional Fees,"2,571.50",1
Cambridge City Council,Potter Raper Partnership,10294300,31/01/2023,135689,300089,New Build - Clerk Maxwell Road,70010,CAPEX - Other Professional Fees,"3,646.05",1
Cambridge City Council,Potter Raper Partnership,10294300,31/01/2023,135054,300097,New Build - Colville Road III,70010,CAPEX - Other Professional Fees,"3,369.70",1
Cambridge City Council,Potter Raper Partnership,10294300,31/03/2023,135135,300097,New Build - Colville Road III,70010,CAPEX - Other Professional Fees,"3,369.70",1
Cambridge City Council,Potter Raper Partnership,10294300,31/01/2023,135688,300108,Fanshawe Road,70010,CAPEX - Other Professional Fees,"12,246.67",1
Cambridge City Council,PPL PRS Ltd,10274200,11/04/2023,135771,700463,,60415,PRS,908.25,1
Cambridge City Council,Print.UK.Com,10083800,27/03/2023,134382,1353,Elections,62001,Printing,"1,700.00",1
Cambridge City Council,Print.UK.Com,10083800,30/03/2023,134905,1353,Elections,62001,Printing,"5,942.68",1
Cambridge City Council,Print.UK.Com,10083800,30/03/2023,134905,1353,Elections,64100,Postage And Courier Services,"43,209.83",1
Cambridge City Council,Prior Associates (Soham) Ltd,11052000,15/02/2023,135546,1701,3C Building Control,62400,Consultancy Fees,"1,200.00",1
Cambridge City Council,Priority Hire Ltd,10084100,31/03/2023,135562,6110,City Homes Estate Management,60909,Vehicle Hire,"1,265.00",1
Cambridge City Council,Priority Hire Ltd,10084100,20/03/2023,136131,6110,City Homes Estate Management,60909,Vehicle Hire,605.00,1
Cambridge City Council,Priority Hire Ltd,10084100,31/03/2023,135563,6200,Building Maintenance Response - Direct,60909,Vehicle Hire,"2,530.00",1
Cambridge City Council,Professional Pest Management Ltd t/a PPM,11133300,11/04/2023,136015,6012,City Homes Expenditure,60271,Security Of Premises,"1,440.00",1
Cambridge City Council,Pro-Flat Specialist Services Ltd,10123200,16/02/2023,134964,300018,Roof Structure,70003,CAPEX - Building Contractor/Works - Voids & Emergencies,"5,167.75",1
Cambridge City Council,Pro-Flat Specialist Services Ltd,10123200,16/02/2023,134965,300018,Roof Structure,70003,CAPEX - Building Contractor/Works - Voids & Emergencies,"5,167.75",1
Cambridge City Council,Promogroup Ltd,11109400,12/04/2023,136112,1353,Elections,62006,Statutory Advertising,"3,440.00",1
Cambridge City Council,Prompt Glazing Ltd,10283900,13/04/2023,135896,1766,Orwell House Offices-Internal,60201,Cyclical/Planned Maintenance - Building,768.90,1
Cambridge City Council,Prompt Glazing Ltd,10283900,19/04/2023,136499,6204,Client and Third Party Repairs,60219,Housing Repairs - Insurances,"1,349.00",1
Cambridge City Council,Prompt Glazing Ltd,10283900,20/04/2023,136512,6208,Voids,60233,Housing Repairs - Work Given To External Contractors,847.75,1
Cambridge City Council,Prompt Glazing Ltd,10283900,21/04/2023,136741,300012,External Doors,70003,CAPEX - Building Contractor/Works - Voids & Emergencies,769.00,1
Cambridge City Council,Prompt Glazing Ltd,10283900,24/04/2023,136742,300012,External Doors,70003,CAPEX - Building Contractor/Works - Voids & Emergencies,746.24,1
Cambridge City Council,Prompt Glazing Ltd,10283900,25/04/2023,137103,300012,External Doors,70003,CAPEX - Building Contractor/Works - Voids & Emergencies,712.50,1
Cambridge City Council,Prompt Glazing Ltd,10283900,13/04/2023,135878,300012,External Doors,70003,CAPEX - Building Contractor/Works - Voids & Emergencies,712.50,1
Cambridge City Council,Prompt Glazing Ltd,10283900,13/04/2023,135895,300012,External Doors,70003,CAPEX - Building Contractor/Works - Voids & Emergencies,769.00,1
Cambridge City Council,Prompt Glazing Ltd,10283900,20/04/2023,136565,300012,External Doors,70003,CAPEX - Building Contractor/Works - Voids & Emergencies,"1,349.00",1
Cambridge City Council,Prompt Glazing Ltd,10283900,24/04/2023,136894,300012,External Doors,70003,CAPEX - Building Contractor/Works - Voids & Emergencies,712.50,1
Cambridge City Council,Prompt Glazing Ltd,10283900,24/04/2023,136895,300012,External Doors,70003,CAPEX - Building Contractor/Works - Voids & Emergencies,"1,464.87",1
Cambridge City Council,Prompt Glazing Ltd,10283900,12/04/2023,135738,300012,External Doors,70003,CAPEX - Building Contractor/Works - Voids & Emergencies,"1,646.50",1
Cambridge City Council,Prompt Glazing Ltd,10283900,12/04/2023,135739,300012,External Doors,70003,CAPEX - Building Contractor/Works - Voids & Emergencies,692.87,1
Cambridge City Council,Prompt Glazing Ltd,10283900,19/04/2022,136481,300012,External Doors,70003,CAPEX - Building Contractor/Works - Voids & Emergencies,769.00,1
Cambridge City Council,Prompt Glazing Ltd,10283900,19/04/2023,136477,300012,External Doors,70003,CAPEX - Building Contractor/Works - Voids & Emergencies,769.00,1
Cambridge City Council,Prompt Glazing Ltd,10283900,24/04/2023,136897,300012,External Doors,70003,CAPEX - Building Contractor/Works - Voids & Emergencies,"1,349.00",1
Cambridge City Council,Prompt Glazing Ltd,10283900,06/04/2023,135492,300012,External Doors,70003,CAPEX - Building Contractor/Works - Voids & Emergencies,"1,349.00",1
Cambridge City Council,Prompt Glazing Ltd,10283900,06/04/2023,135495,300012,External Doors,70003,CAPEX - Building Contractor/Works - Voids & Emergencies,769.00,1
Cambridge City Council,Prompt Glazing Ltd,10283900,17/04/2023,136129,300012,External Doors,70003,CAPEX - Building Contractor/Works - Voids & Emergencies,769.00,1
Cambridge City Council,Prompt Glazing Ltd,10283900,17/04/2023,136130,300012,External Doors,70003,CAPEX - Building Contractor/Works - Voids & Emergencies,"1,481.50",1
Cambridge City Council,Protector Insurance UK,10565800,13/04/2023,135870,8009,Insurance Fund,67302,Insurance Claim,"6,742.48",1
Cambridge City Council,Quartix Ltd,10206900,07/04/2023,135637,5001,City Services Holding Account,69100,Expenditure In Holding Account Awaiting Allocation,"5,045.70",1
Cambridge City Council,R J Warren Ltd,10123500,06/04/2023,135464,1866,Open Space Asset Maintenance,61702,"Maintenance - Equipment, Furniture And Materials","2,275.00",1
Cambridge City Council,R J Warren Ltd,10123500,04/04/2023,135624,1868,Play Maintenance,61702,"Maintenance - Equipment, Furniture And Materials","3,875.00",1
Cambridge City Council,R J Warren Ltd,10123500,18/04/2023,136273,1868,Play Maintenance,61702,"Maintenance - Equipment, Furniture And Materials","3,510.00",1
Cambridge City Council,RA Information Systems,10143900,16/02/2023,134958,1876,Arboriculture,64072,ICT Licences,"7,918.00",1
Cambridge City Council,RCCG City of David,11163500,19/04/2023,136396,1057,Community Development Voluntary Support,62900,Events,500.00,1
Cambridge City Council,Real Ideas Trading Ltd,10928900,28/04/2023,137804,1253,Cambridgeshire and Peterborough Region of Learning,64071,ICT Software,624.30,1
Cambridge City Council,Real Ideas Trading Ltd,10928900,28/04/2023,137804,1253,Cambridgeshire and Peterborough Region of Learning,64071,ICT Software,502.79,1
Cambridge City Council,Regency Aerials (Cambridge) Ltd,10123400,24/04/2023,137014,6207,Repairs Day to Day,60224,Housing Repairs - Tv Aerial Maintenance,"1,467.40",1
Cambridge City Council,Relx (UK) Ltd T/A Lexisnexis UK,10087600,13/03/2023,136161,8014,3C Legal Practice,62002,Stationery,"1,910.00",1
Cambridge City Council,Remembering Icons Ltd t/a The TCB Group,10968300,04/04/2023,136016,700468,,52240,Merchandise Commission,584.80,1
Cambridge City Council,Rencar Services,10087800,24/04/2023,137127,9900,General Fund Balance Sheet,11600,Consumable Stores,540.00,1
Cambridge City Council,Rexel UK Ltd Ta Newey & Eyre,10088100,11/04/2023,136318,9900,General Fund Balance Sheet,11600,Consumable Stores,662.75,1
Cambridge City Council,Rexel UK Ltd Ta Newey & Eyre,10088100,14/04/2023,136323,9900,General Fund Balance Sheet,11600,Consumable Stores,693.20,1
Cambridge City Council,Riggall and Hawksford Ltd,10273500,04/04/2023,135152,6208,Voids,60233,Housing Repairs - Work Given To External Contractors,"1,537.25",1
Cambridge City Council,Riggall and Hawksford Ltd,10273500,21/04/2023,136745,6208,Voids,60233,Housing Repairs - Work Given To External Contractors,830.54,1
Cambridge City Council,Riggall and Hawksford Ltd,10273500,13/04/2023,135928,6208,Voids,60233,Housing Repairs - Work Given To External Contractors,694.51,1
Cambridge City Council,Riggall and Hawksford Ltd,10273500,13/04/2023,135929,6208,Voids,60233,Housing Repairs - Work Given To External Contractors,511.95,1
Cambridge City Council,Riggall and Hawksford Ltd,10273500,18/04/2023,136249,6208,Voids,60233,Housing Repairs - Work Given To External Contractors,"2,876.66",1
Cambridge City Council,Riggall and Hawksford Ltd,10273500,04/04/2023,135156,6208,Voids,60233,Housing Repairs - Work Given To External Contractors,"2,610.91",1
Cambridge City Council,Rightmove Group Ltd,10089400,19/04/2023,136746,1516,CLG Supplementary Homelessness Grants,62005,"Advertising, Publicity And Marketing",998.75,1
Cambridge City Council,Rightmove Group Ltd,10089400,19/04/2023,136536,1758,Other Commercial Properties,62005,"Advertising, Publicity And Marketing",625.00,1
Cambridge City Council,Riverside Area Residents Association,11166400,19/04/2023,136399,1057,Community Development Voluntary Support,62900,Events,500.00,1
Cambridge City Council,Robert Pochin Limited,10089700,17/03/2023,136598,9900,General Fund Balance Sheet,11600,Consumable Stores,620.40,1
Cambridge City Council,Robert Pochin Limited,10089700,21/03/2023,137127,9900,General Fund Balance Sheet,11600,Consumable Stores,954.80,1
Cambridge City Council,Rock Solid Group Ltd,10883000,19/04/2023,136540,700462,,60011,Agency Staff,"2,293.80",1
Cambridge City Council,Rock Solid Group Ltd,10883000,19/04/2023,136541,700485,,60011,Agency Staff,890.00,1
Cambridge City Council,Rock Townsend Architects LLP,11109300,31/03/2023,135055,6203,Asset Management and Compliance,62400,Consultancy Fees,"5,880.00",1
Cambridge City Council,Roseford Residents,11167000,19/04/2023,136421,1057,Community Development Voluntary Support,62900,Events,500.00,1
Cambridge City Council,Rowan Humberstone,10090401,19/04/2023,136337,1057,Community Development Voluntary Support,64600,Grants And Contributions,"2,500.00",1
Cambridge City Council,S J Pollard Building & Maintenance Ltd,10411500,18/04/2023,136508,1260,Corn Exchange and Guildhalls,60209,R & M Minor Works,998.70,1
Cambridge City Council,S J Pollard Building & Maintenance Ltd,10411500,18/04/2023,136505,1260,Corn Exchange and Guildhalls,60209,R & M Minor Works,680.00,1
Cambridge City Council,Safe Partnership Ltd,10890200,21/04/2023,133752,6012,City Homes Expenditure,60271,Security Of Premises,"2,280.00",1
Cambridge City Council,Saunders Boston Ltd,10091900,31/03/2023,135773,300075,New Build - Kendal Way,70008,CAPEX - Architects Fees,"2,950.00",1
Cambridge City Council,Saunders Boston Ltd,10091900,31/03/2023,135772,300086,New Build - Teddar Way,70008,CAPEX - Architects Fees,"2,850.00",1
Cambridge City Council,Serco Limited,10092800,13/04/2023,135982,1202,Corporate Marketing,60115,Staff Development And Training,835.00,1
Cambridge City Council,Sharpe Pritchard LLP,10093300,31/01/2023,134860,1758,Other Commercial Properties,62400,Consultancy Fees,"1,208.00",1
Cambridge City Council,Shift Momentum Ltd,10851100,07/04/2023,135625,1253,Cambridgeshire and Peterborough Region of Learning,69150,Other Services,969.04,1
Cambridge City Council,Shift Momentum Ltd,10851100,07/04/2023,135625,1253,Cambridgeshire and Peterborough Region of Learning,69150,Other Services,"2,187.65",1
Cambridge City Council,Showcase PSR Portsdown Ltd,10148500,11/04/2023,135779,1063,The Meadows Community Centre,61703,"Purchase - Equipment, Furniture And Materials","6,708.07",1
Cambridge City Council,Siemens Financial Services Limited,10093900,10/04/2023,135643,1001,Cambridge Crematorium,61700,Hire - Equipment Furniture And Materials,788.00,1
Cambridge City Council,Site-Equip Ltd,10975800,07/03/2023,135136,1261,City Events,61711,Hire of Toilets,"55,198.00",1
Cambridge City Council,SJM Concerts Ltd,10324500,07/03/2023,133801,9900,General Fund Balance Sheet,20118,Receipts In Advance - Other Entities And Individuals,"18,256.56",1
Cambridge City Council,SJM Concerts Ltd,10324500,01/04/2023,135844,9900,General Fund Balance Sheet,20118,Receipts In Advance - Other Entities And Individuals,"20,870.79",1
Cambridge City Council,Smith Bros (Caer Conan) Wholesale Ltd,10095400,26/04/2023,137799,9900,General Fund Balance Sheet,11600,Consumable Stores,540.00,1
Cambridge City Council,South Cambridgeshire District Council,10096103,14/03/2023,132896,1519,Shared Home Improvement Agency,60400,Rents Payable,"5,000.00",1
Cambridge City Council,South Cambridgeshire District Council,10096103,01/04/2023,134692,1001,Cambridge Crematorium,64050,Waste Disposal Costs,748.80,1
Cambridge City Council,South Cambridgeshire District Council,10096103,31/03/2023,134831,1503,CCC Choice Based Lettings (Revenue),64060,Shared Service Contribution,"9,705.00",1
Cambridge City Council,South Cambridgeshire District Council,10096103,17/04/2023,136749,8006,Accountancy and Support Services,64800,Membership And Subscriptions,661.43,1
Cambridge City Council,South Cambridgeshire District Council,10096103,17/04/2023,136750,8006,Accountancy and Support Services,64800,Membership And Subscriptions,630.00,1
Cambridge City Council,South Cambridgeshire District Council,10096103,22/03/2023,133603,100358,Depot Relocation programme to create Operational Hub,70020,CAPEX - Feasibility/investigatory work,"1,079.12",1
Cambridge City Council,SSE plc - Southern Electric,10096200,13/04/2023,136530,6102,Temporary Accommodation,60303,Electricity,601.42,1
Cambridge City Council,SSE plc - Southern Electric,10096200,31/03/2023,135472,6102,Temporary Accommodation,60303,Electricity,702.90,1
Cambridge City Council,St Giles Church Cambridge,10971500,24/04/2023,136698,1057,Community Development Voluntary Support,62900,Events,500.00,1
Cambridge City Council,St Mary the Less PCC,11068500,19/04/2023,136395,1057,Community Development Voluntary Support,62900,Events,500.00,1
Cambridge City Council,Steel Bones,11163100,19/04/2023,136346,1057,Community Development Voluntary Support,64600,Grants And Contributions,"1,800.00",1
Cambridge City Council,Stock Sweepers Ltd,10451600,20/04/2023,137157,1032,Garage- External Work,61703,"Purchase - Equipment, Furniture And Materials",806.74,1
Cambridge City Council,Streetspace Ltd,10858200,27/04/2023,137563,300088,Estate Investment,70002,CAPEX - Building Contractor/Works,"1,677.15",1
Cambridge City Council,Swatch Group (UK) Ltd T/A Swiss Timing,10100500,20/04/2023,136739,1100,Sport & Recreation Administration,61702,"Maintenance - Equipment, Furniture And Materials","1,164.80",1
Cambridge City Council,Tanner & Hall Roofing & Solar Systems Ltd,10124500,18/04/2023,136357,1758,Other Commercial Properties,60201,Cyclical/Planned Maintenance - Building,"1,900.00",1
Cambridge City Council,Tanner & Hall Roofing & Solar Systems Ltd,10124500,30/03/2023,134700,6207,Repairs Day to Day,60233,Housing Repairs - Work Given To External Contractors,950.00,1
Cambridge City Council,Tanner & Hall Roofing & Solar Systems Ltd,10124500,30/03/2023,134701,6207,Repairs Day to Day,60233,Housing Repairs - Work Given To External Contractors,650.00,1
Cambridge City Council,Tanner & Hall Roofing & Solar Systems Ltd,10124500,30/03/2023,134702,6207,Repairs Day to Day,60233,Housing Repairs - Work Given To External Contractors,"1,200.00",1
Cambridge City Council,Tanner & Hall Roofing & Solar Systems Ltd,10124500,30/03/2023,134703,6207,Repairs Day to Day,60233,Housing Repairs - Work Given To External Contractors,950.00,1
Cambridge City Council,Tanner & Hall Roofing & Solar Systems Ltd,10124500,18/04/2023,136331,6207,Repairs Day to Day,60233,Housing Repairs - Work Given To External Contractors,550.00,1
Cambridge City Council,Tanner & Hall Roofing & Solar Systems Ltd,10124500,18/04/2023,136438,6207,Repairs Day to Day,60233,Housing Repairs - Work Given To External Contractors,"1,450.00",1
Cambridge City Council,Tanner & Hall Roofing & Solar Systems Ltd,10124500,18/04/2023,136441,6207,Repairs Day to Day,60233,Housing Repairs - Work Given To External Contractors,950.00,1
Cambridge City Council,Tanner & Hall Roofing & Solar Systems Ltd,10124500,18/04/2023,136443,6207,Repairs Day to Day,60233,Housing Repairs - Work Given To External Contractors,"1,950.00",1
Cambridge City Council,Tanner & Hall Roofing & Solar Systems Ltd,10124500,18/04/2023,136444,6207,Repairs Day to Day,60233,Housing Repairs - Work Given To External Contractors,"1,950.00",1
Cambridge City Council,Tanner & Hall Roofing & Solar Systems Ltd,10124500,30/03/2023,134931,6207,Repairs Day to Day,60233,Housing Repairs - Work Given To External Contractors,650.00,1
Cambridge City Council,Tanner & Hall Roofing & Solar Systems Ltd,10124500,18/04/2023,136439,300011,Roof Covering,70002,CAPEX - Building Contractor/Works,"1,850.00",1
Cambridge City Council,Technology One (UK) Limited,10101100,21/04/2023,136801,8006,Accountancy and Support Services,64073,ICT Maintenance and Support,"1,250.00",1
Cambridge City Council,Tempo Time Credits Limited,10180600,19/04/2023,136338,1057,Community Development Voluntary Support,64600,Grants And Contributions,"5,000.00",1
Cambridge City Council,Terberg Matec UK Ltd,10101500,03/04/2023,135706,1031,Fleet Management - Operational,61703,"Purchase - Equipment, Furniture And Materials",547.32,1
Cambridge City Council,Terberg Matec UK Ltd,10101500,13/04/2023,136327,1032,Garage- External Work,61703,"Purchase - Equipment, Furniture And Materials","1,015.50",1
Cambridge City Council,The Academy Of Ancient Music,10303300,20/04/2023,136755,9900,General Fund Balance Sheet,20118,Receipts In Advance - Other Entities And Individuals,"5,524.90",1
Cambridge City Council,The Anglia Comedy Co.,10916200,15/04/2023,136145,9900,General Fund Balance Sheet,20118,Receipts In Advance - Other Entities And Individuals,"5,722.50",1
Cambridge City Council,The Beck Co Ltd,10101800,21/04/2023,137127,9900,General Fund Balance Sheet,11600,Consumable Stores,581.76,1
Cambridge City Council,The BSS Group PLC t/a PTS Plumbing Trade Supplies,10102000,20/04/2023,137127,9900,General Fund Balance Sheet,11600,Consumable Stores,"1,263.10",1
Cambridge City Council,The BSS Group PLC t/a PTS Plumbing Trade Supplies,10102000,04/04/2023,135704,9900,General Fund Balance Sheet,11600,Consumable Stores,"1,263.10",1
Cambridge City Council,The C3 Church,10018300,06/04/2023,135391,1057,Community Development Voluntary Support,64600,Grants And Contributions,"5,000.00",1
Cambridge City Council,The Hazard Mgmt & Environmental Services Laboratories Ltd,10101600,14/04/2023,136024,6215,Risk and Compliance,60237,Asbestos Investigation/Surveys,"4,486.25",1
Cambridge City Council,The Hazard Mgmt & Environmental Services Laboratories Ltd,10101600,31/03/2023,134933,6215,Risk and Compliance,60237,Asbestos Investigation/Surveys,890.93,1
Cambridge City Council,The Hazard Mgmt & Environmental Services Laboratories Ltd,10101600,31/03/2023,135013,6215,Risk and Compliance,60237,Asbestos Investigation/Surveys,"1,714.01",1
Cambridge City Council,The Hazard Mgmt & Environmental Services Laboratories Ltd,10101600,31/03/2023,134932,300008,Central Heating / Boilers,70002,CAPEX - Building Contractor/Works,"3,071.17",1
Cambridge City Council,The Homing Club,10474800,19/04/2023,136426,1057,Community Development Voluntary Support,62900,Events,500.00,1
Cambridge City Council,The Kings Hedges Family Support Project,10260200,06/04/2023,135407,1057,Community Development Voluntary Support,64600,Grants And Contributions,"7,500.00",1
Cambridge City Council,The Kite Trust,10103700,06/04/2023,135408,1057,Community Development Voluntary Support,64600,Grants And Contributions,"6,250.00",1
Cambridge City Council,The Riverside Group Ltd - ECHG,10105001,18/04/2023,136252,1502,Homelessness Costs,64402,Hostel Accommodation,"1,088.62",1
Cambridge City Council,The Riverside Group Ltd - ECHG,10105001,18/04/2023,136255,1502,Homelessness Costs,64402,Hostel Accommodation,"1,297.97",1
Cambridge City Council,The Riverside Group Ltd - ECHG,10105001,18/04/2023,136250,1509,Grants to Housing Agencies (CCC funded),69150,Other Services,"2,316.60",1
Cambridge City Council,The Urban Forest Consultancy Ltd,10105700,19/04/2023,136740,1876,Arboriculture,62400,Consultancy Fees,"4,000.00",1
Cambridge City Council,The Wildlife Trust BCN,10105800,25/04/2023,137098,1878,Local Nature Reserves,60503,Grounds Maintenance,"6,080.00",1
Cambridge City Council,Thinkproject UK Ltd,10031200,25/03/2023,134951,6203,Asset Management and Compliance,64800,Membership And Subscriptions,"1,155.00",1
Cambridge City Council,Thistle Insurance Services Ltd,10105900,05/04/2023,135457,6502,Holding Accounts,69343,Insurance Premium - Other,"1,781.03",1
Cambridge City Council,Thomas McLean,10764600,25/04/2023,137100,1251,Culture and Community,62900,Events,600.00,1
Cambridge City Council,Thomson Reuters Professional UK Ltd T/A Sweet & Maxwell,10106000,01/04/2023,135018,8014,3C Legal Practice,62003,"Books, Publications And Resources","26,825.88",1
Cambridge City Council,Total Clean Cambridge,10884600,03/04/2023,137105,1063,The Meadows Community Centre,60502,Cleaning Contract,"2,273.87",1
Cambridge City Council,Total Clean Cambridge,10884600,17/04/2023,136777,1065,Akeman Street Community House,60502,Cleaning Contract,801.51,1
Cambridge City Council,Total Clean Cambridge,10884600,03/10/2022,135344,1065,Akeman Street Community House,60502,Cleaning Contract,730.77,1
Cambridge City Council,Total Clean Cambridge,10884600,26/12/2022,135345,1065,Akeman Street Community House,60502,Cleaning Contract,730.77,1
Cambridge City Council,Totalkare Heavy Duty Workshop Solutions Ltd,10419300,28/02/2023,134829,1032,Garage- External Work,61703,"Purchase - Equipment, Furniture And Materials",600.00,1
Cambridge City Council,Town Legal LLP,11130900,22/03/2023,134960,1002,Bereavement Services - Burials & Grounds,63200,Legal Fees,"7,000.00",1
Cambridge City Council,Travelperk UK IRL Ltd t/a Click Travel,10933600,31/03/2023,134875,5024,E_invoicing Suspense Accounts,69100,Expenditure In Holding Account Awaiting Allocation,"2,267.42",1
Cambridge City Council,Travelperk UK IRL Ltd t/a Click Travel,10933600,31/03/2023,134875,5024,E_invoicing Suspense Accounts,69100,Expenditure In Holding Account Awaiting Allocation,"1,381.64",1
Cambridge City Council,Trowers & Hamlins LLP,10556800,31/03/2023,135320,6007,Departmental Overheads-Client,63300,Professional Services - General,"1,012.00",1
Cambridge City Council,Tructyre Fleet Management Ltd,10364500,03/04/2023,135186,1032,Garage- External Work,61703,"Purchase - Equipment, Furniture And Materials","2,076.44",1
Cambridge City Council,Trumpington Residents Association,10108500,19/04/2023,136425,1057,Community Development Voluntary Support,62900,Events,500.00,1
Cambridge City Council,Trumpington Residents Association,10108500,19/04/2023,136339,1057,Community Development Voluntary Support,64600,Grants And Contributions,"5,750.00",1
Cambridge City Council,TSG Building Services PLC,10125300,10/02/2023,134934,6211,Heat and Hot Water Servicing,60205,Fire Assessment And Safety,"10,220.00",1
Cambridge City Council,TSG Building Services PLC,10125300,28/02/2023,134935,6211,Heat and Hot Water Servicing,60205,Fire Assessment And Safety,"9,216.00",1
Cambridge City Council,TSG Building Services PLC,10125300,10/02/2023,134934,6211,Heat and Hot Water Servicing,60225,Housing Repairs - Gas Maintenance Contract,"68,773.61",1
Cambridge City Council,TSG Building Services PLC,10125300,28/02/2023,134935,6211,Heat and Hot Water Servicing,60225,Housing Repairs - Gas Maintenance Contract,"68,810.70",1
Cambridge City Council,TSG Building Services PLC,10125300,13/04/2023,137026,5024,E_invoicing Suspense Accounts,69100,Expenditure In Holding Account Awaiting Allocation,504.00,1
Cambridge City Council,TSG Building Services PLC,10125300,13/04/2023,137027,5024,E_invoicing Suspense Accounts,69100,Expenditure In Holding Account Awaiting Allocation,"131,209.36",1
Cambridge City Council,TSG Building Services PLC,10125300,13/04/2023,137028,5024,E_invoicing Suspense Accounts,69100,Expenditure In Holding Account Awaiting Allocation,"1,139,502.86",1
Cambridge City Council,Turtle Dove Cambridge,10206100,01/04/2023,134904,1350,Civic Affairs and Twinning,62900,Events,721.50,1
Cambridge City Council,UK Fuels Limited,10192900,16/04/2023,136776,5001,City Services Holding Account,69100,Expenditure In Holding Account Awaiting Allocation,"4,007.44",1
Cambridge City Council,UK Fuels Limited,10192900,02/04/2023,135473,5001,City Services Holding Account,69100,Expenditure In Holding Account Awaiting Allocation,"5,832.72",1
Cambridge City Council,UK Fuels Limited,10192900,09/04/2023,135819,5001,City Services Holding Account,69100,Expenditure In Holding Account Awaiting Allocation,"4,654.99",1
Cambridge City Council,UK Power Networks (Operations) Ltd,10109700,06/04/2023,136314,100309,S106 Nightingale Rec Ground pavilion,70024,CAPEX - Other Capital Expenditure,"13,286.74",1
Cambridge City Council,Unifiedpost Group,10929600,31/03/2023,136124,1352,Electoral Registration,62001,Printing,993.85,1
Cambridge City Council,Unifiedpost Group,10929600,31/03/2023,135698,1801,Local Taxation,62001,Printing,"2,763.53",1
Cambridge City Council,Unifiedpost Group,10929600,31/03/2023,135698,1802,Housing Benefits,62001,Printing,"2,763.53",1
Cambridge City Council,Unifiedpost Group,10929600,31/03/2023,135700,8023,Business Support - Centralised Overheads,62002,Stationery,"1,111.50",1
Cambridge City Council,Unifiedpost Group,10929600,31/03/2023,135701,8023,Business Support - Centralised Overheads,62002,Stationery,"2,010.40",1
Cambridge City Council,Unifiedpost Group,10929600,31/03/2023,135420,8023,Business Support - Centralised Overheads,64100,Postage And Courier Services,"1,137.50",1
Cambridge City Council,Unifiedpost Group,10929600,31/03/2023,135698,8023,Business Support - Centralised Overheads,64100,Postage And Courier Services,"27,819.88",1
Cambridge City Council,University of Cambridge,10110201,27/01/2023,133757,6203,Asset Management and Compliance,64300,Conference Expenses,500.00,1
Cambridge City Council,University of Cambridge,10110201,27/01/2023,133757,6203,Asset Management and Compliance,64300,Conference Expenses,583.33,1
Cambridge City Council,University of Cambridge,10110201,19/04/2023,136340,1057,Community Development Voluntary Support,64600,Grants And Contributions,"7,500.00",1
Cambridge City Council,Veolia ES (UK) Limited,10566500,31/03/2023,135573,6200,Building Maintenance Response - Direct,64050,Waste Disposal Costs,"1,359.90",1
Cambridge City Council,Video Illusions Ltd,10937800,03/04/2023,135238,780004,,61700,Hire - Equipment Furniture And Materials,"9,750.00",1
Cambridge City Council,Virido Management Company Limited,10041902,09/03/2023,135426,6135,"Virido, Clay Farm Third Party Management",60401,Service Charges,"23,739.31",1
Cambridge City Council,Virido Management Company Limited,10041902,09/03/2023,135427,6135,"Virido, Clay Farm Third Party Management",60401,Service Charges,"10,638.89",1
Cambridge City Council,Virido Management Company Limited,10041902,09/03/2023,135428,6135,"Virido, Clay Farm Third Party Management",60401,Service Charges,"18,770.39",1
Cambridge City Council,Virido Management Company Limited,10041902,09/03/2023,135429,6135,"Virido, Clay Farm Third Party Management",60401,Service Charges,"24,353.61",1
Cambridge City Council,Virido Management Company Limited,10041902,09/03/2023,135431,6135,"Virido, Clay Farm Third Party Management",60401,Service Charges,"4,006.38",1
Cambridge City Council,Virido Management Company Limited,10041902,09/03/2023,135432,6135,"Virido, Clay Farm Third Party Management",60401,Service Charges,580.85,1
Cambridge City Council,Virido Management Company Limited,10041902,09/03/2023,135434,6135,"Virido, Clay Farm Third Party Management",60401,Service Charges,"9,433.37",1
Cambridge City Council,Volvo Group UK Ltd,10111400,24/04/2023,137157,1031,Fleet Management - Operational,61703,"Purchase - Equipment, Furniture And Materials","1,065.65",1
Cambridge City Council,VWS (UK) Limited t/a Veolia Water Technologies,10778300,15/04/2023,136315,1100,Sport & Recreation Administration,60201,Cyclical/Planned Maintenance - Building,632.76,1
Cambridge City Council,VWS (UK) Limited t/a Veolia Water Technologies,10778300,15/04/2023,136315,6215,Risk and Compliance,60235,Housing Repairs - Other Premises Related Costs,661.70,1
Cambridge City Council,Watling JCB Ltd,10112500,26/04/2023,137800,1031,Fleet Management - Operational,61703,"Purchase - Equipment, Furniture And Materials","2,364.30",1
Cambridge City Council,Westley & Huff (Cambridge) Ltd,10113100,10/03/2023,135776,300106,New Build - St Thomas's Road,70010,CAPEX - Other Professional Fees,750.00,1
Cambridge City Council,Wicksteed Leisure Ltd,10125800,31/03/2023,137066,1868,Play Maintenance,61702,"Maintenance - Equipment, Furniture And Materials",687.20,1
Cambridge City Council,Wine Gums Comedy Nights,10327900,24/03/2023,134859,9900,General Fund Balance Sheet,20118,Receipts In Advance - Other Entities And Individuals,765.00,1
Cambridge City Council,Wintercomfort for the Homeless,10113600,19/04/2023,136341,1208,Sustainable City,64600,Grants And Contributions,"7,500.00",1
Cambridge City Council,Wiser Recycling Ltd,10215500,29/03/2023,134971,6200,Building Maintenance Response - Direct,64050,Waste Disposal Costs,"1,646.80",1
Cambridge City Council,Witham Oil & Paint (Soham) Ltd,10113800,18/04/2023,136283,1032,Garage- External Work,51203,Sale Of Goods And Services (S),609.72,1
Cambridge City Council,Witham Oil & Paint (Soham) Ltd,10113800,18/04/2023,136283,1032,Garage- External Work,61703,"Purchase - Equipment, Furniture And Materials",705.78,1
Cambridge City Council,Witham Oil & Paint (Soham) Ltd,10113800,18/04/2023,136283,1032,Garage- External Work,61703,"Purchase - Equipment, Furniture And Materials",967.44,1
Cambridge City Council,Witham Oil & Paint (Soham) Ltd,10113800,18/04/2023,136283,1032,Garage- External Work,61703,"Purchase - Equipment, Furniture And Materials",685.31,1
Cambridge City Council,Wolseley UK Ltd T/A Plumb Center,10114000,06/04/2023,135692,9900,General Fund Balance Sheet,11600,Consumable Stores,"3,608.00",1
Cambridge City Council,Wood Green Animal Shelters,10114100,31/03/2023,134961,1858,Public Realm Enforcement,61800,Contract Charges,"1,250.00",1
Cambridge City Council,Wybone Limited,10114600,25/04/2023,137099,1864,Closed Churchyards,60503,Grounds Maintenance,"2,009.94",1
Cambridge City Council,YMCA Trinity Group,10132200,19/03/2023,135703,1509,Grants to Housing Agencies (CCC funded),69150,Other Services,"1,492.00",1
Cambridge City Council,Zurich Insurance PLC,10115100,27/04/2023,137515,8009,Insurance Fund,67302,Insurance Claim,"8,275.00",1
Cambridge City Council,Zurich Insurance PLC,10115100,09/02/2023,137516,8009,Insurance Fund,67302,Insurance Claim,"2,699.00",1
Cambridge City Council,10:AM,10302900,19/05/2023,139742,1262,Folk Festival,62400,Consultancy Fees,"1,000.00",2
Cambridge City Council,2 Ton Productions Ltd,10326600,26/05/2023,140174,9900,General Fund Balance Sheet,20118,Receipts In Advance - Other Entities And Individuals,"2,352.00",2
Cambridge City Council,3WM Ltd,10218400,12/05/2023,138821,8018,Admin Building Allocation,61703,"Purchase - Equipment, Furniture And Materials",629.82,2
Cambridge City Council,A & B Contractors Ltd,10546800,14/03/2023,140224,100004,Environmental Improvements Programme - East Area,70002,CAPEX - Building Contractor/Works,535.00,2
Cambridge City Council,Abbey Bowls Club,10001200,11/05/2023,138663,1100,Sport & Recreation Administration,64600,Grants And Contributions,"5,885.70",2
Cambridge City Council,ABC Food Law Ltd,10001400,04/04/2023,138907,1419,Environmental Health Operational Support,64300,Conference Expenses,"1,575.00",2
Cambridge City Council,Achievegood Ltd,11014400,12/05/2023,138753,1217,Our Cambridge Transformation Programme,62400,Consultancy Fees,"15,000.00",2
Cambridge City Council,Aecom Ltd,10003200,20/04/2023,138477,1208,Sustainable City,62400,Consultancy Fees,"14,173.33",2
Cambridge City Council,Aeg Presents Ltd,10304000,26/04/2023,138947,9900,General Fund Balance Sheet,20118,Receipts In Advance - Other Entities And Individuals,"15,999.79",2
Cambridge City Council,Alboro Developments Ltd,10133300,30/04/2023,138519,1031,Fleet Management - Operational,60303,Electricity,"2,250.82",2
Cambridge City Council,Alboro Developments Ltd,10133300,02/01/2023,140171,1031,Fleet Management - Operational,60400,Rents Payable,"15,124.00",2
Cambridge City Council,Alboro Developments Ltd,10133300,31/01/2023,140172,1032,Garage- External Work,61703,"Purchase - Equipment, Furniture And Materials","1,016.81",2
Cambridge City Council,Alexander Greens Property Services Ltd,10128803,18/05/2023,139106,1526,Homelessness Prevention Grant,64600,Grants And Contributions,675.00,2
Cambridge City Council,Alexandra & Beehive Bowls Club,10004100,11/05/2023,138580,1100,Sport & Recreation Administration,64600,Grants And Contributions,"5,885.70",2
Cambridge City Council,Alistage Ltd,10304500,24/05/2023,139793,700438,,61700,Hire - Equipment Furniture And Materials,775.00,2
Cambridge City Council,Alliance Asbestos Services Ltd,10115400,12/05/2023,138730,300007,Asbestos Removal,70003,CAPEX - Building Contractor/Works - Voids & Emergencies,"1,872.00",2
Cambridge City Council,Altone Limited,10004700,17/03/2023,138481,6002,Resident Involvement,64100,Postage And Courier Services,"4,644.48",2
Cambridge City Council,Amulet (Churchill Security Solutions) Ltd,10220900,31/03/2023,137966,5024,E_invoicing Suspense Accounts,69100,Expenditure In Holding Account Awaiting Allocation,"10,438.32",2
Cambridge City Council,Amulet (Churchill Security Solutions) Ltd,10220900,31/03/2023,137968,5024,E_invoicing Suspense Accounts,69100,Expenditure In Holding Account Awaiting Allocation,673.00,2
Cambridge City Council,Andrew Firebrace Partnership Ltd,10005400,16/05/2023,138926,6207,Repairs Day to Day,60233,Housing Repairs - Work Given To External Contractors,642.50,2
Cambridge City Council,Anglian Water Business (National) Ltd T/A Wave,10006400,11/05/2023,138786,5024,E_invoicing Suspense Accounts,69100,Expenditure In Holding Account Awaiting Allocation,"6,071.39",2
Cambridge City Council,AON UK Limited,10006800,27/03/2023,136834,8009,Insurance Fund,67302,Insurance Claim,"54,066.76",2
Cambridge City Council,AON UK Limited,10006800,09/05/2023,138835,8009,Insurance Fund,67302,Insurance Claim,"1,063.12",2
Cambridge City Council,APT Skidata Ltd,10115700,05/05/2023,138342,1653,Grafton Centre West Car Park,61703,"Purchase - Equipment, Furniture And Materials","1,124.00",2
Cambridge City Council,APT Skidata Ltd,10115700,05/05/2023,138342,1654,Grafton Centre East Car Park,61703,"Purchase - Equipment, Furniture And Materials","4,000.00",2
Cambridge City Council,Aran Insulation Limited,10392200,11/05/2023,138722,100364,Sustainable Warmth Grant - Local Authority Delivery Phase 3,70015,CAPEX - Grants Paid,"8,912.83",2
Cambridge City Council,Aran Insulation Limited,10392200,22/02/2023,138096,100364,Sustainable Warmth Grant - Local Authority Delivery Phase 3,70015,CAPEX - Grants Paid,"6,800.79",2
Cambridge City Council,Aran Insulation Limited,10392200,17/03/2023,138098,100364,Sustainable Warmth Grant - Local Authority Delivery Phase 3,70015,CAPEX - Grants Paid,"9,887.58",2
Cambridge City Council,Aran Insulation Limited,10392200,10/05/2023,139668,100364,Sustainable Warmth Grant - Local Authority Delivery Phase 3,70015,CAPEX - Grants Paid,"5,029.71",2
Cambridge City Council,Aran Insulation Limited,10392200,06/03/2023,138635,100364,Sustainable Warmth Grant - Local Authority Delivery Phase 3,70015,CAPEX - Grants Paid,"8,564.05",2
Cambridge City Council,Aran Insulation Limited,10392200,11/05/2023,138679,100364,Sustainable Warmth Grant - Local Authority Delivery Phase 3,70015,CAPEX - Grants Paid,"10,036.44",2
Cambridge City Council,Aran Insulation Limited,10392200,26/04/2023,138644,100364,Sustainable Warmth Grant - Local Authority Delivery Phase 3,70015,CAPEX - Grants Paid,"9,889.30",2
Cambridge City Council,Aran Insulation Limited,10392200,09/05/2023,138645,100364,Sustainable Warmth Grant - Local Authority Delivery Phase 3,70015,CAPEX - Grants Paid,"4,795.55",2
Cambridge City Council,Aran Insulation Limited,10392200,02/05/2023,138255,100364,Sustainable Warmth Grant - Local Authority Delivery Phase 3,70015,CAPEX - Grants Paid,"8,575.28",2
Cambridge City Council,Aran Insulation Limited,10392200,15/05/2023,138883,100364,Sustainable Warmth Grant - Local Authority Delivery Phase 3,70015,CAPEX - Grants Paid,"9,868.58",2
Cambridge City Council,Aran Insulation Limited,10392200,16/05/2023,138936,100364,Sustainable Warmth Grant - Local Authority Delivery Phase 3,70015,CAPEX - Grants Paid,"9,207.39",2
Cambridge City Council,Aran Insulation Limited,10392200,18/05/2023,139738,100364,Sustainable Warmth Grant - Local Authority Delivery Phase 3,70015,CAPEX - Grants Paid,"9,269.63",2
Cambridge City Council,Aran Insulation Limited,10392200,02/04/2023,138456,100365,Sustainable Warmth Grant - Home Upgrade Grant,70015,CAPEX - Grants Paid,"13,124.17",2
Cambridge City Council,Aran Insulation Limited,10392200,23/03/2023,138468,100365,Sustainable Warmth Grant - Home Upgrade Grant,70015,CAPEX - Grants Paid,"12,709.29",2
Cambridge City Council,Aran Insulation Limited,10392200,10/05/2023,138728,100365,Sustainable Warmth Grant - Home Upgrade Grant,70015,CAPEX - Grants Paid,"13,776.00",2
Cambridge City Council,Aran Insulation Limited,10392200,23/03/2023,138636,100365,Sustainable Warmth Grant - Home Upgrade Grant,70015,CAPEX - Grants Paid,"10,095.86",2
Cambridge City Council,Aran Insulation Limited,10392200,29/03/2023,138637,100365,Sustainable Warmth Grant - Home Upgrade Grant,70015,CAPEX - Grants Paid,"3,098.43",2
Cambridge City Council,Aran Insulation Limited,10392200,11/05/2023,138646,100365,Sustainable Warmth Grant - Home Upgrade Grant,70015,CAPEX - Grants Paid,"10,040.75",2
Cambridge City Council,Aran Insulation Limited,10392200,02/03/2023,138647,100365,Sustainable Warmth Grant - Home Upgrade Grant,70015,CAPEX - Grants Paid,"7,365.64",2
Cambridge City Council,Aran Insulation Limited,10392200,16/05/2023,138905,100365,Sustainable Warmth Grant - Home Upgrade Grant,70015,CAPEX - Grants Paid,"9,763.40",2
Cambridge City Council,Aran Insulation Limited,10392200,18/05/2023,139302,100365,Sustainable Warmth Grant - Home Upgrade Grant,70015,CAPEX - Grants Paid,"19,246.96",2
Cambridge City Council,Aran Insulation Limited,10392200,15/05/2023,139737,100365,Sustainable Warmth Grant - Home Upgrade Grant,70015,CAPEX - Grants Paid,"24,017.67",2
Cambridge City Council,Aristocaters,10007900,01/05/2023,137973,1350,Civic Affairs and Twinning,62900,Events,512.50,2
Cambridge City Council,Automated Environmental Systems Ltd,11071500,26/04/2023,138112,1872,River Frontage Management,63900,Miscellaneous Expenses,"6,200.00",2
Cambridge City Council,Avalon Promotions Limited,10305200,25/05/2023,139679,700460,,61910,Artist Fees,"66,670.00",2
Cambridge City Council,AWG Land Holdings Ltd,10574800,10/05/2023,138939,1454,Cambridge Northern Fringe East (CNFE),63200,Legal Fees,"49,212.97",2
Cambridge City Council,B&H Digital Ltd,10849600,26/04/2023,137885,8002,Human Resources - Recruitment,62005,"Advertising, Publicity And Marketing",629.55,2
Cambridge City Council,Bailey Morris Limited,10842000,29/03/2023,139159,1032,Garage- External Work,61703,"Purchase - Equipment, Furniture And Materials",520.00,2
Cambridge City Council,BFS Group Ltd t/a Bidfood,10303000,02/05/2023,137888,1260,Corn Exchange and Guildhalls,61905,Purchases - Bar,"1,944.45",2
Cambridge City Council,BFS Group Ltd t/a Bidfood,10303000,23/05/2023,139794,1260,Corn Exchange and Guildhalls,61905,Purchases - Bar,784.00,2
Cambridge City Council,Big City Graphics & Signs Ltd,10130700,12/05/2023,138855,1871,Allotments,60503,Grounds Maintenance,824.50,2
Cambridge City Council,Birdwood Area Residents Association,10013400,03/05/2023,138128,6002,Resident Involvement,64600,Grants And Contributions,750.00,2
Cambridge City Council,Bishop Sport & Leisure Ltd,10013600,03/04/2023,138212,1064,Neighbourhood Community Development,62900,Events,"1,051.85",2
Cambridge City Council,Bishopsgate Law Ltd,11190100,05/04/2023,140208,300109,Princess and Hanover,70001,CAPEX - Acquisition of Land & Existing Building,"275,000.00",2
Cambridge City Council,Bishopsgate Law Ltd,11190100,05/04/2023,140208,300109,Princess and Hanover,70011,CAPEX - Decant Costs,"20,625.00",2
Cambridge City Council,Bishopsgate Law Ltd,11190100,05/04/2023,140208,300109,Princess and Hanover,70011,CAPEX - Decant Costs,989.00,2
Cambridge City Council,BPHA Ltd,10014402,12/05/2023,138653,1526,Homelessness Prevention Grant,64600,Grants And Contributions,"2,096.00",2
Cambridge City Council,British Gas UK Business,10015200,04/05/2023,138867,6102,Temporary Accommodation,60305,Gas,556.97,2
Cambridge City Council,Bunkabin Ltd,10393000,15/05/2023,138838,780004,,61713,Hire of Cabins,798.00,2
Cambridge City Council,Businessclean (Cambridge) Ltd,10016800,26/04/2023,137488,6208,Voids,60220,Housing Repairs - Work To Void Properties,506.00,2
Cambridge City Council,Businessclean (Cambridge) Ltd,10016800,28/04/2023,138035,1533,Emergency / Temporary Accommodation (GF),60501,Cleaning Services,688.91,2
Cambridge City Council,Businessclean (Cambridge) Ltd,10016800,28/04/2023,138028,6102,Temporary Accommodation,60501,Cleaning Services,623.48,2
Cambridge City Council,Businessclean (Cambridge) Ltd,10016800,28/04/2023,138031,6102,Temporary Accommodation,60501,Cleaning Services,652.71,2
Cambridge City Council,Calfordseaden LLP,10339400,27/04/2023,138840,300090,New Build - Meadows and Buchan Street,70010,CAPEX - Other Professional Fees,"6,817.19",2
Cambridge City Council,Cambridge African Network,10017700,12/05/2023,138618,1057,Community Development Voluntary Support,62900,Events,500.00,2
Cambridge City Council,Cambridge African Network,10017700,12/05/2023,138627,1057,Community Development Voluntary Support,64600,Grants And Contributions,950.00,2
Cambridge City Council,Cambridge Community Arts,10018200,12/05/2023,138610,1057,Community Development Voluntary Support,64600,Grants And Contributions,"8,000.00",2
Cambridge City Council,Cambridge Council For Voluntary Service CVS,10018500,12/05/2023,138621,1057,Community Development Voluntary Support,62900,Events,"1,000.00",2
Cambridge City Council,Cambridge Cyrenians Ltd,10018700,12/05/2023,138617,1526,Homelessness Prevention Grant,64600,Grants And Contributions,"10,000.00",2
Cambridge City Council,Cambridge Garage Doors,10117100,22/05/2023,140193,9900,General Fund Balance Sheet,11600,Consumable Stores,708.00,2
Cambridge City Council,Cambridge Housing Society Ltd,10019600,05/05/2023,138351,1526,Homelessness Prevention Grant,63900,Miscellaneous Expenses,650.00,2
Cambridge City Council,Cambridge Market Research Ltd,11117300,30/04/2023,138213,1202,Corporate Marketing,64020,Surveys,"3,125.00",2
Cambridge City Council,Cambridge Professional Academy Ltd,11167300,25/04/2023,137921,1031,Fleet Management - Operational,60115,Staff Development And Training,"1,850.00",2
Cambridge City Council,Cambridge United Youth & Community Trust,10170800,17/04/2023,137981,1107,Healthy Weights,62404,Instructors/Tutors,600.00,2
Cambridge City Council,Cambridge4Ukraine,11173700,25/04/2023,138401,1050,Community Safety,64600,Grants And Contributions,"1,980.00",2
Cambridge City Council,Cambridgeshire & Peterborough Fire Authority,10022500,27/04/2023,137863,1201,Emergency Planning,62400,Consultancy Fees,"6,036.00",2
Cambridge City Council,Cambridgeshire ACRE,10638500,05/05/2023,138344,1510,Housing Strategy,64800,Membership And Subscriptions,"1,500.00",2
Cambridge City Council,Cambridgeshire County Council,10022802,28/03/2023,138889,1519,Shared Home Improvement Agency,60011,Agency Staff,"9,090.00",2
Cambridge City Council,Cambridgeshire County Council,10022802,28/03/2023,138889,1519,Shared Home Improvement Agency,60011,Agency Staff,"7,806.97",2
Cambridge City Council,Cambridgeshire County Council,10022802,12/05/2023,138633,1262,Folk Festival,63811,Traffic Management,"1,190.00",2
Cambridge City Council,Cambridgeshire County Council,10022802,10/05/2023,138688,1532,Bed & Breakfast (B&B) Costs,64401,B&B Accommodation,"1,367.46",2
Cambridge City Council,Cambridgeshire County Council,10022802,23/05/2023,140188,1532,Bed & Breakfast (B&B) Costs,64401,B&B Accommodation,957.83,2
Cambridge City Council,CCPM Ltd,10283000,04/04/2023,138471,100346,Market Square project,70009,CAPEX - Engineers Fees,"2,012.50",2
Cambridge City Council,CCPM Ltd,10283000,03/05/2023,138781,100346,Market Square project,70009,CAPEX - Engineers Fees,"3,162.50",2
Cambridge City Council,CCPM Ltd,10283000,04/04/2023,138471,100300,Park Street car park development,70010,CAPEX - Other Professional Fees,"1,006.25",2
Cambridge City Council,CCPM Ltd,10283000,03/05/2023,138781,100300,Park Street car park development,70010,CAPEX - Other Professional Fees,"1,150.00",2
Cambridge City Council,Cerc - Cambridge Environmental Research Consultants Ltd,,15/05/2023,138909,1404,Environmental Quality and Growth,64073,ICT Maintenance and Support,"1,890.00",2
Cambridge City Council,CFH Docmail Ltd,10025900,26/04/2023,137504,1352,Electoral Registration,62001,Printing,898.90,2
Cambridge City Council,CFH Docmail Ltd,10025900,24/05/2023,139784,1352,Electoral Registration,62001,Printing,586.96,2
Cambridge City Council,Chassis Cab Ltd,10027000,24/04/2023,137971,1031,Fleet Management - Operational,61703,"Purchase - Equipment, Furniture And Materials",711.36,2
Cambridge City Council,Chassis Cab Ltd,10027000,10/05/2023,138930,1031,Fleet Management - Operational,61703,"Purchase - Equipment, Furniture And Materials",745.48,2
Cambridge City Council,Chassis Cab Ltd,10027000,03/05/2023,138567,1031,Fleet Management - Operational,61703,"Purchase - Equipment, Furniture And Materials",862.15,2
Cambridge City Council,Chassis Cab Ltd,10027000,03/05/2023,138567,1031,Fleet Management - Operational,61703,"Purchase - Equipment, Furniture And Materials",614.31,2
Cambridge City Council,Chassis Cab Ltd,10027000,16/05/2023,140219,1032,Garage- External Work,61703,"Purchase - Equipment, Furniture And Materials",546.06,2
Cambridge City Council,Cherryl Henry-Leach,11101000,30/04/2023,138885,1050,Community Safety,62900,Events,"1,583.33",2
Cambridge City Council,Chesterton Bowls Club Ltd,10027600,11/05/2023,138581,1100,Sport & Recreation Administration,64600,Grants And Contributions,"5,885.70",2
Cambridge City Council,Childcare Vouchers Limited,10028300,15/05/2023,138892,5000,Salary Sacrifice Schemes Holding Account,60106,Childcare Admin Vouchers,"2,932.00",2
Cambridge City Council,Chubb Fire & Security Limited,10029100,02/05/2023,138217,6205,Citywide Schemes,60216,Housing Repairs - Furniture / Equipment / Smoke Detectors,616.21,2
Cambridge City Council,Chubb Fire & Security Limited,10029100,09/05/2023,138649,6205,Citywide Schemes,60223,Housing Repairs - Door Entry Maintenance,"7,608.72",2
Cambridge City Council,Cieh Chartered Institute of Environmental Health,10029400,14/04/2023,139311,1419,Environmental Health Operational Support,60115,Staff Development And Training,"1,550.00",2
Cambridge City Council,CIP Orchard Park L2 LLP,10936000,09/05/2023,139133,300096,New Build - L2,70001,CAPEX - Acquisition of Land & Existing Building,"3,012,598.00",2
Cambridge City Council,CIP Orchard Park L2 LLP,10936000,04/05/2023,138568,300096,New Build - L2,70002,CAPEX - Building Contractor/Works,"257,579.55",2
Cambridge City Council,CIP Orchard Park L2 LLP,10936000,04/05/2023,138228,300096,New Build - L2,70010,CAPEX - Other Professional Fees,"4,935.91",2
Cambridge City Council,CIPFA Business Limited,10029700,14/03/2023,138376,8006,Accountancy and Support Services,62003,"Books, Publications And Resources","3,255.00",2
Cambridge City Council,CitizenLab NV,10954200,01/05/2023,138823,1202,Corporate Marketing,64072,ICT Licences,"14,250.00",2
Cambridge City Council,City of Cambridge Bowls Club,10030000,11/05/2023,138664,1100,Sport & Recreation Administration,64600,Grants And Contributions,"5,885.70",2
Cambridge City Council,City Signs Cambridge,10030100,22/05/2023,139281,300088,Estate Investment,70002,CAPEX - Building Contractor/Works,"2,340.00",2
Cambridge City Council,CJ Surveys Ltd,10030300,28/04/2023,138014,100346,Market Square project,70009,CAPEX - Engineers Fees,"1,495.00",2
Cambridge City Council,Clint Fisher,11031900,28/04/2023,138100,1350,Civic Affairs and Twinning,62900,Events,500.00,2
Cambridge City Council,CMP Entertainment Ltd,10309300,16/05/2023,139235,9900,General Fund Balance Sheet,20118,Receipts In Advance - Other Entities And Individuals,"16,474.44",2
Cambridge City Council,CMS Training Ltd,10031300,11/05/2023,138716,8003,Human Resources - Organisational Development,64300,Conference Expenses,540.00,2
Cambridge City Council,CMS Training Ltd,10031300,27/04/2023,137892,8003,Human Resources - Organisational Development,64300,Conference Expenses,540.00,2
Cambridge City Council,CMS Training Ltd,10031300,27/04/2023,137893,8003,Human Resources - Organisational Development,64300,Conference Expenses,540.00,2
Cambridge City Council,CMS Training Ltd,10031300,18/05/2023,139312,8003,Human Resources - Organisational Development,64300,Conference Expenses,540.00,2
Cambridge City Council,CMS Training Ltd,10031300,25/05/2023,140281,8003,Human Resources - Organisational Development,64300,Conference Expenses,540.00,2
Cambridge City Council,Coast and Counties Contractors Ltd,10165000,31/03/2023,138572,1774,"Cambridge Road Retail Park, Haverhill",60503,Grounds Maintenance,"1,500.00",2
Cambridge City Council,Coleridge Bowls Club,10518400,11/05/2023,138582,1100,Sport & Recreation Administration,64600,Grants And Contributions,"5,885.70",2
Cambridge City Council,Comensura Ltd,10031900,19/04/2023,136946,5024,E_invoicing Suspense Accounts,69100,Expenditure In Holding Account Awaiting Allocation,"46,222.72",2
Cambridge City Council,Comensura Ltd,10031900,03/05/2023,138083,5024,E_invoicing Suspense Accounts,69100,Expenditure In Holding Account Awaiting Allocation,"49,176.88",2
Cambridge City Council,Comensura Ltd,10031900,26/04/2023,138133,5024,E_invoicing Suspense Accounts,69100,Expenditure In Holding Account Awaiting Allocation,"59,929.07",2
Cambridge City Council,Comensura Ltd,10031900,24/05/2023,139901,5024,E_invoicing Suspense Accounts,69100,Expenditure In Holding Account Awaiting Allocation,"50,246.31",2
Cambridge City Council,Comensura Ltd,10031900,12/04/2023,136943,5024,E_invoicing Suspense Accounts,69100,Expenditure In Holding Account Awaiting Allocation,"50,909.58",2
Cambridge City Council,Comensura Ltd,10031900,17/05/2023,139290,5024,E_invoicing Suspense Accounts,69100,Expenditure In Holding Account Awaiting Allocation,"50,068.59",2
Cambridge City Council,Comensura Ltd,10031900,10/05/2023,139296,5024,E_invoicing Suspense Accounts,69100,Expenditure In Holding Account Awaiting Allocation,"43,742.07",2
Cambridge City Council,Complete Cleaning Management Ltd,10032300,01/05/2023,137910,1031,Fleet Management - Operational,60502,Cleaning Contract,590.00,2
Cambridge City Council,Compton & Casburn Ltd,10117600,12/05/2023,138693,6207,Repairs Day to Day,60233,Housing Repairs - Work Given To External Contractors,990.00,2
Cambridge City Council,Compton & Casburn Ltd,10117600,12/05/2023,138707,6207,Repairs Day to Day,60233,Housing Repairs - Work Given To External Contractors,650.00,2
Cambridge City Council,Constellation Management Group Ltd,10291400,09/05/2023,138671,1353,Elections,63900,Miscellaneous Expenses,504.00,2
Cambridge City Council,Cooleraid Ltd,10033001,18/05/2023,139167,6012,City Homes Expenditure,64200,Subsistence,563.93,2
Cambridge City Council,Cortina Promotions Ltd,10984200,16/05/2023,139236,9900,General Fund Balance Sheet,20118,Receipts In Advance - Other Entities And Individuals,"3,154.00",2
Cambridge City Council,Coulson Group Ltd,10188600,16/05/2023,139680,1935,Markets,61702,"Maintenance - Equipment, Furniture And Materials",666.00,2
Cambridge City Council,Countryside Properties (UK) Ltd,10033800,09/05/2023,139271,100020,Development Of land at Clay Farm,70002,CAPEX - Building Contractor/Works,692.24,2
Cambridge City Council,Countryside Properties (UK) Ltd,10033800,09/05/2023,139271,100020,Development Of land at Clay Farm,70013,CAPEX - Landscaping,"1,331.24",2
Cambridge City Council,Croyland Building Surveyors Ltd,10034500,04/05/2023,138486,300112,Local Authority Housing Fund Acquisitions,70010,CAPEX - Other Professional Fees,600.00,2
Cambridge City Council,Croyland Building Surveyors Ltd,10034500,04/05/2023,138486,300112,Local Authority Housing Fund Acquisitions,70010,CAPEX - Other Professional Fees,750.00,2
Cambridge City Council,Currie & Brown (UK) Ltd,10034800,28/04/2023,138220,300006,Insulation / Energy Efficiency,70010,CAPEX - Other Professional Fees,500.00,2
Cambridge City Council,Cyclescheme Ltd,10376200,23/05/2023,139670,5000,Salary Sacrifice Schemes Holding Account,60106,Childcare Admin Vouchers,791.67,2
Cambridge City Council,D Carman BSSR Ltd,10118100,04/05/2023,138221,8025,Cowley Road Compound,60201,Cyclical/Planned Maintenance - Building,"7,181.20",2
Cambridge City Council,D Carman BSSR Ltd,10118100,13/04/2023,137985,1861,Let Property on Parks and Open Spaces,63900,Miscellaneous Expenses,750.00,2
Cambridge City Council,Dalrod,10824600,27/04/2023,137542,6207,Repairs Day to Day,60233,Housing Repairs - Work Given To External Contractors,"1,580.00",2
Cambridge City Council,Dalrod,10824600,05/05/2023,138234,6207,Repairs Day to Day,60233,Housing Repairs - Work Given To External Contractors,"1,440.00",2
Cambridge City Council,Dalrod,10824600,05/05/2023,138380,6207,Repairs Day to Day,60233,Housing Repairs - Work Given To External Contractors,795.00,2
Cambridge City Council,Dalrod,10824600,24/05/2023,139823,6207,Repairs Day to Day,60233,Housing Repairs - Work Given To External Contractors,"1,880.00",2
Cambridge City Council,Dalrod,10824600,10/05/2023,138549,6207,Repairs Day to Day,60233,Housing Repairs - Work Given To External Contractors,"1,880.00",2
Cambridge City Council,Dalrod,10824600,17/05/2023,138975,6207,Repairs Day to Day,60233,Housing Repairs - Work Given To External Contractors,890.00,2
Cambridge City Council,Dash Information Systems Ltd,10204900,06/05/2023,138383,1004,Commemoration,61400,Goods For Resale,"1,503.46",2
Cambridge City Council,"David G. Hall, Costs Lawyer",10360900,31/03/2023,139268,6207,Repairs Day to Day,63200,Legal Fees,980.00,2
Cambridge City Council,David Powell t/a D J Kitchens,10137900,14/05/2023,138741,6207,Repairs Day to Day,60233,Housing Repairs - Work Given To External Contractors,"1,257.00",2
Cambridge City Council,David Powell t/a D J Kitchens,10137900,14/05/2023,138742,6207,Repairs Day to Day,60233,Housing Repairs - Work Given To External Contractors,"1,200.00",2
Cambridge City Council,David Powell t/a D J Kitchens,10137900,14/05/2023,138743,6207,Repairs Day to Day,60233,Housing Repairs - Work Given To External Contractors,"3,910.00",2
Cambridge City Council,David Powell t/a D J Kitchens,10137900,30/04/2023,137864,6207,Repairs Day to Day,60233,Housing Repairs - Work Given To External Contractors,750.00,2
Cambridge City Council,David Powell t/a D J Kitchens,10137900,30/04/2023,137866,6207,Repairs Day to Day,60233,Housing Repairs - Work Given To External Contractors,530.00,2
Cambridge City Council,David Powell t/a D J Kitchens,10137900,14/05/2023,138735,6208,Voids,60233,Housing Repairs - Work Given To External Contractors,"1,050.00",2
Cambridge City Council,David Powell t/a D J Kitchens,10137900,14/05/2023,138745,6208,Voids,60233,Housing Repairs - Work Given To External Contractors,934.00,2
Cambridge City Council,David Powell t/a D J Kitchens,10137900,30/04/2023,137858,6208,Voids,60233,Housing Repairs - Work Given To External Contractors,"1,450.00",2
Cambridge City Council,David Powell t/a D J Kitchens,10137900,30/04/2023,137859,6208,Voids,60233,Housing Repairs - Work Given To External Contractors,"1,200.00",2
Cambridge City Council,David Powell t/a D J Kitchens,10137900,30/04/2023,137860,6208,Voids,60233,Housing Repairs - Work Given To External Contractors,"1,040.00",2
Cambridge City Council,David Powell t/a D J Kitchens,10137900,30/04/2023,137862,6208,Voids,60233,Housing Repairs - Work Given To External Contractors,640.00,2
Cambridge City Council,David Powell t/a D J Kitchens,10137900,30/04/2023,137868,6208,Voids,60233,Housing Repairs - Work Given To External Contractors,780.00,2
Cambridge City Council,David Powell t/a D J Kitchens,10137900,30/04/2023,137870,6208,Voids,60233,Housing Repairs - Work Given To External Contractors,620.00,2
Cambridge City Council,David Powell t/a D J Kitchens,10137900,30/04/2023,137872,6208,Voids,60233,Housing Repairs - Work Given To External Contractors,"3,950.00",2
Cambridge City Council,David Powell t/a D J Kitchens,10137900,30/04/2023,137873,6208,Voids,60233,Housing Repairs - Work Given To External Contractors,"1,870.00",2
Cambridge City Council,Debt Collection Services UK Ltd,10036800,30/04/2023,138467,6012,City Homes Expenditure,62700,Debt Collection And Recovery Costs,667.97,2
Cambridge City Council,Dennis Eagle Ltd,10036900,03/05/2023,138183,1031,Fleet Management - Operational,61703,"Purchase - Equipment, Furniture And Materials",800.24,2
Cambridge City Council,Dennis Eagle Ltd,10036900,15/05/2023,138930,1031,Fleet Management - Operational,61703,"Purchase - Equipment, Furniture And Materials",815.14,2
Cambridge City Council,Dennis Eagle Ltd,10036900,02/05/2023,138183,1032,Garage- External Work,61703,"Purchase - Equipment, Furniture And Materials",651.30,2
Cambridge City Council,Dennis Eagle Ltd,10036900,27/04/2023,137971,1032,Garage- External Work,61703,"Purchase - Equipment, Furniture And Materials","1,358.65",2
Cambridge City Council,DJ Evans (Bury) Ltd,10038100,24/05/2023,140193,9900,General Fund Balance Sheet,11600,Consumable Stores,630.00,2
Cambridge City Council,Down for the Count Ltd,10918200,29/04/2023,137882,9900,General Fund Balance Sheet,20118,Receipts In Advance - Other Entities And Individuals,"7,252.00",2
Cambridge City Council,Drainco Services Ltd,10038800,10/05/2023,138891,1102,Leisure Contract Client Costs,60201,Cyclical/Planned Maintenance - Building,"1,060.00",2
Cambridge City Council,Drainco Services Ltd,10038800,10/05/2023,138857,1752,Dales Brewery,60201,Cyclical/Planned Maintenance - Building,728.00,2
Cambridge City Council,Drainco Services Ltd,10038800,28/04/2023,139286,1758,Other Commercial Properties,60201,Cyclical/Planned Maintenance - Building,"2,155.00",2
Cambridge City Council,Drainco Services Ltd,10038800,20/05/2023,139269,1870,Public Toilets,60201,Cyclical/Planned Maintenance - Building,960.00,2
Cambridge City Council,Drainco Services Ltd,10038800,20/05/2023,139270,1870,Public Toilets,60201,Cyclical/Planned Maintenance - Building,960.00,2
Cambridge City Council,Drainco Services Ltd,10038800,09/05/2023,138473,1870,Public Toilets,60503,Grounds Maintenance,"1,125.00",2
Cambridge City Council,Drake Engineering Ltd,11096400,10/05/2023,138573,1883,Drainage Team,60501,Cleaning Services,"3,920.00",2
Cambridge City Council,Driscoll Kingston Solicitors,10983300,19/05/2023,139143,6207,Repairs Day to Day,63200,Legal Fees,"1,500.00",2
Cambridge City Council,DSB Engineering Supplies,10039000,04/05/2023,138996,1031,Fleet Management - Operational,61500,Consumables,567.70,2
Cambridge City Council,DSB Engineering Supplies,10039000,06/04/2023,138199,1031,Fleet Management - Operational,61703,"Purchase - Equipment, Furniture And Materials",531.83,2
Cambridge City Council,Eastfield Guest House Ltd,10262600,24/04/2023,136869,1532,Bed & Breakfast (B&B) Costs,64401,B&B Accommodation,"4,760.00",2
Cambridge City Council,Eastfield Guest House Ltd,10262600,01/05/2023,139169,1532,Bed & Breakfast (B&B) Costs,64401,B&B Accommodation,"3,290.00",2
Cambridge City Council,Eastfield Guest House Ltd,10262600,15/05/2023,139172,1532,Bed & Breakfast (B&B) Costs,64401,B&B Accommodation,"3,990.00",2
Cambridge City Council,Eastfield Guest House Ltd,10262600,08/05/2023,139173,1532,Bed & Breakfast (B&B) Costs,64401,B&B Accommodation,"3,640.00",2
Cambridge City Council,Eastfield Guest House Ltd,10262600,22/05/2023,139786,1532,Bed & Breakfast (B&B) Costs,64401,B&B Accommodation,"2,940.00",2
Cambridge City Council,ECD Architects Ltd,11110200,30/04/2023,138223,300006,Insulation / Energy Efficiency,70008,CAPEX - Architects Fees,"40,794.00",2
Cambridge City Council,Echelon Consultancy Ltd,11056900,30/04/2023,138574,1217,Our Cambridge Transformation Programme,62400,Consultancy Fees,995.00,2
Cambridge City Council,Eddisons Commercial Ltd,10420000,05/05/2023,139134,1758,Other Commercial Properties,62400,Consultancy Fees,900.00,2
Cambridge City Council,Eddisons Commercial Ltd,10420000,11/05/2023,138744,1758,Other Commercial Properties,62400,Consultancy Fees,"5,950.00",2
Cambridge City Council,Eddisons Commercial Ltd,10420000,27/04/2023,138025,1778,"The Global Centre, Swanns Road, Cambridge",62400,Consultancy Fees,"5,600.00",2
Cambridge City Council,Edmundson Electrical Ltd,10040600,25/04/2023,137967,9900,General Fund Balance Sheet,11600,Consumable Stores,819.00,2
Cambridge City Council,Edmundson Electrical Ltd,10040600,10/05/2023,138933,9900,General Fund Balance Sheet,11600,Consumable Stores,819.00,2
Cambridge City Council,Edmundson Electrical Ltd,10040600,12/05/2023,140193,9900,General Fund Balance Sheet,11600,Consumable Stores,684.49,2
Cambridge City Council,Employers Network for Equality & Inclusion,10883100,23/02/2023,138224,1203,Corporate Policy,64800,Membership And Subscriptions,"1,500.00",2
Cambridge City Council,Entertee Hire Services Ltd,10311400,13/02/2023,138225,780004,,61700,Hire - Equipment Furniture And Materials,"4,426.40",2
Cambridge City Council,Entertee Hire Services Ltd,10311400,04/05/2023,138241,780004,,61700,Hire - Equipment Furniture And Materials,"3,319.80",2
Cambridge City Council,Ernest Doe & Sons Ltd,10043400,15/05/2023,138998,1866,Open Space Asset Maintenance,61703,"Purchase - Equipment, Furniture And Materials",900.99,2
Cambridge City Council,ESPO,10043700,03/05/2023,138523,1260,Corn Exchange and Guildhalls,61300,Cleaning Materials,"1,011.40",2
Cambridge City Council,ESPO,10043700,25/04/2023,136934,5024,E_invoicing Suspense Accounts,69100,Expenditure In Holding Account Awaiting Allocation,"38,559.03",2
Cambridge City Council,Evac+Chair International Ltd,10044700,28/04/2023,138673,1071,Clay Farm Community Centre,60205,Fire Assessment And Safety,"3,119.80",2
Cambridge City Council,Focus Consultants 2010 LLP,11110300,30/04/2023,138345,300006,Insulation / Energy Efficiency,70010,CAPEX - Other Professional Fees,"9,725.00",2
Cambridge City Council,Foster & Shackell,10118400,23/03/2023,138524,200000,Repairs Assistance (Owner Occupiers),70015,CAPEX - Grants Paid,"6,048.00",2
Cambridge City Council,Foster Property Maintenance Ltd,10046700,10/05/2023,138994,5024,E_invoicing Suspense Accounts,69100,Expenditure In Holding Account Awaiting Allocation,"724,962.91",2
Cambridge City Council,Foster Property Maintenance Ltd,10046700,23/05/2023,139918,100275,Commercial property repair and maintenance,70002,CAPEX - Building Contractor/Works,"25,736.19",2
Cambridge City Council,Foster Property Maintenance Ltd,10046700,23/05/2023,139740,100275,Commercial property repair and maintenance,70002,CAPEX - Building Contractor/Works,"16,002.69",2
Cambridge City Council,Freeths LLP,10128502,28/03/2023,138748,300077,New Build - Mill Road,70010,CAPEX - Other Professional Fees,929.60,2
Cambridge City Council,Friends of Midsummer Common,10182100,12/05/2023,138608,1057,Community Development Voluntary Support,64600,Grants And Contributions,"1,000.00",2
Cambridge City Council,Frontline Fabrication & Ironwork Co Ltd,10128000,03/05/2023,138252,1866,Open Space Asset Maintenance,61702,"Maintenance - Equipment, Furniture And Materials","3,200.00",2
Cambridge City Council,Frontline Fabrication & Ironwork Co Ltd,10128000,20/04/2023,138247,1868,Play Maintenance,61702,"Maintenance - Equipment, Furniture And Materials","4,925.00",2
Cambridge City Council,Frontline Fabrication & Ironwork Co Ltd,10128000,20/04/2023,138235,1866,Open Space Asset Maintenance,61703,"Purchase - Equipment, Furniture And Materials",790.00,2
Cambridge City Council,Frontline Fabrication & Ironwork Co Ltd,10128000,24/04/2023,138250,1866,Open Space Asset Maintenance,61703,"Purchase - Equipment, Furniture And Materials","3,875.00",2
Cambridge City Council,Furnitubes International Limited,10047900,17/05/2023,139323,100338,Environmental Improvements Programme (EIP) options,70002,CAPEX - Building Contractor/Works,"1,379.00",2
Cambridge City Council,Furniture@Work Ltd,10404200,02/05/2023,138346,1935,Markets,61702,"Maintenance - Equipment, Furniture And Materials",918.00,2
Cambridge City Council,Gaskin Brothers Ltd,10118700,28/04/2023,138007,1100,Sport & Recreation Administration,60201,Cyclical/Planned Maintenance - Building,600.00,2
Cambridge City Council,Gaskin Brothers Ltd,10118700,19/05/2023,139324,6207,Repairs Day to Day,60233,Housing Repairs - Work Given To External Contractors,990.00,2
Cambridge City Council,Gaskin Brothers Ltd,10118700,19/05/2023,139325,6207,Repairs Day to Day,60233,Housing Repairs - Work Given To External Contractors,855.00,2
Cambridge City Council,Gaskin Brothers Ltd,10118700,28/04/2023,138006,1883,Drainage Team,60501,Cleaning Services,"1,650.00",2
Cambridge City Council,Gaskin Brothers Ltd,10118700,19/05/2023,139326,1883,Drainage Team,60501,Cleaning Services,850.00,2
Cambridge City Council,Gaskin Brothers Ltd,10118700,28/04/2023,138005,1100,Sport & Recreation Administration,60503,Grounds Maintenance,"1,500.00",2
Cambridge City Council,Gaskin Brothers Ltd,10118700,19/05/2023,139186,1935,Markets,61702,"Maintenance - Equipment, Furniture And Materials",635.00,2
Cambridge City Council,Gaskin Brothers Ltd,10118700,28/04/2023,137842,300088,Estate Investment,70002,CAPEX - Building Contractor/Works,980.00,2
Cambridge City Council,Gaskin Brothers Ltd,10118700,28/04/2023,137844,300088,Estate Investment,70002,CAPEX - Building Contractor/Works,"1,525.00",2
Cambridge City Council,Gatenbysanderson Limited,10048500,28/04/2023,137895,1217,Our Cambridge Transformation Programme,62400,Consultancy Fees,"16,425.00",2
Cambridge City Council,Geodesys,10049200,01/04/2023,135489,8028,South Cambridgeshire DC � Legal Income & Expenses,62400,Consultancy Fees,609.18,2
Cambridge City Council,Glo-Bell London Ltd,10119000,15/05/2023,138859,8017,Mandela House,60201,Cyclical/Planned Maintenance - Building,"2,868.00",2
Cambridge City Council,Glo-Bell London Ltd,10119000,18/04/2023,138457,8018,Admin Building Allocation,61703,"Purchase - Equipment, Furniture And Materials",640.00,2
Cambridge City Council,Gort Scott Ltd,10165900,27/01/2023,138943,100200,Redevelopment of Silver Street Toilets,70008,CAPEX - Architects Fees,"4,825.00",2
Cambridge City Council,Goshen Multi-Services Ltd,10793300,01/05/2023,139369,1870,Public Toilets,60502,Cleaning Contract,"20,983.55",2
Cambridge City Council,Goshen Multi-Services Ltd,10793300,01/05/2023,139368,5024,E_invoicing Suspense Accounts,69100,Expenditure In Holding Account Awaiting Allocation,"30,398.33",2
Cambridge City Council,Goshen Multi-Services Ltd,10793300,01/05/2023,139368,5024,E_invoicing Suspense Accounts,69100,Expenditure In Holding Account Awaiting Allocation,"6,079.67",2
Cambridge City Council,Goshen Multi-Services Ltd,10793300,01/05/2023,139370,5024,E_invoicing Suspense Accounts,69100,Expenditure In Holding Account Awaiting Allocation,"19,223.10",2
Cambridge City Council,Goshen Multi-Services Ltd,10793300,01/05/2023,139370,5024,E_invoicing Suspense Accounts,69100,Expenditure In Holding Account Awaiting Allocation,"3,844.62",2
Cambridge City Council,Grant Thornton UK LLP,10954100,28/04/2023,137901,1217,Our Cambridge Transformation Programme,64072,ICT Licences,"3,000.00",2
Cambridge City Council,Grant Thornton UK LLP,10954100,28/04/2023,137901,8006,Accountancy and Support Services,64072,ICT Licences,"3,000.00",2
Cambridge City Council,Greenbarnes Ltd,10474300,11/05/2023,139923,100338,Environmental Improvements Programme (EIP) options,70002,CAPEX - Building Contractor/Works,"2,200.52",2
Cambridge City Council,Greenwich Leisure Limited (GLL),10051900,10/02/2023,137841,100408,Parkside Pool's diving boards,70002,CAPEX - Building Contractor/Works,"11,904.21",2
Cambridge City Council,Greenwich Leisure Ltd - Cherry Hinton Village Centre,10051903,23/05/2023,139798,1353,Elections,60402,Premises Hire - Facilities,"1,200.00",2
Cambridge City Council,Gwydir Street Friends,10964100,30/05/2023,139953,1057,Community Development Voluntary Support,64600,Grants And Contributions,750.00,2
Cambridge City Council,Hako Machines Ltd,10052800,24/04/2023,137896,1850,Grounds Maintenance & Street Cleaning,61703,"Purchase - Equipment, Furniture And Materials",551.93,2
Cambridge City Council,Halls of Cambridge Ltd,10119300,27/04/2023,138934,1655,Queen Anne Terrace Car Park,61703,"Purchase - Equipment, Furniture And Materials","1,338.36",2
Cambridge City Council,Harrison Clark Rickerbys Ltd,10870701,26/04/2023,137809,300075,New Build - Kendal Way,70010,CAPEX - Other Professional Fees,"2,995.65",2
Cambridge City Council,Heasell Electromechanical Services Ltd,10119400,09/05/2023,138865,100406,"Recommended maintenance at Abbey pool, Parkside pool and",70002,CAPEX - Building Contractor/Works,"9,029.00",2
Cambridge City Council,Hill Partnerships Limited,10214300,15/05/2023,139667,300089,New Build - Clerk Maxwell Road,70001,CAPEX - Acquisition of Land & Existing Building,"262,418.79",2
Cambridge City Council,Hill Partnerships Limited,10214300,04/04/2023,138721,100347,Colville Rd Phase 3 - replacement of commercial units,70002,CAPEX - Building Contractor/Works,"24,036.06",2
Cambridge City Council,Hill Partnerships Limited,10214300,04/04/2023,138721,100347,Colville Rd Phase 3 - replacement of commercial units,70002,CAPEX - Building Contractor/Works,"4,457.44",2
Cambridge City Council,Hill Partnerships Limited,10214300,05/05/2023,138525,300091,New Build - Campkin Road Phase 2,70002,CAPEX - Building Contractor/Works,"372,546.21",2
Cambridge City Council,Hill Partnerships Limited,10214300,05/05/2023,138525,300091,New Build - Campkin Road Phase 2,70002,CAPEX - Building Contractor/Works,"4,876.95",2
Cambridge City Council,Hill Partnerships Limited,10214300,05/05/2023,138525,300091,New Build - Campkin Road Phase 2,70002,CAPEX - Building Contractor/Works,"6,918.15",2
Cambridge City Council,Hill Partnerships Limited,10214300,04/04/2023,138723,300097,New Build - Colville Road III,70002,CAPEX - Building Contractor/Works,"344,376.89",2
Cambridge City Council,Hill Partnerships Limited,10214300,04/04/2023,137857,300099,New Build - Fen Road,70002,CAPEX - Building Contractor/Works,"293,180.70",2
Cambridge City Council,Hill Partnerships Limited,10214300,04/04/2023,137861,300100,New Build - Ditton Fields,70002,CAPEX - Building Contractor/Works,"96,939.95",2
Cambridge City Council,Hill Partnerships Limited,10214300,04/04/2023,137839,300103,New Build - Borrowdale,70002,CAPEX - Building Contractor/Works,"113,129.40",2
Cambridge City Council,Hi-Spec Facilities Services Ltd,11189600,31/01/2023,139306,5024,E_invoicing Suspense Accounts,69100,Expenditure In Holding Account Awaiting Allocation,"11,328.33",2
Cambridge City Council,Histon and Impington Brook Primary School,10213500,31/03/2023,138109,1517,Syrian Resettlement,64600,Grants And Contributions,"3,000.00",2
Cambridge City Council,HM Revenue & Customs (SDLT),10144205,17/05/2023,140210,300108,Fanshawe Road,70001,CAPEX - Acquisition of Land & Existing Building,"12,700.00",2
Cambridge City Council,HM Revenue & Customs (SDLT),10144205,26/04/2023,140211,300109,Princess and Hanover,70001,CAPEX - Acquisition of Land & Existing Building,"18,460.00",2
Cambridge City Council,Hollis Global Ltd,10216900,17/04/2023,138770,1758,Other Commercial Properties,60201,Cyclical/Planned Maintenance - Building,"1,375.00",2
Cambridge City Council,Hometrack Data Systems Limited,10055800,31/03/2023,138450,1512,Sub-Regional Housing Strategy Co-ordinator,64800,Membership And Subscriptions,"14,500.00",2
Cambridge City Council,Houghton & Son Ltd,10908100,11/02/2023,138789,200001,Mandatory Disabled Facilities Grants (Tenants),70015,CAPEX - Grants Paid,"14,366.00",2
Cambridge City Council,HQN Ltd,10056500,05/05/2023,138347,1510,Housing Strategy,64800,Membership And Subscriptions,"2,625.00",2
Cambridge City Council,Huntingdonshire District Council,10056901,23/05/2023,139924,1858,Public Realm Enforcement,61703,"Purchase - Equipment, Furniture And Materials","15,000.00",2
Cambridge City Council,Huntingdonshire District Council,10056901,23/05/2023,139924,1858,Public Realm Enforcement,61703,"Purchase - Equipment, Furniture And Materials","4,525.20",2
Cambridge City Council,Huntingdonshire District Council,10056901,15/05/2023,138822,1033,CCTV,64060,Shared Service Contribution,"66,545.90",2
Cambridge City Council,Huntingdonshire District Council,10056901,15/05/2023,138822,1033,CCTV,64060,Shared Service Contribution,"30,600.70",2
Cambridge City Council,Huntingdonshire District Council,10056901,27/04/2023,137531,8000,Human Resources - Business Support,64073,ICT Maintenance and Support,600.00,2
Cambridge City Council,Huntingdonshire District Council,10056901,27/04/2023,137532,8000,Human Resources - Business Support,64073,ICT Maintenance and Support,989.00,2
Cambridge City Council,Huntingdonshire District Council,10056901,27/04/2023,137533,8000,Human Resources - Business Support,64073,ICT Maintenance and Support,"6,825.00",2
Cambridge City Council,Huntingdonshire District Council,10056901,03/05/2023,138491,1050,Community Safety,69319,CCTV Cameras,631.00,2
Cambridge City Council,Huntingdonshire District Council,10056901,25/05/2023,140275,1050,Community Safety,69319,CCTV Cameras,"2,100.00",2
Cambridge City Council,Industrial Site Maintenance Ltd,10793100,31/03/2023,139762,5024,E_invoicing Suspense Accounts,69100,Expenditure In Holding Account Awaiting Allocation,"18,675.33",2
Cambridge City Council,Industrial Site Maintenance Ltd,10793100,31/03/2023,139762,5024,E_invoicing Suspense Accounts,69100,Expenditure In Holding Account Awaiting Allocation,"3,735.06",2
Cambridge City Council,Integra Buildings Ltd,10944800,01/05/2023,139175,100309,S106 Nightingale Rec Ground pavilion,70002,CAPEX - Building Contractor/Works,"162,906.28",2
Cambridge City Council,InterQuest Group (UK) Ltd,10930800,10/05/2023,138658,1050,Community Safety,60011,Agency Staff,"7,130.00",2
Cambridge City Council,InterQuest Group (UK) Ltd,10930800,28/04/2023,138318,1217,Our Cambridge Transformation Programme,60011,Agency Staff,"7,150.00",2
Cambridge City Council,Jaama Ltd,11189200,18/05/2023,139678,1031,Fleet Management - Operational,60115,Staff Development And Training,"1,220.67",2
Cambridge City Council,Jade Security Services Ltd,10060400,30/04/2023,139192,1661,Parking Administration,63800,Security Services (Excluding Premises),"1,122.30",2
Cambridge City Council,Jahmal Crowe t/a J C Visuals,10258700,05/05/2023,138384,1077,Community Resilience,62005,"Advertising, Publicity And Marketing","4,285.00",2
Cambridge City Council,JAM Removals Ltd,10060500,09/05/2023,138718,1353,Elections,60402,Premises Hire - Facilities,900.00,2
Cambridge City Council,JAM Removals Ltd,10060500,27/04/2023,137554,1502,Homelessness Costs,63700,Removal Services,500.00,2
Cambridge City Council,JAM Removals Ltd,10060500,15/05/2023,138940,300109,Princess and Hanover,70011,CAPEX - Decant Costs,500.00,2
Cambridge City Council,JBPM Online Limited T/A Gas Safety Shop,10060900,27/02/2023,138445,6202,Supplies & Purchasing,60207,Health And Safety Supplies And Services,591.71,2
Cambridge City Council,Jimmys Cambridge,10061600,12/05/2023,138624,1526,Homelessness Prevention Grant,64600,Grants And Contributions,"10,000.00",2
Cambridge City Council,John O'Conner (GM) Ltd,10858700,30/04/2023,138021,1876,Arboriculture,64040,Tree Works,"2,600.00",2
Cambridge City Council,John O'Conner (GM) Ltd,10858700,21/05/2023,139329,1876,Arboriculture,64040,Tree Works,"1,950.00",2
Cambridge City Council,Johnsons Workwear,10062300,29/04/2023,138399,1031,Fleet Management - Operational,62000,"Clothes, Uniform And Laundry","1,033.41",2
Cambridge City Council,Jones Lang LaSalle Ltd,10364800,21/04/2023,137812,1654,Grafton Centre East Car Park,60600,Premises Insurance Premiums,"6,657.29",2
Cambridge City Council,Jones Lang LaSalle Ltd,10364800,12/05/2023,138825,1654,Grafton Centre East Car Park,60600,Premises Insurance Premiums,"5,942.38",2
Cambridge City Council,KCS Asbestos,10063801,31/03/2023,137899,1850,Grounds Maintenance & Street Cleaning,61703,"Purchase - Equipment, Furniture And Materials",575.00,2
Cambridge City Council,Kestrel Fencing,10119900,30/04/2023,138493,100322,S106 Byron's Pool ecological mitigations,70010,CAPEX - Other Professional Fees,"1,043.90",2
Cambridge City Council,Khidmat Sisters,10165500,30/05/2023,139946,1057,Community Development Voluntary Support,64600,Grants And Contributions,650.00,2
Cambridge City Council,Lanpro Services Ltd,10890900,31/03/2023,138120,100358,Depot Relocation programme to create Operational Hub,70008,CAPEX - Architects Fees,"4,600.00",2
Cambridge City Council,Lanpro Services Ltd,10890900,30/04/2023,138123,100358,Depot Relocation programme to create Operational Hub,70008,CAPEX - Architects Fees,"6,400.00",2
Cambridge City Council,Lanpro Services Ltd,10890900,31/03/2023,138121,100358,Depot Relocation programme to create Operational Hub,70010,CAPEX - Other Professional Fees,"1,350.00",2
Cambridge City Council,Lanpro Services Ltd,10890900,30/04/2023,138124,100358,Depot Relocation programme to create Operational Hub,70010,CAPEX - Other Professional Fees,"2,850.00",2
Cambridge City Council,Leaders Limited,10066200,12/05/2023,138713,1526,Homelessness Prevention Grant,63900,Miscellaneous Expenses,900.00,2
Cambridge City Council,Leaders Limited,10066200,12/05/2023,138713,1526,Homelessness Prevention Grant,64600,Grants And Contributions,"2,110.76",2
Cambridge City Council,Level Water,10333400,12/05/2023,138623,1057,Community Development Voluntary Support,64600,Grants And Contributions,"3,000.00",2
Cambridge City Council,Lisa Richards UK Ltd,11176400,03/05/2023,138711,9900,General Fund Balance Sheet,20118,Receipts In Advance - Other Entities And Individuals,"36,255.00",2
Cambridge City Council,Lisa Schwartz,10926600,31/03/2023,140217,1262,Folk Festival,62400,Consultancy Fees,"2,500.00",2
Cambridge City Council,Lisa Schwartz,10926600,02/05/2023,140220,1262,Folk Festival,62400,Consultancy Fees,"1,666.67",2
Cambridge City Council,Locata (Housing Services) Ltd,10067500,31/03/2023,138830,1503,CCC Choice Based Lettings (Revenue),64073,ICT Maintenance and Support,500.00,2
Cambridge City Council,Lumeneye Ltd t/a Solareye,11167100,28/04/2023,138209,300088,Estate Investment,70017,CAPEX - Purchase of Plant Machinery & Equipment,829.24,2
Cambridge City Council,Maintel Europe Ltd,10009800,20/04/2023,136933,5024,E_invoicing Suspense Accounts,69100,Expenditure In Holding Account Awaiting Allocation,"2,088.98",2
Cambridge City Council,Maintel Europe Ltd,10009800,18/05/2023,139345,5024,E_invoicing Suspense Accounts,69100,Expenditure In Holding Account Awaiting Allocation,"2,095.52",2
Cambridge City Council,Marick Management Ltd,10885500,10/05/2023,139227,100300,Park Street car park development,70002,CAPEX - Building Contractor/Works,"550,581.94",2
Cambridge City Council,Marlene Sharpe-Westwood,10069400,28/04/2023,138010,1104,Sport - Ex Ref,62404,Instructors/Tutors,573.00,2
Cambridge City Council,Me Learning Ltd,10841800,05/05/2023,138398,8003,Human Resources - Organisational Development,64300,Conference Expenses,"8,750.00",2
Cambridge City Council,Meadows Children & Family Wing,10070500,12/05/2023,138612,1057,Community Development Voluntary Support,64600,Grants And Contributions,"15,624.25",2
Cambridge City Council,Mercer Tree Services Ltd,10071200,24/02/2023,138729,1876,Arboriculture,64040,Tree Works,"3,762.50",2
Cambridge City Council,Mercer Tree Services Ltd,10071200,24/03/2023,138732,1876,Arboriculture,64040,Tree Works,"1,340.00",2
Cambridge City Council,Mercer Tree Services Ltd,10071200,24/02/2023,138729,1885,Reverse Agency (formerly Unclassified Routine),64040,Tree Works,"3,762.50",2
Cambridge City Council,Mercer Tree Services Ltd,10071200,24/03/2023,138732,1885,Reverse Agency (formerly Unclassified Routine),64040,Tree Works,"1,340.00",2
Cambridge City Council,MHR International UK Ltd,10875900,25/04/2023,137881,8000,Human Resources - Business Support,64073,ICT Maintenance and Support,"1,080.00",2
Cambridge City Council,Mill Road Winter Fair,10072000,12/05/2023,138614,1057,Community Development Voluntary Support,64600,Grants And Contributions,"2,500.00",2
Cambridge City Council,Miss Millie Polimac - Five Paper,11148100,24/05/2023,139917,6207,Repairs Day to Day,66600,Compensation,873.39,2
Cambridge City Council,MJ Partnership Ltd,10955100,27/04/2023,137891,1073,Community Development - Admin,60115,Staff Development And Training,800.00,2
Cambridge City Council,Morgan Lambert Ltd,10620300,30/04/2023,138319,6211,Heat and Hot Water Servicing,60225,Housing Repairs - Gas Maintenance Contract,705.74,2
Cambridge City Council,Mr Michael Mullin,10831700,31/03/2023,137902,1502,Homelessness Costs,63200,Legal Fees,"2,000.00",2
Cambridge City Council,Mr R Sewell T/A Willingham Funeral Service,11028400,26/04/2023,138022,1001,Cambridge Crematorium,53006,Bereavement  - Fees And Charges (E),632.00,2
Cambridge City Council,MRC Presents,11187600,12/05/2023,139213,9900,General Fund Balance Sheet,20118,Receipts In Advance - Other Entities And Individuals,"27,986.36",2
Cambridge City Council,Mrs Elizabeth Nicholls,11119900,27/04/2023,137850,6207,Repairs Day to Day,63200,Legal Fees,750.00,2
Cambridge City Council,Mums4Ukraine Ltd,11078600,25/04/2023,136939,1050,Community Safety,64600,Grants And Contributions,"5,000.00",2
Cambridge City Council,New International Encounter,10161400,30/05/2023,139945,1057,Community Development Voluntary Support,64600,Grants And Contributions,"4,500.00",2
Cambridge City Council,New Life Church Cambridge,11171500,03/05/2023,138032,1069,NW Cambridge Quadrant (S106),64600,Grants And Contributions,500.00,2
Cambridge City Council,Newlyn PLC,10075600,29/04/2023,139771,9900,General Fund Balance Sheet,11708,Vat Debtor (Input Tax),"1,258.21",2
Cambridge City Council,Newnham (Cambridge) Bowls Club,10075700,11/05/2023,138672,1100,Sport & Recreation Administration,64600,Grants And Contributions,"5,885.70",2
Cambridge City Council,Northdown Property Services (NPS) Ltd,10926000,28/04/2023,137815,6207,Repairs Day to Day,60233,Housing Repairs - Work Given To External Contractors,"1,272.75",2
Cambridge City Council,Northdown Property Services (NPS) Ltd,10926000,28/04/2023,137816,6207,Repairs Day to Day,60233,Housing Repairs - Work Given To External Contractors,"2,465.40",2
Cambridge City Council,Northdown Property Services (NPS) Ltd,10926000,28/04/2023,138173,6207,Repairs Day to Day,60233,Housing Repairs - Work Given To External Contractors,"3,199.89",2
Cambridge City Council,Northdown Property Services (NPS) Ltd,10926000,28/04/2023,138174,6207,Repairs Day to Day,60233,Housing Repairs - Work Given To External Contractors,954.00,2
Cambridge City Council,Northdown Property Services (NPS) Ltd,10926000,28/04/2023,138176,6207,Repairs Day to Day,60233,Housing Repairs - Work Given To External Contractors,"2,607.77",2
Cambridge City Council,Northdown Property Services (NPS) Ltd,10926000,11/05/2023,138964,6207,Repairs Day to Day,60233,Housing Repairs - Work Given To External Contractors,"6,590.33",2
Cambridge City Council,Northdown Property Services (NPS) Ltd,10926000,16/05/2023,138914,6208,Voids,60233,Housing Repairs - Work Given To External Contractors,"14,991.50",2
Cambridge City Council,Northdown Property Services (NPS) Ltd,10926000,16/05/2023,138914,300013,Kitchens,70003,CAPEX - Building Contractor/Works - Voids & Emergencies,"9,289.97",2
Cambridge City Council,Northdown Property Services (NPS) Ltd,10926000,16/05/2023,138914,300014,Bathrooms,70003,CAPEX - Building Contractor/Works - Voids & Emergencies,"3,551.30",2
Cambridge City Council,Npower Ltd,10077102,07/03/2023,132209,1101,Leisure Contract Management Fees,60303,Electricity,"16,852.31",2
Cambridge City Council,Npower Ltd,10077102,07/03/2023,132213,1101,Leisure Contract Management Fees,60303,Electricity,"7,864.47",2
Cambridge City Council,Nurture Landscapes Ltd,10132000,30/04/2023,137847,1774,"Cambridge Road Retail Park, Haverhill",60503,Grounds Maintenance,851.89,2
Cambridge City Council,OASIS - Offsite Storage & Integrated Services UK Ltd,10155800,30/04/2023,137914,8023,Business Support - Centralised Overheads,63700,Removal Services,671.83,2
Cambridge City Council,Oasis Hotel Harlow Ltd,10195300,04/05/2023,138387,1532,Bed & Breakfast (B&B) Costs,64401,B&B Accommodation,"1,278.75",2
Cambridge City Council,Oasis Hotel Harlow Ltd,10195300,04/05/2023,138392,1532,Bed & Breakfast (B&B) Costs,64401,B&B Accommodation,536.25,2
Cambridge City Council,Oasis Hotel Harlow Ltd,10195300,04/05/2023,138394,1532,Bed & Breakfast (B&B) Costs,64401,B&B Accommodation,"1,278.75",2
Cambridge City Council,Oasis Hotel Harlow Ltd,10195300,04/05/2023,138396,1532,Bed & Breakfast (B&B) Costs,64401,B&B Accommodation,536.25,2
Cambridge City Council,Oasis Hotel Harlow Ltd,10195300,05/04/2023,138630,1532,Bed & Breakfast (B&B) Costs,64401,B&B Accommodation,618.75,2
Cambridge City Council,Oblique Arts,10159100,12/05/2023,138607,1057,Community Development Voluntary Support,62900,Events,500.00,2
Cambridge City Council,Outspoken Logistics Ltd T/A Zedify,11038000,30/04/2023,137990,8023,Business Support - Centralised Overheads,64100,Postage And Courier Services,"1,296.00",2
Cambridge City Council,PACE Rights Management LLP,11159900,17/03/2023,139137,700447,,60410,Licences,667.32,2
Cambridge City Council,Panther Cambridge Ltd,10079600,30/04/2023,138912,1712,Taxicard Service,63900,Miscellaneous Expenses,"2,229.99",2
Cambridge City Council,Paseana Ltd,11187900,18/05/2023,139350,100258,Meadows Community Hub and Buchan St retail outlet,70024,CAPEX - Other Capital Expenditure,"30,000.00",2
Cambridge City Council,Passport365 Ltd,11117000,30/04/2023,138009,1868,Play Maintenance,60503,Grounds Maintenance,"1,920.00",2
Cambridge City Council,Penna PLC,10080400,28/04/2023,137907,6203,Asset Management and Compliance,60116,Staff Recruitment Costs,920.00,2
Cambridge City Council,Pennon Water Services Ltd t/a Source for Business,10080500,02/05/2023,138327,5024,E_invoicing Suspense Accounts,69100,Expenditure In Holding Account Awaiting Allocation,897.81,2
Cambridge City Council,People Asset Management Ltd,10145100,30/04/2023,138060,8001,Human Resources Operations (Staff-General),60111,Occupational Health,789.75,2
Cambridge City Council,People Asset Management Ltd,10145100,30/04/2023,138060,8001,Human Resources Operations (Staff-General),60111,Occupational Health,"1,566.90",2
Cambridge City Council,Peter Dann Ltd,10081100,23/02/2023,138847,100200,Redevelopment of Silver Street Toilets,70009,CAPEX - Engineers Fees,"2,425.00",2
Cambridge City Council,Phoenix HSC (UK) Ltd,10372600,24/04/2023,137912,1201,Emergency Planning,64300,Conference Expenses,715.50,2
Cambridge City Council,Phoenix HSC (UK) Ltd,10372600,20/04/2023,137909,1205,Quality/Health & Safety Management - Indirect,64300,Conference Expenses,"1,615.50",2
Cambridge City Council,PHS Group Ltd,10082000,01/03/2023,131677,1662,Shopmobility-Grand Arcade,60207,Health And Safety Supplies And Services,583.33,2
Cambridge City Council,PHS Group Ltd,10082000,27/04/2023,137911,1001,Cambridge Crematorium,60501,Cleaning Services,687.73,2
Cambridge City Council,PHS Group Ltd,10082000,02/03/2023,131676,1063,The Meadows Community Centre,60501,Cleaning Services,771.67,2
Cambridge City Council,Pivot Furniture Ltd,10160900,07/03/2023,138727,1517,Syrian Resettlement,60700,Fixtures & Fittings,"5,642.66",2
Cambridge City Council,PortalPlanQuest Ltd,10239400,21/04/2023,136694,1702,City Development,54102,Planning Applications Income - Minor,"2,772.00",2
Cambridge City Council,PortalPlanQuest Ltd,10239400,10/05/2023,138455,100358,Depot Relocation programme to create Operational Hub,70010,CAPEX - Other Professional Fees,"3,298.00",2
Cambridge City Council,"Postmodern Jukebox Touring, Inc",11171700,27/04/2023,140221,700459,,52240,Merchandise Commission,837.70,2
Cambridge City Council,Potter Raper Partnership,10294300,31/03/2023,138802,1506,Housing Development Agency,62400,Consultancy Fees,500.00,2
Cambridge City Council,Potter Raper Partnership,10294300,28/04/2023,138944,1506,Housing Development Agency,62400,Consultancy Fees,500.00,2
Cambridge City Council,Potter Raper Partnership,10294300,28/04/2023,138804,300089,New Build - Clerk Maxwell Road,70010,CAPEX - Other Professional Fees,"1,937.61",2
Cambridge City Council,Potter Raper Partnership,10294300,28/04/2023,138804,300089,New Build - Clerk Maxwell Road,70010,CAPEX - Other Professional Fees,"2,783.51",2
Cambridge City Council,Potter Raper Partnership,10294300,28/02/2023,138911,300091,New Build - Campkin Road Phase 2,70010,CAPEX - Other Professional Fees,"2,812.50",2
Cambridge City Council,Potter Raper Partnership,10294300,31/03/2023,139330,300091,New Build - Campkin Road Phase 2,70010,CAPEX - Other Professional Fees,"2,812.50",2
Cambridge City Council,Potter Raper Partnership,10294300,28/02/2023,138736,300097,New Build - Colville Road III,70010,CAPEX - Other Professional Fees,"3,369.70",2
Cambridge City Council,Potter Raper Partnership,10294300,28/04/2023,138738,300097,New Build - Colville Road III,70010,CAPEX - Other Professional Fees,"3,369.71",2
Cambridge City Council,Potter Raper Partnership,10294300,28/04/2023,138799,300105,New Build - Aylesborough Close,70010,CAPEX - Other Professional Fees,"8,621.09",2
Cambridge City Council,Potter Raper Partnership,10294300,31/03/2023,138841,300105,New Build - Aylesborough Close,70010,CAPEX - Other Professional Fees,"13,661.09",2
Cambridge City Council,Potter Raper Partnership,10294300,31/03/2023,138800,300108,Fanshawe Road,70010,CAPEX - Other Professional Fees,"12,246.67",2
Cambridge City Council,Potter Raper Partnership,10294300,28/04/2023,138803,300108,Fanshawe Road,70010,CAPEX - Other Professional Fees,"12,246.67",2
Cambridge City Council,PPL PRS Ltd,10274200,27/04/2023,137998,700258,,60415,PRS,"1,846.53",2
Cambridge City Council,PPL PRS Ltd,10274200,27/04/2023,137998,700286,,60415,PRS,"1,344.72",2
Cambridge City Council,PPL PRS Ltd,10274200,27/04/2023,137998,700395,,60415,PRS,730.80,2
Cambridge City Council,PPL PRS Ltd,10274200,27/04/2023,137998,700399,,60415,PRS,"1,245.66",2
Cambridge City Council,PPL PRS Ltd,10274200,27/04/2023,137998,700409,,60415,PRS,522.05,2
Cambridge City Council,PPL PRS Ltd,10274200,27/04/2023,137998,700414,,60415,PRS,"2,124.94",2
Cambridge City Council,PPL PRS Ltd,10274200,27/04/2023,137998,700419,,60415,PRS,"1,255.67",2
Cambridge City Council,PPL PRS Ltd,10274200,27/04/2023,137998,700420,,60415,PRS,"1,265.63",2
Cambridge City Council,PPL PRS Ltd,10274200,27/04/2023,137998,700426,,60415,PRS,"1,438.27",2
Cambridge City Council,PPL PRS Ltd,10274200,27/04/2023,137998,700430,,60415,PRS,"1,187.64",2
Cambridge City Council,PPL PRS Ltd,10274200,27/04/2023,137998,700432,,60415,PRS,"1,686.30",2
Cambridge City Council,PPL PRS Ltd,10274200,27/04/2023,137998,700438,,60415,PRS,"1,126.91",2
Cambridge City Council,PPL PRS Ltd,10274200,27/04/2023,137998,700441,,60415,PRS,"1,626.58",2
Cambridge City Council,PPL PRS Ltd,10274200,27/04/2023,137998,700442,,60415,PRS,"1,069.18",2
Cambridge City Council,PPL PRS Ltd,10274200,27/04/2023,137998,700446,,60415,PRS,"1,503.82",2
Cambridge City Council,PPL PRS Ltd,10274200,27/04/2023,137998,700451,,60415,PRS,"1,043.69",2
Cambridge City Council,PPL PRS Ltd,10274200,27/04/2023,137998,700452,,60415,PRS,"1,143.94",2
Cambridge City Council,PPL PRS Ltd,10274200,27/04/2023,137998,700453,,60415,PRS,"2,297.12",2
Cambridge City Council,Print.UK.Com,10083800,28/04/2023,138605,1353,Elections,62001,Printing,"3,539.44",2
Cambridge City Council,Print.UK.Com,10083800,18/05/2023,139140,1353,Elections,62001,Printing,610.00,2
Cambridge City Council,Print.UK.Com,10083800,30/04/2023,138628,1353,Elections,62001,Printing,"8,246.58",2
Cambridge City Council,Print.UK.Com,10083800,30/04/2023,138628,5064,Elections-County Council,62001,Printing,977.68,2
Cambridge City Council,Print.UK.Com,10083800,11/05/2023,138752,5064,Elections-County Council,62001,Printing,523.85,2
Cambridge City Council,Print.UK.Com,10083800,18/05/2023,139200,1353,Elections,64100,Postage And Courier Services,513.33,2
Cambridge City Council,Print.UK.Com,10083800,30/04/2023,138628,1353,Elections,64100,Postage And Courier Services,"9,494.83",2
Cambridge City Council,Print.UK.Com,10083800,11/05/2023,138752,1353,Elections,64100,Postage And Courier Services,"1,196.69",2
Cambridge City Council,Print.UK.Com,10083800,30/04/2023,138628,5064,Elections-County Council,64100,Postage And Courier Services,820.76,2
Cambridge City Council,Print.UK.Com,10083800,11/05/2023,138752,5064,Elections-County Council,64100,Postage And Courier Services,"3,009.13",2
Cambridge City Council,Priority Hire Ltd,10084100,30/04/2023,138754,6110,City Homes Estate Management,60909,Vehicle Hire,"1,100.00",2
Cambridge City Council,Priority Hire Ltd,10084100,22/05/2023,140294,6110,City Homes Estate Management,60909,Vehicle Hire,605.00,2
Cambridge City Council,Priority Hire Ltd,10084100,30/04/2023,138755,6200,Building Maintenance Response - Direct,60909,Vehicle Hire,570.00,2
Cambridge City Council,Priority Hire Ltd,10084100,22/05/2023,140293,6200,Building Maintenance Response - Direct,60909,Vehicle Hire,605.00,2
Cambridge City Council,Professional Pest Management Ltd t/a PPM,11133300,10/05/2023,139005,6012,City Homes Expenditure,60271,Security Of Premises,"1,485.00",2
Cambridge City Council,Pro-Flat Specialist Services Ltd,10123200,27/04/2023,137535,6207,Repairs Day to Day,60233,Housing Repairs - Work Given To External Contractors,"1,287.00",2
Cambridge City Council,Pro-Flat Specialist Services Ltd,10123200,27/04/2023,137536,6207,Repairs Day to Day,60233,Housing Repairs - Work Given To External Contractors,"1,589.00",2
Cambridge City Council,Prompt Glazing Ltd,10283900,19/05/2023,139151,6207,Repairs Day to Day,60233,Housing Repairs - Work Given To External Contractors,508.01,2
Cambridge City Council,Prompt Glazing Ltd,10283900,12/05/2023,138763,6207,Repairs Day to Day,60233,Housing Repairs - Work Given To External Contractors,682.00,2
Cambridge City Council,Prompt Glazing Ltd,10283900,12/05/2023,138771,6207,Repairs Day to Day,60233,Housing Repairs - Work Given To External Contractors,546.56,2
Cambridge City Council,Prompt Glazing Ltd,10283900,08/05/2023,138361,6207,Repairs Day to Day,60233,Housing Repairs - Work Given To External Contractors,528.90,2
Cambridge City Council,Prompt Glazing Ltd,10283900,10/05/2023,138602,6208,Voids,60233,Housing Repairs - Work Given To External Contractors,"2,734.89",2
Cambridge City Council,Prompt Glazing Ltd,10283900,04/05/2023,138306,6208,Voids,60233,Housing Repairs - Work Given To External Contractors,834.78,2
Cambridge City Council,Prompt Glazing Ltd,10283900,17/05/2023,138949,6208,Voids,60233,Housing Repairs - Work Given To External Contractors,847.99,2
Cambridge City Council,Prompt Glazing Ltd,10283900,10/05/2023,138603,300012,External Doors,70003,CAPEX - Building Contractor/Works - Voids & Emergencies,712.50,2
Cambridge City Council,Prompt Glazing Ltd,10283900,28/04/2023,137568,300012,External Doors,70003,CAPEX - Building Contractor/Works - Voids & Emergencies,"1,349.00",2
Cambridge City Council,Prompt Glazing Ltd,10283900,28/04/2023,137569,300012,External Doors,70003,CAPEX - Building Contractor/Works - Voids & Emergencies,"1,349.00",2
Cambridge City Council,Prompt Glazing Ltd,10283900,03/05/2023,138136,300012,External Doors,70003,CAPEX - Building Contractor/Works - Voids & Emergencies,"1,349.00",2
Cambridge City Council,Prompt Glazing Ltd,10283900,03/05/2023,138137,300012,External Doors,70003,CAPEX - Building Contractor/Works - Voids & Emergencies,"1,481.50",2
Cambridge City Council,Prompt Glazing Ltd,10283900,03/05/2023,138138,300012,External Doors,70003,CAPEX - Building Contractor/Works - Voids & Emergencies,712.50,2
Cambridge City Council,Prompt Glazing Ltd,10283900,12/05/2023,138772,300012,External Doors,70003,CAPEX - Building Contractor/Works - Voids & Emergencies,712.50,2
Cambridge City Council,Prompt Glazing Ltd,10283900,02/05/2023,137856,300012,External Doors,70003,CAPEX - Building Contractor/Works - Voids & Emergencies,"1,349.00",2
Cambridge City Council,Prompt Glazing Ltd,10283900,02/05/2023,137874,300012,External Doors,70003,CAPEX - Building Contractor/Works - Voids & Emergencies,712.50,2
Cambridge City Council,Prompt Glazing Ltd,10283900,02/05/2023,137875,300012,External Doors,70003,CAPEX - Building Contractor/Works - Voids & Emergencies,"1,349.00",2
Cambridge City Council,Prompt Glazing Ltd,10283900,02/05/2023,137876,300012,External Doors,70003,CAPEX - Building Contractor/Works - Voids & Emergencies,712.50,2
Cambridge City Council,Prompt Glazing Ltd,10283900,16/05/2023,138890,300012,External Doors,70003,CAPEX - Building Contractor/Works - Voids & Emergencies,769.00,2
Cambridge City Council,Prompt Glazing Ltd,10283900,16/05/2023,138894,300012,External Doors,70003,CAPEX - Building Contractor/Works - Voids & Emergencies,769.00,2
Cambridge City Council,Prompt Glazing Ltd,10283900,17/05/2023,139112,300012,External Doors,70003,CAPEX - Building Contractor/Works - Voids & Emergencies,769.00,2
Cambridge City Council,Prompt Glazing Ltd,10283900,02/05/2023,138041,300012,External Doors,70003,CAPEX - Building Contractor/Works - Voids & Emergencies,"1,481.50",2
Cambridge City Council,Prompt Glazing Ltd,10283900,22/05/2023,139292,300012,External Doors,70003,CAPEX - Building Contractor/Works - Voids & Emergencies,826.89,2
Cambridge City Council,Prompt Glazing Ltd,10283900,23/05/2023,139351,300012,External Doors,70003,CAPEX - Building Contractor/Works - Voids & Emergencies,769.00,2
Cambridge City Council,Prompt Glazing Ltd,10283900,23/05/2023,139352,300012,External Doors,70003,CAPEX - Building Contractor/Works - Voids & Emergencies,769.00,2
Cambridge City Council,Prompt Glazing Ltd,10283900,23/05/2023,139353,300012,External Doors,70003,CAPEX - Building Contractor/Works - Voids & Emergencies,769.00,2
Cambridge City Council,Prompt Glazing Ltd,10283900,25/05/2023,139861,300012,External Doors,70003,CAPEX - Building Contractor/Works - Voids & Emergencies,"1,349.00",2
Cambridge City Council,Prompt Glazing Ltd,10283900,25/05/2023,139862,300012,External Doors,70003,CAPEX - Building Contractor/Works - Voids & Emergencies,"1,349.00",2
Cambridge City Council,Prompt Glazing Ltd,10283900,25/05/2023,139873,300012,External Doors,70003,CAPEX - Building Contractor/Works - Voids & Emergencies,769.00,2
Cambridge City Council,Prompt Glazing Ltd,10283900,17/05/2023,138950,300012,External Doors,70003,CAPEX - Building Contractor/Works - Voids & Emergencies,769.00,2
Cambridge City Council,Prowse Phillips Law Ltd,11145900,26/05/2023,140194,6207,Repairs Day to Day,63200,Legal Fees,"12,037.12",2
Cambridge City Council,R Goodwin Consulting Ltd,11021200,22/05/2023,139331,1217,Our Cambridge Transformation Programme,62400,Consultancy Fees,"2,857.50",2
Cambridge City Council,R J Warren Ltd,10123500,02/05/2023,138004,1868,Play Maintenance,61702,"Maintenance - Equipment, Furniture And Materials","2,121.75",2
Cambridge City Council,R J Warren Ltd,10123500,19/05/2023,139332,1868,Play Maintenance,61702,"Maintenance - Equipment, Furniture And Materials","3,850.00",2
Cambridge City Council,R J Warren Ltd,10123500,17/05/2023,139006,1868,Play Maintenance,61703,"Purchase - Equipment, Furniture And Materials","6,273.50",2
Cambridge City Council,Realife Trust,10086900,20/04/2023,136886,1766,Orwell House Offices-Internal,62004,General Office Expenses,"1,955.24",2
Cambridge City Council,Realife Trust,10086900,20/05/2023,139298,1766,Orwell House Offices-Internal,62004,General Office Expenses,"1,806.16",2
Cambridge City Council,Reliance High Tech Ltd,10087500,09/05/2023,138507,6012,City Homes Expenditure,64077,Telephone And Mobile Phone Costs,"2,168.40",2
Cambridge City Council,Rexel UK Ltd Ta Newey & Eyre,10088100,17/05/2023,140193,9900,General Fund Balance Sheet,11600,Consumable Stores,"1,306.84",2
Cambridge City Council,Ricardo-AEA Limited,10088700,02/05/2023,138740,1404,Environmental Quality and Growth,62400,Consultancy Fees,"2,414.50",2
Cambridge City Council,Ridge & Partners LLP,11195500,27/04/2023,138001,1870,Public Toilets,50000,Government Grants Revenue Income - Ringfenced,"8,320.00",2
Cambridge City Council,Riggall and Hawksford Ltd,10273500,19/05/2023,139199,6207,Repairs Day to Day,60233,Housing Repairs - Work Given To External Contractors,815.14,2
Cambridge City Council,Riggall and Hawksford Ltd,10273500,11/05/2023,138783,6208,Voids,60233,Housing Repairs - Work Given To External Contractors,"2,449.98",2
Cambridge City Council,Riggall and Hawksford Ltd,10273500,12/05/2023,138785,6208,Voids,60233,Housing Repairs - Work Given To External Contractors,"1,272.08",2
Cambridge City Council,Riggall and Hawksford Ltd,10273500,22/05/2023,139293,6208,Voids,60233,Housing Repairs - Work Given To External Contractors,"1,892.80",2
Cambridge City Council,Riggall and Hawksford Ltd,10273500,09/05/2023,138410,6208,Voids,60233,Housing Repairs - Work Given To External Contractors,"1,233.74",2
Cambridge City Council,Rightmove Group Ltd,10089400,19/05/2023,139749,1516,CLG Supplementary Homelessness Grants,62005,"Advertising, Publicity And Marketing",998.75,2
Cambridge City Council,Rightmove Group Ltd,10089400,19/05/2023,139299,1758,Other Commercial Properties,62005,"Advertising, Publicity And Marketing",625.00,2
Cambridge City Council,Risk Warden Ltd,10441100,03/05/2023,138263,6215,Risk and Compliance,60205,Fire Assessment And Safety,"11,589.60",2
Cambridge City Council,Rock Townsend Architects LLP,11109300,28/04/2023,138498,6203,Asset Management and Compliance,62400,Consultancy Fees,"3,920.00",2
Cambridge City Council,Romsey Mill Trust Ltd - Youth Centre,10090201,12/05/2023,138615,1057,Community Development Voluntary Support,64600,Grants And Contributions,"8,020.75",2
Cambridge City Council,Royal Mail Group Ltd,10128401,05/05/2023,139201,1353,Elections,64100,Postage And Courier Services,"1,967.52",2
Cambridge City Council,Royal Mail Group Ltd,10128401,12/05/2023,139202,1353,Elections,64100,Postage And Courier Services,829.02,2
Cambridge City Council,Royal Mail Group Ltd,10128401,21/04/2023,137063,1353,Elections,64100,Postage And Courier Services,"2,057.38",2
Cambridge City Council,Royal Mail Group Ltd,10128401,28/04/2023,138812,1353,Elections,64100,Postage And Courier Services,"2,496.66",2
Cambridge City Council,S & P Mainlayers Ltd,11107500,31/03/2023,136276,6207,Repairs Day to Day,60233,Housing Repairs - Work Given To External Contractors,"1,750.00",2
Cambridge City Council,S J Pollard Building & Maintenance Ltd,10411500,11/05/2023,138806,1260,Corn Exchange and Guildhalls,60209,R & M Minor Works,"1,680.00",2
Cambridge City Council,S Robb & Son,11140500,20/03/2023,137838,1935,Markets,61702,"Maintenance - Equipment, Furniture And Materials","1,929.05",2
Cambridge City Council,Saint-Gobain Building Distribution Ltd t/a Jewson,10061400,02/05/2023,140193,9900,General Fund Balance Sheet,11600,Consumable Stores,531.84,2
Cambridge City Council,Saunders Boston Ltd,10091900,30/04/2023,138852,300075,New Build - Kendal Way,70008,CAPEX - Architects Fees,"2,250.00",2
Cambridge City Council,Saunders Boston Ltd,10091900,30/04/2023,138854,300086,New Build - Teddar Way,70008,CAPEX - Architects Fees,"2,100.00",2
Cambridge City Council,Savills (UK) Ltd,10092000,27/03/2023,138937,1506,Housing Development Agency,62400,Consultancy Fees,"20,000.00",2
Cambridge City Council,Secure Haven Ltd,10488900,28/02/2023,138063,1001,Cambridge Crematorium,53006,Bereavement  - Fees And Charges (E),"1,767.00",2
Cambridge City Council,Secure Haven Ltd,10488900,30/03/2023,138071,1001,Cambridge Crematorium,53006,Bereavement  - Fees And Charges (E),"1,172.00",2
Cambridge City Council,Secure Haven Ltd,10488900,27/04/2023,138072,1001,Cambridge Crematorium,53006,Bereavement  - Fees And Charges (E),"1,790.00",2
Cambridge City Council,Secure Haven Ltd,10488900,20/04/2023,138074,1001,Cambridge Crematorium,53006,Bereavement  - Fees And Charges (E),"1,622.00",2
Cambridge City Council,Secure Haven Ltd,10488900,04/05/2023,138261,1001,Cambridge Crematorium,53006,Bereavement  - Fees And Charges (E),840.00,2
Cambridge City Council,Sharpe Pritchard LLP,10093300,30/04/2023,138747,1661,Parking Administration,62400,Consultancy Fees,760.00,2
Cambridge City Council,Sharpe Pritchard LLP,10093300,30/04/2023,138849,1253,Cambridgeshire and Peterborough Region of Learning,63200,Legal Fees,"3,503.00",2
Cambridge City Council,Sharpe Pritchard LLP,10093300,31/03/2023,138076,100358,Depot Relocation programme to create Operational Hub,70020,CAPEX - Feasibility/investigatory work,"4,325.50",2
Cambridge City Council,Sharpe Pritchard LLP,10093300,30/04/2023,139750,100358,Depot Relocation programme to create Operational Hub,70020,CAPEX - Feasibility/investigatory work,"1,187.50",2
Cambridge City Council,Smith Bros (Caer Conan) Wholesale Ltd,10095400,09/05/2023,138566,9900,General Fund Balance Sheet,11600,Consumable Stores,"1,080.00",2
Cambridge City Council,South Cambridgeshire District Council,10096103,02/05/2023,138687,1702,City Development,58400,Income In Holding Account Awaiting Allocation,"2,853.79",2
Cambridge City Council,South Cambridgeshire District Council,10096103,02/05/2023,138687,1702,City Development,58400,Income In Holding Account Awaiting Allocation,625.84,2
Cambridge City Council,South Cambridgeshire District Council,10096103,02/05/2023,138691,1702,City Development,58400,Income In Holding Account Awaiting Allocation,"5,323.33",2
Cambridge City Council,South Cambridgeshire District Council,10096103,02/05/2023,138691,1702,City Development,58400,Income In Holding Account Awaiting Allocation,"79,890.64",2
Cambridge City Council,South Cambridgeshire District Council,10096103,11/04/2023,139895,1954,Trade Refuse - Operational,58400,Income In Holding Account Awaiting Allocation,"2,428,000.42",2
Cambridge City Council,South Cambridgeshire District Council,10096103,21/03/2023,137562,5118,Integrated Lifestyles Service,61800,Contract Charges,"30,213.69",2
Cambridge City Council,South Cambridgeshire District Council,10096103,09/05/2023,138447,1859,S&OS Community Engagement,62900,Events,"1,235.00",2
Cambridge City Council,South Cambridgeshire District Council,10096103,27/04/2023,138070,100300,Park Street car park development,70010,CAPEX - Other Professional Fees,"5,200.00",2
Cambridge City Council,South Cambridgeshire District Council,10096103,20/01/2023,138107,100300,Park Street car park development,70010,CAPEX - Other Professional Fees,"6,298.00",2
Cambridge City Council,SSE plc - Southern Electric,10096200,10/05/2023,138872,6102,Temporary Accommodation,60303,Electricity,653.01,2
Cambridge City Council,St Augustines Church,10097000,09/05/2023,140285,1353,Elections,60402,Premises Hire - Facilities,500.00,2
Cambridge City Council,St Barnabas Church - acc 00095110,10097101,30/05/2023,139955,1057,Community Development Voluntary Support,62900,Events,500.00,2
Cambridge City Council,St Giles Church Cambridge,10971500,12/05/2023,138620,1057,Community Development Voluntary Support,62900,Events,500.00,2
Cambridge City Council,St John The Evangelist,10097500,16/05/2023,139800,1353,Elections,60402,Premises Hire - Facilities,850.00,2
Cambridge City Council,St Martins Church,10098300,30/05/2023,139956,1057,Community Development Voluntary Support,62900,Events,500.00,2
Cambridge City Council,St Martins Church,10098300,30/05/2023,139952,1057,Community Development Voluntary Support,64600,Grants And Contributions,"3,515.00",2
Cambridge City Council,St Matthews Parish Rooms,10215100,16/05/2023,139802,1353,Elections,60402,Premises Hire - Facilities,510.00,2
Cambridge City Council,St Philips Church,10206000,12/05/2023,138625,1057,Community Development Voluntary Support,64600,Grants And Contributions,"1,850.00",2
Cambridge City Council,Strawberry Fair,10098900,30/05/2023,139954,1057,Community Development Voluntary Support,64600,Grants And Contributions,"10,000.00",2
Cambridge City Council,Strictly Theatre Co Ltd,10421600,23/04/2023,138966,9900,General Fund Balance Sheet,20118,Receipts In Advance - Other Entities And Individuals,"25,844.64",2
Cambridge City Council,Strictly Theatre Co Ltd,10421600,02/05/2023,138013,700455,,52240,Merchandise Commission,722.50,2
Cambridge City Council,Student Community Action,10099200,30/05/2023,139947,1057,Community Development Voluntary Support,64600,Grants And Contributions,"6,000.00",2
Cambridge City Council,Studio 24 Ltd,10249400,01/05/2023,138749,1263,Cultural Services and Events - Central,61930,Cultural Services and Events Website,642.70,2
Cambridge City Council,Supra UK Limited T/A The Key Safe Company,10100200,31/05/2023,138184,9900,General Fund Balance Sheet,11600,Consumable Stores,"2,760.00",2
Cambridge City Council,Supra UK Limited T/A The Key Safe Company,10100200,26/04/2023,138406,9900,General Fund Balance Sheet,11600,Consumable Stores,"2,892.00",2
Cambridge City Council,Swift Kitchen Ltd,10712000,05/05/2023,138413,1350,Civic Affairs and Twinning,62900,Events,"2,475.00",2
Cambridge City Council,Swift Kitchen Ltd,10712000,19/05/2023,139926,1354,Committee Management,62900,Events,"1,980.00",2
Cambridge City Council,Tanner & Hall Roofing & Solar Systems Ltd,10124500,30/03/2023,138271,6207,Repairs Day to Day,60233,Housing Repairs - Work Given To External Contractors,750.00,2
Cambridge City Council,Tanner & Hall Roofing & Solar Systems Ltd,10124500,30/03/2023,138278,6207,Repairs Day to Day,60233,Housing Repairs - Work Given To External Contractors,950.00,2
Cambridge City Council,Tanner & Hall Roofing & Solar Systems Ltd,10124500,30/03/2023,138279,6207,Repairs Day to Day,60233,Housing Repairs - Work Given To External Contractors,650.00,2
Cambridge City Council,Tanner & Hall Roofing & Solar Systems Ltd,10124500,30/03/2023,138280,6207,Repairs Day to Day,60233,Housing Repairs - Work Given To External Contractors,"1,350.00",2
Cambridge City Council,Tanner & Hall Roofing & Solar Systems Ltd,10124500,30/03/2023,138281,6207,Repairs Day to Day,60233,Housing Repairs - Work Given To External Contractors,550.00,2
Cambridge City Council,Tanner & Hall Roofing & Solar Systems Ltd,10124500,22/05/2023,139694,6207,Repairs Day to Day,60233,Housing Repairs - Work Given To External Contractors,"1,650.00",2
Cambridge City Council,Tanner & Hall Roofing & Solar Systems Ltd,10124500,22/05/2023,139695,6207,Repairs Day to Day,60233,Housing Repairs - Work Given To External Contractors,"1,250.00",2
Cambridge City Council,Tanner & Hall Roofing & Solar Systems Ltd,10124500,22/05/2023,139696,6207,Repairs Day to Day,60233,Housing Repairs - Work Given To External Contractors,"1,950.00",2
Cambridge City Council,Tanner & Hall Roofing & Solar Systems Ltd,10124500,30/03/2023,138274,6207,Repairs Day to Day,60233,Housing Repairs - Work Given To External Contractors,850.00,2
Cambridge City Council,Tanner & Hall Roofing & Solar Systems Ltd,10124500,30/03/2023,138262,6207,Repairs Day to Day,60233,Housing Repairs - Work Given To External Contractors,950.00,2
Cambridge City Council,Tanner & Hall Roofing & Solar Systems Ltd,10124500,30/03/2023,138264,6207,Repairs Day to Day,60233,Housing Repairs - Work Given To External Contractors,750.00,2
Cambridge City Council,Tanner & Hall Roofing & Solar Systems Ltd,10124500,30/03/2023,138265,6207,Repairs Day to Day,60233,Housing Repairs - Work Given To External Contractors,750.00,2
Cambridge City Council,Tanner & Hall Roofing & Solar Systems Ltd,10124500,30/03/2023,138268,6207,Repairs Day to Day,60233,Housing Repairs - Work Given To External Contractors,"1,250.00",2
Cambridge City Council,Tanner & Hall Roofing & Solar Systems Ltd,10124500,23/05/2023,139734,6207,Repairs Day to Day,60233,Housing Repairs - Work Given To External Contractors,"1,100.00",2
Cambridge City Council,Tanner & Hall Roofing & Solar Systems Ltd,10124500,23/05/2023,139735,6207,Repairs Day to Day,60233,Housing Repairs - Work Given To External Contractors,850.00,2
Cambridge City Council,Tanner & Hall Roofing & Solar Systems Ltd,10124500,30/03/2023,138272,300011,Roof Covering,70003,CAPEX - Building Contractor/Works - Voids & Emergencies,"2,650.00",2
Cambridge City Council,Technology One (UK) Limited,10101100,16/05/2023,138931,8006,Accountancy and Support Services,64073,ICT Maintenance and Support,"1,250.00",2
Cambridge City Council,TEG Live Europe Ltd,10332100,06/05/2023,138710,9900,General Fund Balance Sheet,20118,Receipts In Advance - Other Entities And Individuals,966.10,2
Cambridge City Council,Terberg Matec UK Ltd,10101500,22/05/2023,140219,1032,Garage- External Work,61703,"Purchase - Equipment, Furniture And Materials",547.56,2
Cambridge City Council,The Academy Of Ancient Music,10303300,10/05/2023,138767,9900,General Fund Balance Sheet,20118,Receipts In Advance - Other Entities And Individuals,"8,215.05",2
Cambridge City Council,The Beck Co Ltd,10101800,19/05/2023,140193,9900,General Fund Balance Sheet,11600,Consumable Stores,581.76,2
Cambridge City Council,The BSS Group PLC t/a PTS Plumbing Trade Supplies,10102000,05/05/2023,138406,9900,General Fund Balance Sheet,11600,Consumable Stores,"1,154.36",2
Cambridge City Council,The Hazard Mgmt & Environmental Services Laboratories Ltd,10101600,28/04/2023,138461,6215,Risk and Compliance,60237,Asbestos Investigation/Surveys,868.58,2
Cambridge City Council,The Hazard Mgmt & Environmental Services Laboratories Ltd,10101600,28/04/2023,138462,6215,Risk and Compliance,60237,Asbestos Investigation/Surveys,"4,960.60",2
Cambridge City Council,The Hazard Mgmt & Environmental Services Laboratories Ltd,10101600,28/04/2023,138941,6215,Risk and Compliance,60237,Asbestos Investigation/Surveys,"2,842.51",2
Cambridge City Council,The Highfield Event Group Ltd,10410700,04/05/2023,138313,1350,Civic Affairs and Twinning,62900,Events,747.00,2
Cambridge City Council,The Housing Ombudsman Service,10103500,04/05/2023,139741,6007,Departmental Overheads-Client,64800,Membership And Subscriptions,"41,055.00",2
Cambridge City Council,The Millward Partnership Ltd,10919800,28/04/2023,138285,300038,Completed Wall Structure,70009,CAPEX - Engineers Fees,"1,750.00",2
Cambridge City Council,The Pink Festival Group,10104500,12/05/2023,138622,1057,Community Development Voluntary Support,64600,Grants And Contributions,"5,000.00",2
Cambridge City Council,The Pink Festival Group,10104500,04/05/2023,138208,100384,S106 public art grant for Ride with Pride (City-wide),70015,CAPEX - Grants Paid,"12,500.00",2
Cambridge City Council,The Really Safe Flooring Company Ltd T/A Sliptech,10862800,30/03/2023,138496,1100,Sport & Recreation Administration,60201,Cyclical/Planned Maintenance - Building,"1,497.60",2
Cambridge City Council,The Red Hen Project,10165200,12/05/2023,138609,1057,Community Development Voluntary Support,64600,Grants And Contributions,"5,588.50",2
Cambridge City Council,The Signal Box Centre,10105300,30/05/2023,139944,1057,Community Development Voluntary Support,64600,Grants And Contributions,"1,545.00",2
Cambridge City Council,Thurlow Nunn Standen Ltd,10106100,09/05/2023,138446,1031,Fleet Management - Operational,61703,"Purchase - Equipment, Furniture And Materials",652.30,2
Cambridge City Council,Total Clean Cambridge,10884600,01/05/2023,138901,1063,The Meadows Community Centre,60502,Cleaning Contract,"1,999.92",2
Cambridge City Council,Total Gas & Power Ltd,10134800,18/04/2023,137018,5024,E_invoicing Suspense Accounts,69100,Expenditure In Holding Account Awaiting Allocation,"197,377.15",2
Cambridge City Council,Totalkare Heavy Duty Workshop Solutions Ltd,10419300,17/02/2023,139334,100372,Replacement vehicle lift,70017,CAPEX - Purchase of Plant Machinery & Equipment,"3,860.00",2
Cambridge City Council,Totalkare Heavy Duty Workshop Solutions Ltd,10419300,28/04/2023,139339,100372,Replacement vehicle lift,70017,CAPEX - Purchase of Plant Machinery & Equipment,"43,250.00",2
Cambridge City Council,Town Legal LLP,11130900,28/04/2023,138087,1002,Bereavement Services - Burials & Grounds,63200,Legal Fees,"14,825.00",2
Cambridge City Council,TP Surfacing and Coatings,10840400,19/05/2023,139736,6207,Repairs Day to Day,60233,Housing Repairs - Work Given To External Contractors,607.50,2
Cambridge City Council,Travelperk UK IRL Ltd t/a Click Travel,10933600,30/04/2023,137904,5024,E_invoicing Suspense Accounts,69100,Expenditure In Holding Account Awaiting Allocation,707.20,2
Cambridge City Council,Trumpington Bowls Club,10520200,11/05/2023,138601,1100,Sport & Recreation Administration,64600,Grants And Contributions,"5,885.70",2
Cambridge City Council,Trumpington Village Hall,10108700,25/04/2023,139197,100400,S106 grant to Trumpington village hall - disabled access,70015,CAPEX - Grants Paid,"3,432.25",2
Cambridge City Council,TSG Building Services PLC,10125300,31/03/2023,137062,6211,Heat and Hot Water Servicing,60205,Fire Assessment And Safety,"11,424.00",2
Cambridge City Council,TSG Building Services PLC,10125300,28/04/2023,139301,6211,Heat and Hot Water Servicing,60205,Fire Assessment And Safety,"1,076.75",2
Cambridge City Council,TSG Building Services PLC,10125300,31/03/2023,137062,6211,Heat and Hot Water Servicing,60225,Housing Repairs - Gas Maintenance Contract,"73,151.10",2
Cambridge City Council,TSG Building Services PLC,10125300,31/03/2023,137062,6211,Heat and Hot Water Servicing,60225,Housing Repairs - Gas Maintenance Contract,"4,315.14",2
Cambridge City Council,TSG Building Services PLC,10125300,28/04/2023,139301,6211,Heat and Hot Water Servicing,60225,Housing Repairs - Gas Maintenance Contract,"62,821.41",2
Cambridge City Council,TSG Building Services PLC,10125300,28/04/2023,139301,6211,Heat and Hot Water Servicing,60225,Housing Repairs - Gas Maintenance Contract,"7,488.00",2
Cambridge City Council,TSG Building Services PLC,10125300,12/05/2023,139887,5024,E_invoicing Suspense Accounts,69100,Expenditure In Holding Account Awaiting Allocation,"167,377.13",2
Cambridge City Council,TSG Building Services PLC,10125300,12/05/2023,139888,5024,E_invoicing Suspense Accounts,69100,Expenditure In Holding Account Awaiting Allocation,"74,562.56",2
Cambridge City Council,Turkish Kurdish Speakers in Cambridge,10109300,30/05/2023,139948,1057,Community Development Voluntary Support,64600,Grants And Contributions,850.00,2
Cambridge City Council,Turtle Dove Cambridge,10206100,04/05/2023,138466,1350,Civic Affairs and Twinning,62900,Events,703.28,2
Cambridge City Council,UK Fuels Limited,10192900,14/05/2023,139204,5001,City Services Holding Account,69100,Expenditure In Holding Account Awaiting Allocation,"4,647.82",2
Cambridge City Council,UK Fuels Limited,10192900,30/04/2023,138286,5001,City Services Holding Account,69100,Expenditure In Holding Account Awaiting Allocation,"5,656.42",2
Cambridge City Council,UK Fuels Limited,10192900,07/05/2023,138657,5001,City Services Holding Account,69100,Expenditure In Holding Account Awaiting Allocation,"5,577.47",2
Cambridge City Council,UK Fuels Limited,10192900,23/04/2023,137510,5001,City Services Holding Account,69100,Expenditure In Holding Account Awaiting Allocation,"6,042.68",2
Cambridge City Council,UK Fuels Limited,10192900,21/05/2023,140321,5001,City Services Holding Account,69100,Expenditure In Holding Account Awaiting Allocation,"5,116.71",2
Cambridge City Council,Unifiedpost Group,10929600,31/03/2023,136200,1050,Community Safety,62005,"Advertising, Publicity And Marketing","1,086.15",2
Cambridge City Council,Unifiedpost Group,10929600,30/04/2023,138290,8023,Business Support - Centralised Overheads,64100,Postage And Courier Services,"3,758.86",2
Cambridge City Council,University of Cambridge,10110201,31/03/2023,135696,1862,Open Space Development,60115,Staff Development And Training,600.00,2
Cambridge City Council,University of Cambridge,10110201,16/05/2023,139300,1862,Open Space Development,60115,Staff Development And Training,700.00,2
Cambridge City Council,University of Cambridge,10110201,12/05/2023,138958,1353,Elections,60402,Premises Hire - Facilities,"3,136.00",2
Cambridge City Council,University of Cambridge,10110201,12/05/2023,138958,1353,Elections,61703,"Purchase - Equipment, Furniture And Materials","3,255.50",2
Cambridge City Council,University of Cambridge,10110201,31/03/2023,135696,1862,Open Space Development,61902,Catering Services,700.00,2
Cambridge City Council,University of Cambridge,10110201,16/05/2023,139300,1862,Open Space Development,61902,Catering Services,600.00,2
Cambridge City Council,University of Cambridge,10110201,12/05/2023,138613,1057,Community Development Voluntary Support,64600,Grants And Contributions,"6,750.00",2
Cambridge City Council,Urban Planters Chelmsford,10230500,28/04/2023,138075,1300,Customer Access Strategy - Customer Service Centre,61800,Contract Charges,630.00,2
Cambridge City Council,Ventro Ltd,10749800,05/05/2023,138270,6215,Risk and Compliance,60205,Fire Assessment And Safety,"4,169.62",2
Cambridge City Council,Ventro Ltd,10749800,04/05/2023,138267,6215,Risk and Compliance,60205,Fire Assessment And Safety,"6,980.00",2
Cambridge City Council,Veolia ES (UK) Limited,10566500,30/04/2023,138300,6200,Building Maintenance Response - Direct,64050,Waste Disposal Costs,"3,378.69",2
Cambridge City Council,Vivid Resourcing Ltd,10149200,12/04/2023,139233,1424,Environmental Health Salaries,60011,Agency Staff,"1,318.75",2
Cambridge City Council,VPS (UK) Ltd,11167200,27/04/2023,138809,300105,New Build - Aylesborough Close,70010,CAPEX - Other Professional Fees,"1,405.00",2
Cambridge City Council,VWS (UK) Limited t/a Veolia Water Technologies,10778300,16/05/2023,139008,1100,Sport & Recreation Administration,60201,Cyclical/Planned Maintenance - Building,600.33,2
Cambridge City Council,VWS (UK) Limited t/a Veolia Water Technologies,10778300,16/05/2023,139008,6215,Risk and Compliance,60235,Housing Repairs - Other Premises Related Costs,623.00,2
Cambridge City Council,Walthew Leisure Ltd,10373800,27/04/2023,137564,1107,Healthy Weights,62404,Instructors/Tutors,500.00,2
Cambridge City Council,Wesley Church Cambridge,10112800,18/05/2023,139803,1353,Elections,60402,Premises Hire - Facilities,"1,139.00",2
Cambridge City Council,Westone Housing Ltd,10939300,28/02/2023,138817,200001,Mandatory Disabled Facilities Grants (Tenants),70015,CAPEX - Grants Paid,"5,643.65",2
Cambridge City Council,Wilks Head & Eve LLP,10201400,04/05/2023,138297,6007,Departmental Overheads-Client,62400,Consultancy Fees,"5,985.00",2
Cambridge City Council,Wilks Head & Eve LLP,10201400,04/05/2023,138301,6007,Departmental Overheads-Client,62400,Consultancy Fees,"1,000.00",2
Cambridge City Council,Windsor Engineering (Hull) Limited,10387800,13/04/2023,138500,1260,Corn Exchange and Guildhalls,61700,Hire - Equipment Furniture And Materials,606.68,2
Cambridge City Council,Wine Gums Comedy Nights,10327900,19/05/2023,139237,9900,General Fund Balance Sheet,20118,Receipts In Advance - Other Entities And Individuals,"1,485.00",2
Cambridge City Council,Wiser Recycling Ltd,10215500,04/05/2023,138816,6200,Building Maintenance Response - Direct,64050,Waste Disposal Costs,"1,868.83",2
Cambridge City Council,Wizzard Windows,11118300,11/05/2023,139009,200000,Repairs Assistance (Owner Occupiers),70015,CAPEX - Grants Paid,"2,127.00",2
Cambridge City Council,Wolseley UK Ltd T/A Plumb Center,10114000,21/04/2023,137967,9900,General Fund Balance Sheet,11600,Consumable Stores,"1,804.00",2
Cambridge City Council,Wolseley UK Ltd T/A Plumb Center,10114000,21/04/2023,137967,9900,General Fund Balance Sheet,11600,Consumable Stores,740.79,2
Cambridge City Council,Wood Green Animal Shelters,10114100,30/04/2023,138499,1858,Public Realm Enforcement,61800,Contract Charges,"1,649.00",2
Cambridge City Council,Woodfines LLP,10114201,05/04/2023,140222,300109,Princess and Hanover,70001,CAPEX - Acquisition of Land & Existing Building,"360,000.00",2
Cambridge City Council,Woodfines LLP,10114201,05/04/2023,140222,300109,Princess and Hanover,70011,CAPEX - Decant Costs,"27,000.00",2
Cambridge City Council,Woodfines LLP,10114201,05/04/2023,140222,300109,Princess and Hanover,70011,CAPEX - Decant Costs,"1,610.40",2
Cambridge City Council,Zurich Insurance PLC,10115100,27/04/2023,138810,8009,Insurance Fund,67302,Insurance Claim,"281,320.96",2
Cambridge City Council,Zurich Insurance PLC,10115100,27/04/2023,138811,8009,Insurance Fund,67302,Insurance Claim,602.56,2
Cambridge City Council,10:AM,10302900,20/06/2023,142737,1262,Folk Festival,62400,Consultancy Fees,"1,000.00",3
Cambridge City Council,4-5 Grays Inn Square Ltd,10984500,07/06/2023,141155,6207,Repairs Day to Day,63200,Legal Fees,800.00,3
Cambridge City Council,4-5 Grays Inn Square Ltd,10984500,03/01/2023,142297,6207,Repairs Day to Day,63200,Legal Fees,802.20,3
Cambridge City Council,AA Global Language Services Ltd,10001100,31/05/2023,141596,1203,Corporate Policy,62408,Translation Services,508.50,3
Cambridge City Council,Abbey People CIO,10001300,26/06/2023,142504,1057,Community Development Voluntary Support,64600,Grants And Contributions,"6,250.00",3
Cambridge City Council,ACAS,10001800,16/06/2023,141688,8003,Human Resources - Organisational Development,64300,Conference Expenses,900.00,3
Cambridge City Council,Access & Automation Ltd,10115300,13/06/2023,141437,6207,Repairs Day to Day,60233,Housing Repairs - Work Given To External Contractors,995.00,3
